Workbook

Sheet 手順 (hidden)
A1: 事前準備
B2: Noto font インストール。Noto Font_SerifとSansのみでok（システムに申請不要、自分で入れる）
B3: https://app.box.com/s/rlo7woy8xw4g6zybut3r4ti9wokn8yx5
A5: 理解していてほしいExcelの機能
B6: ・シートのグループ化
B7: ・セルのコピーで「書式」という貼り付けがあること（［Ctrl］＋［C］→［Ctrl］＋［V］＋［Alt］→「形式を選択して貼り付け」→「書式」）
B8: ・オートフィル機能
A10: ① | B10: 「作業用」sheetの赤枠の中に数値を入力
A11: ② | B11: 「作業用」sheetの6行目に今年度の数値を入力。５行目の作業を行う。
A12: ③ | B12: 「作業用」sheetの8行目の作業を行う。
A13: ④ | B13: 支給されたデータを「IGデータ共有」のシートに値のみコピペ
A14: ⑤ | B14: 全ての表の一番右端をオートフィル機能で一列右へ引っ張る。自動で「IGデータ共有」の最新年度の数値が加わる。
A15: ⑥ | B15: 前年度の着色セルを今年度に移動させる（前年度の列をコピーし今年度に「書式」で貼り付け。前年度セルは色を消す） | C15: ここまで2/23、ただし更新された数値を入れ込む
B17: 「02_1.主要指標_グラフ用シート」は、作業内容をシートに記載しています。
B21: 作業が終了したら、%が入っているセルを除き関数で自動入力されているセルを選択し、開発→マクロ→「数値を残して数式削除」を実行
B22: （ページ全体を選択するとメモリ不足でエラーが出ます）
B23: 全ての数式が削除され値のみになったら、Excelの末尾に「_値のみ」と付けて保存。
B24: 関数が入っているExcelと、削除済みのExcelの両方を保存。
B28: 「手順」「作業用」「IGデータ共有」「02_1.主要指標_グラフ用シート」「10.株式情報_グラフ用シート」を非表示にし、校閲から「ブックの保護」。パスワードは自分が忘れなければなんでもいいですが、他の人には類推されないように。社名＋自分の内線番号とか。

Sheet 作業用 (hidden)
A1: 2022 | B1: ←今回新しく掲載する西暦
A2: ="2011年1月31日～"&A1&"年12月31日に終了した会計年度" -> 2011年1月31日～2022年12月31日に終了した会計年度
A3: ="Fiscal years ended Jan. 31, 2011 through Dec. 31, "&A1 -> Fiscal years ended Jan. 31, 2011 through Dec. 31, 2022
A5: ※右端に年号を足す。03-04,06-09シートをグループ化し一斉に右端に追加、05は手動で年号を追加、9は「効率性」「安全性」の表は追加で作業が必要
A6: 2011 | B6: 2012 | C6: 2013 | D6: 2014 | E6: 2015 | F6: 2016 | G6: 2017 | H6: 2018 | I6: Jan. 2019 | J6: Dec. 2019 | K6: 2020 | L6: 2020 | M6: 2021 | N6: 2022
A8: ※03-04,06-09のシートをグループ化し、下記の２セルを一斉に一列右に移動、05は手動で移動、09は「効率性」「安全性」の表は追加で作業が必要
A9: (百万円)
A10: (¥ millions)
A11: ※下記の赤枠の中の数値を入力（カンマは手入力） 元データ：「株式分布状況表」「大株主名簿抜粋版」（ピジョンから２月頃に支給される）
A12: 発行可能株式総数 | D12: 360,000,000 | E12: 株 | H12: 金融機関 | J12: 0.314 | K12: 38177 | L12: 千株
A13: 発行済株式の総数 | D13: 121,653,486 | E13: 株 | H13: 金融商品取引業者（証券会社） | J13: 0.059 | K13: 7135 | L13: 千株
A14: 総株主数 | D14: 22,970 | E14: 名 | H14: その他の法人 | J14: 0.049 | K14: 5970 | L14: 千株
A15: 議決権保有株主数 | D15: 20,272 | E15: 名 | H15: 外国法人等 | J15: 0.424 | K15: 51613 | L15: 千株
A16: 自己株式 | D16: 1,893,532 | E16: 株 | H16: 自己名義株式 | J16: 0.016 | K16: 1893 | L16: 千株
C17: =D13-D16 -> 119759954 | D17: 119,759,954 | H17: 個人・その他 | J17: 0.139 | K17: 16861 | L17: 千株
H18: 政府・地方公共団体 | J18: 0 | K18: 1 | L18: 千株
A19: 色の使い方（グレージュ、ピジョンレッドなど）
A24: 基本色
A25: 基本色
A26: 基本色

Sheet IGデータ共有 (hidden)
C2: 分類 | D2: 2011 | E2: 2012 | F2: 2013 | G2: 2014 | H2: 2015 | I2: 2016 | J2: 2017 | K2: 2018 | L2: Jan. 2019 | M2: Dec. 2019 | N2: 2020 | O2: 2020年新基準 | P2: 2021 | Q2: 2021★ | R2: 2022
A3: P01 | B3: 売上高 Net Sales | C3: PL | D3: 57061735591 | E3: 59145132983 | F3: 65075433468 | G3: 77465007884 | H3: 84113237737 | I3: 92209616970 | J3: 94640195434 | K3: 102563044299 | L3: 104747510935 | M3: 100017030844 | N3: 99380313573 | O3: 94021000000 | P3: 93080837761 | Q3: 93080837761 | R3: 94921917079
A4: P03 | B4: 売上原価 Cost of Sales | C4: PL | D4: =D3-D5 -> 33780686265 | E4: 34826008928 | F4: 37314670804 | G4: 43000645382 | H4: 45817174483 | I4: 48864545931 | J4: 49951892939 | K4: 51990787583 | L4: 50889107983 | M4: 49216841484 | N4: 49459247498 | O4: 49459000000 | P4: 49008521224 | Q4: 49008521224 | R4: 50087500183
A5: P03 | B5: 売上総利益 Gross Profit | C5: PL | D5: 23281049326 | E5: 24319124055 | F5: 27760762664 | G5: 34464362502 | H5: 38296063254 | I5: 43345071039 | J5: 44688302495 | K5: 50572256716 | L5: 53858402952 | M5: 50800189360 | N5: 49921066075 | O5: 44562000000 | P5: 44072316537 | Q5: 44072316537 | R5: 44834416896
A6: P03 | B6: 販売費及び一般管理費 Selling, General and Administrative Expenses | C6: PL | D6: 18734173001 | E6: 19276291990 | F6: 20674528817 | G6: 24098736986 | H6: 25515329149 | I6: 28823234234 | J6: 28673192277 | K6: 31159514770 | L6: 34246204535 | M6: 33727490510 | N6: 34605000911 | O6: 29482000000 | P6: 30735708752 | Q6: 30735708752 | R6: 32638433295
A7: P01 | B7: 営業利益 Operating Income | C7: PL | D7: 4546876325 | E7: 5042832065 | F7: 7086233847 | G7: 10365625516 | H7: 12780734105 | I7: 14521836805 | J7: 16015110218 | K7: 19412741946 | L7: 19612198417 | M7: 17072698850 | N7: 15316065164 | O7: 15080000000 | P7: 13336607785 | Q7: 13336607785 | R7: 12195983601
A8: P03 | B8: 営業外収益 Non-operating Income | C8: PL | D8: 372606386 | E8: 373307816 | F8: 656214022 | G8: 974238283 | H8: 923304724 | I8: 1112848924 | J8: 945641562 | K8: 1263740089 | L8: 1295589609 | M8: 1136767077 | N8: 1406466569 | O8: 1406000000 | P8: 1427015080 | Q8: 1427015080 | R8: 1418627809
A9: P03 | B9: 営業外費用 Non-operating Expenses | C9: PL | D9: 484166714 | E9: 499113110 | F9: 352945032 | G9: 337583668 | H9: 404854679 | I9: 553690209 | J9: 498095795 | K9: 547439086 | L9: 509439292 | M9: 924612799 | N9: 608968865 | O9: =N9 -> 608968865 | P9: 115187330 | Q9: 115187330 | R9: 149052588
A10: P03 | B10: 経常利益 Ordinary Income | C10: PL | D10: 4435315997 | E10: 4917026771 | F10: 7389502837 | G10: 11002280131 | H10: 13299184149 | I10: 15080995520 | J10: 16462655985 | K10: 20129042949 | L10: 20398348734 | M10: 17284853128 | N10: 16113562868 | O10: 16113000000 | P10: 14648435535 | Q10: 14648435535 | R10: 13465558822
A11: P03 | B11: 特別利益 Extraordinary Income | C11: PL | D11: 20267234 | E11: 19828558 | F11: 7170952 | G11: 8825960 | H11: 8259660 | I11: 10776132 | J11: 122030762 | K11: 1058898382 | L11: 243270800 | M11: 121044306 | N11: 38389178 | O11: 38000000 | P11: 65098679 | Q11: 65098679 | R11: 7069420
A12: P03 | B12: 特別損失 Extraordinary Loss | C12: PL | D12: 86203149 | E12: 213183706 | F12: 26990643 | G12: 24257602 | H12: 167410698 | I12: 204577980 | J12: 350389014 | K12: 271038107 | L12: 379311303 | M12: 300943397 | N12: 315571495 | O12: 315000000 | P12: 1182285849 | Q12: 1182285849 | R12: 329295910
A13: P03 | B13: 税金等調整前当期純利益 Income before Income Taxes | C13: PL | D13: 4369380082 | E13: 4723671623 | F13: 7369683146 | G13: 10986848489 | H13: 13140033111 | I13: 14887193672 | J13: 16234297733 | K13: 20916903224 | L13: 20262308231 | M13: 17104954037 | N13: 15836380551 | O13: 15836000000 | P13: 13531248365 | Q13: 13531248365 | R13: 13143332332
A14: P03 | B14: 法人税、住民税及び事業税 Income Taxes - Current | C14: PL | D14: 1331238967 | E14: 1463220509 | F14: 2128638110 | G14: 3077667742 | H14: 3768140548 | I14: 4548340019 | J14: 5165318311 | K14: 5931863929 | L14: 5794995728 | M14: 5067410595 | N14: 4715165492 | O14: 4715000000 | P14: 4690249801 | Q14: 4690249801 | R14: 4678155100
A15: P03 | B15: 法人税等調整額 Income Taxes - Deferred | C15: PL | D15: 21253191 | E15: -10849987 | F15: 526538282 | G15: 705869342 | H15: 734969469 | I15: -124029654 | J15: -273689975 | K15: 225362364 | L15: -127503834 | M15: 267687759 | N15: 261199714 | O15: 261000000 | P15: -138059767 | Q15: -138059767 | R15: -296324746
A16: P03 | B16: 非支配株主に帰属する当期純利益 Net Income Attributable to Non-Controlling Interests | C16: PL | D16: 88480671 | E16: 87894102 | F16: 140713321 | G16: 217640480 | H16: 185144689 | I16: 265619133 | J16: 224048195 | K16: 244579793 | L16: 356509817 | M16: 230879281 | N16: 216791138 | O16: 216000000 | P16: 193504651 | Q16: 193504651 | R16: 179952295
A17: P01 | B17: 親会社株主に帰属する当期純利益 Net Income Attributable to Owners of Parent | C17: PL | D17: 2928407253 | E17: 3183406999 | F17: 4573793433 | G17: 6985670925 | H17: 8451778405 | I17: 10197264174 | J17: 11118621202 | K17: 14515097138 | L17: 14238306520 | M17: 11538976402 | N17: 10643224207 | O17: 10643000000 | P17: 8785553680 | Q17: 8785553680 | R17: 8581549683
A18: P02 | B18: 現金及び預金 Cash and Deposits | C18: BS | D18: 6827706214 | E18: 7293629892 | F18: 10574326004 | G18: 13102606983 | H18: 21590935049 | I18: 24297665133 | J18: 30052162146 | K18: 31346731843 | L18: 30949419519 | M18: 32416448314 | N18: 37163550511 | O18: 37163550511 | P18: 35218567090 | Q18: 35218567090 | R18: 34283665696
A19: P02 | B19: 受取手形及び売掛金 Notes and Accounts Receivable - Trade | C19: BS | D19: 9874273964 | E19: 9993322204 | F19: 10540939971 | G19: 12569111972 | H19: 15278435607 | I19: 13870908830 | J19: 16103441860 | K19: 16440833928 | L19: 15004575122 | M19: 16588049160 | N19: 15085909529 | O19: 15085909529 | P19: 16253100338 | Q19: 16253100338 | R19: 15975111399
A20: P02 | B20: 商品及び製品 Merchandise and Finished Goods | C20: BS | D20: 4549808910 | E20: 5332818644 | F20: 4816217434 | G20: 5350773143 | H20: 5899152704 | I20: 6146663841 | J20: 5328649634 | K20: 6059723197 | L20: 7360199873 | M20: 8144856612 | N20: 8256757483 | O20: 8256757483 | P20: 8723270208 | Q20: 8723270208 | R20: 10529540775
A21: P02 | B21: 〈流動資産合計〉 〈Total Current Assets〉 | C21: BS | D21: 24162848829 | E21: 25443202478 | F21: 29103354409 | G21: 35363386923 | H21: 47027168734 | I21: 48913889547 | J21: 55244961437 | K21: 58178435187 | L21: 58201492260 | M21: 61933098978 | N21: 65231032221 | O21: 65231032221 | P21: 66254459067 | Q21: 66254459067 | R21: 67143413334
A22: P02 | B22: 有形固定資産 Tangible Fixed Assets | C22: BS | D22: 15409313536 | E22: 15058663804 | F22: 16208139686 | G22: 19023463115 | H22: 21383358308 | I22: 21471397454 | J22: 20263705610 | K22: 21116016027 | L22: 21127612999 | M22: 22494509649 | N22: 23262716920 | O22: 23262716920 | P22: 27093403671 | Q22: 27093403671 | R22: 30132518305
A23: P02 | B23: 無形固定資産 Intangible Fixed Assets | C23: BS | D23: 1188079547 | E23: 1285427512 | F23: 1176134899 | G23: 1441331601 | H23: 1724355958 | I23: 1346140161 | J23: 1106939134 | K23: 3307505670 | L23: 4223494830 | M23: 3863598950 | N23: 2957736900 | O23: 2957736900 | P23: 2572271694 | Q23: 2572271694 | R23: 2308730674
A24: P02 | B24: 投資有価証券 Investment Securities | C24: BS | D24: 1316276769 | E24: 1344281729 | F24: 1420538158 | G24: 1448245632 | H24: 1531542299 | I24: 1477691435 | J24: 1481389803 | K24: 1020189518 | L24: 889588893 | M24: 950150821 | N24: 687713148 | O24: 687713148 | P24: 532049293 | Q24: 532049293 | R24: 547483410
A25: P02 | B25: 〈固定資産合計〉 〈Total Fixed Assets〉 | C25: BS | D25: 18521899906 | E25: 18329341886 | F25: 19435468142 | G25: 22591980696 | H25: 25339911691 | I25: 25029274037 | J25: 23644423504 | K25: 26289331426 | L25: 27417321987 | M25: 28558809825 | N25: 28241205311 | O25: 28241205311 | P25: 31788453927 | Q25: 31788453927 | R25: 34590515286
A26: P02 | B26: 〈資産合計〉 〈Total Assets〉 | C26: BS | D26: 42684748735 | E26: 43772544364 | F26: 48538822551 | G26: 57955367619 | H26: 72367080425 | I26: 73943163584 | J26: 78889384941 | K26: 84467766613 | L26: 85618814247 | M26: 90491908803 | N26: 93472237532 | O26: 93472237532 | P26: 98042912994 | Q26: 98042912994 | R26: 101733928620
A27: P02 | B27: 支払手形及び買掛金 Notes and Accounts Payable - Trade | C27: BS | D27: 3984705570 | E27: 3758318230 | F27: 3864039238 | G27: 4518251597 | H27: 4462757047 | I27: 3743074972 | J27: 4857674428 | K27: 5194202824 | L27: 4567797219 | M27: 4900070477 | N27: 4757520635 | O27: 4757520635 | P27: 4087466942 | Q27: 4087466942 | R27: 5066837722
A28: P02 | B28: 未払金 Accounts Payable | C28: BS | D28: 2687791653 | E28: 2755082266 | F28: 3179388123 | G28: 3401135660 | H28: 3778828786 | I28: 2147668125 | J28: 2477209307 | K28: 3141965756 | L28: 3363053436 | M28: 2660773361 | N28: 2727351774 | O28: 2727351774 | P28: 2253209135 | Q28: 2253209135 | R28: 2373605917
A29: P02 | B29: 未払法人税等 Income Taxes Payable | C29: BS | D29: 563306147 | E29: 704870430 | F29: 1134047940 | G29: 1155862382 | H29: 1535554519 | I29: 1505498023 | J29: 2324675469 | K29: 2578472873 | L29: 1951111481 | M29: 1272919096 | N29: 1906238882 | O29: 1906238882 | P29: 1180638145 | Q29: 1180638145 | R29: 989245194
A30: P02 | B30: 賞与引当金 Accrued Bonuses to Employees | C30: BS | D30: 537505622 | E30: 587343358 | F30: 606257986 | G30: 782653548 | H30: 783744402 | I30: 894451623 | J30: 929205059 | K30: 1035353484 | L30: 972861809 | M30: 928863301 | N30: 952772565 | O30: 952772565 | P30: 882769616 | Q30: 882769616 | R30: 920985352
A31: P02 | B31: 〈流動負債合計〉 〈Total Current Liabilities〉 | C31: BS | D31: 12227140704 | E31: 12382644223 | F31: 11615940735 | G31: 12818934326 | H31: 15272743841 | I31: 14223289056 | J31: 21381564642 | K31: 17673131478 | L31: 15623472830 | M31: 15638759362 | N31: 15664531024 | O31: 15664531024 | P31: 15072285289 | Q31: 15072285289 | R31: 15563352743
A32: P02 | B32: 長期借入金 Long-term Borrowings | C32: BS | D32: 1615000000 | E32: 1642165800 | F32: 2204365360 | G32: 2011503000 | H32: 5928235000 | I32: 5000000000 | J32: 0 | K32: 0 | L32: 0 | M32: 0 | N32: 0 | O32: 0 | P32: 0 | Q32: 0 | R32: 0
A33: P02 | B33: 〈固定負債合計〉 〈Total Fixed Liabilities〉 | C33: BS | D33: 3413570158 | E33: 3454217497 | F33: 4557510464 | G33: 5154818851 | H33: 9797120715 | I33: 8926934115 | J33: 3770877442 | K33: 3982304250 | L33: 3412776057 | M33: 4389350201 | N33: 5181726329 | O33: 5181726329 | P33: 6159853398 | Q33: 6159853398 | R33: 6217709730
A34: P02 | B34: 〈負債合計〉 〈Total Liabilities〉 | C34: BS | D34: 15640710862 | E34: 15836861720 | F34: 16173451199 | G34: 17973753177 | H34: 25069864556 | I34: 23150223171 | J34: 25152442084 | K34: 21655435728 | L34: 19036248887 | M34: 20028109563 | N34: 20846257353 | O34: 20846257353 | P34: 21232138687 | Q34: 21232138687 | R34: 21781062473
A35: P02 | B35: 資本金 Capital Stock | C35: BS | D35: 5199597257 | E35: 5199597257 | F35: 5199597257 | G35: 5199597257 | H35: 5199597257 | I35: 5199597257 | J35: 5199597257 | K35: 5199597257 | L35: 5199597257 | M35: 5199597257 | N35: 5199597257 | O35: 5199597257 | P35: 5199597257 | Q35: 5199597257 | R35: 5199597257
A36: P02 | B36: 資本剰余金 Capital Surplus | C36: BS | D36: 5180246783 | E36: 5180246783 | F36: 5180246783 | G36: 5180246783 | H36: 5180246783 | I36: 5180246783 | J36: 5179161671 | K36: 5179161671 | L36: 5179161671 | M36: 5179161671 | N36: 5179161671 | O36: 5179161671 | P36: 5179161671 | Q36: 5179161671 | R36: 5132523055
A37: P02 | B37: 利益剰余金 Retained Earnings | C37: BS | D37: 18451368137 | E37: 19873527692 | F37: 22686099245 | G37: 26929960476 | H37: 31383875449 | I37: 36790627683 | J37: 42280442762 | K37: 49729620209 | L37: 55704414886 | M37: 58979897960 | N37: 61120115307 | O37: 61120115307 | P37: 61163161939 | Q37: 61163161939 | R37: 60762010047
A38: P02 | B38: 自己株式 Treasury Stock | C38: BS | D38: -447673498 | E38: -448680691 | F38: -450289411 | G38: -455960681 | H38: -942114981 | I38: -947073471 | J38: -948123093 | K38: -949587493 | L38: -951477193 | M38: -1088882273 | N38: -1478611213 | O38: -1478611213 | P38: -1479202353 | Q38: -1479202353 | R38: -1387792432
A39: P02 | B39: その他有価証券評価差額金 Valuation Difference on Available- for-Sale Securities | C39: BS | D39: 11237469 | E39: 10073621 | F39: 26644890 | G39: 30520143 | H39: 36811009 | I39: 32910181 | J39: 47598236 | K39: 44453028 | L39: 21835704 | M39: 25404944 | N39: 13033444 | O39: 13033444 | P39: 16606797 | Q39: 16606797 | R39: 26360237
A40: P02 | B40: 為替換算調整勘定 Foreign Currency Translation Adjustment | C40: BS | D40: -1861586231 | E40: -2386518967 | F40: -970653783 | G40: 2240472792 | H40: 5306072630 | I40: 3311120378 | J40: 628402361 | K40: 1490012528 | L40: -910825173 | M40: -572604337 | N40: -129684785 | O40: -129684785 | P40: 3805832679 | Q40: 3805832679 | R40: 6962748440
A41: P02 | B41: 非支配株主持分 Non-Controlling Interests | C41: BS | D41: 510847956 | E41: 507436949 | F41: 693726371 | G41: 856777672 | H41: 1132727722 | I41: 1225511602 | J41: 1349863663 | K41: 2119073685 | L41: 2339858209 | M41: 2741224018 | N41: 2722368498 | O41: 2722368498 | P41: 2925616317 | Q41: 2925616317 | R41: 3257419543
A42: P02 | B42: 〈純資産合計〉 〈Total Net Assets〉 | C42: BS | D42: 27044037873 | E42: 27935682644 | F42: 32365371352 | G42: 39981614442 | H42: 47297215869 | I42: 50792940413 | J42: 53736942857 | K42: 62812330885 | L42: 66582565360 | M42: 70463799240 | N42: 72625980179 | O42: 72625980179 | P42: 76810774307 | Q42: 76810774307 | R42: 79952866147
A43: P02 | B43: 〈負債純資産合計〉 〈Total Liabilities and Net Assets〉 | C43: BS | D43: 42684748735 | E43: 43772544364 | F43: 48538822551 | G43: 57955367619 | H43: 72367080425 | I43: 73943163584 | J43: 78889384941 | K43: 84467766613 | L43: 85618814247 | M43: 90491908803 | N43: 93472237532 | O43: 93472237532 | P43: 98042912994 | Q43: 98042912994 | R43: 101733928620
A44: P10 | B44: たな卸資産 Inventories | C44: BS | D44: 5798231733 | E44: 6926075622 | F44: 6776340069 | G44: 8052401043 | H44: 8498900093 | I44: 8859457606 | J44: 7603373210 | K44: 8713072577 | L44: 10605041585 | M44: 11211532093 | N44: 11376166124 | O44: 11376166124 | P44: 12706829494 | Q44: 12706829494 | R44: 15318040866
A45: P10 | B45: 有利子負債 Interest-Bearing Debt | C45: BS | D45: 4873000000 | E45: 4898259000 | F45: 3620302880 | G45: 3411669100 | H45: 8018440931 | I45: 6308715070 | J45: 5699630744 | K45: 0 | L45: 0 | M45: 0 | N45: 0 | O45: 0 | P45: 0 | Q45: 0 | R45: 0
A46: P07 | B46: 税金等調整前当期純利益 Income before Income Taxes | C46: CF | D46: 4369380082 | E46: 4723671623 | F46: 7369683146 | G46: 10986848489 | H46: 13140033111 | I46: 14887193672 | J46: 16234297733 | K46: 20916903224 | L46: 20262308231 | M46: 17104954037 | N46: =N13 -> 15836380551 | O46: =O13 -> 15836000000 | P46: =P13 -> 13531248365 | Q46: =Q13 -> 13531248365 | R46: =R13 -> 13143332332
A47: P07 | B47: 減価償却費 Depreciation and Amortization | C47: CF | D47: 1624263703 | E47: 1595708481 | F47: 1626158525 | G47: 1865351708 | H47: 1914375561 | I47: 2345655121 | J47: 2259675679 | K47: 2444985028 | L47: 2638333350 | M47: 3406974379 | N47: 3815081788 | O47: 3815081788 | P47: 3997551226 | Q47: 3997551226 | R47: 4758039229
A48: P07 | B48: 売上債権の増減額 Decrease (Increase) in Notes and Accounts Receivable - Trade | C48: CF | D48: -1470926324 | E48: -93324963 | F48: 192375654 | G48: -587612742 | H48: -1312697293 | I48: 843246819 | J48: -2927107223 | K48: 376597877 | L48: 646912674 | M48: -1791701708 | N48: 1351135407 | O48: 1351135407 | P48: 469940207 | Q48: 469940207 | R48: 1631412952
A49: P07 | B49: たな卸資産の増減額 Decrease (Increase) in Inventories | C49: CF | D49: -400509520 | E49: -1019428138 | F49: 585635051 | G49: -480119378 | H49: 136281766 | I49: -636199485 | J49: 835679173 | K49: -761101424 | L49: -2300050968 | M49: -713587541 | N49: -42016062 | O49: -42016062 | P49: -466581572 | Q49: -466581572 | R49: -1816136449
A50: P07 | B50: 仕入債務の増減額 Increase (Decrease) in Notes and Accounts Payable - Trade | C50: CF | D50: -148261468 | E50: -241215178 | F50: -342242179 | G50: -154424500 | H50: -721411014 | I50: 1187563103 | J50: 1482620759 | K50: 115415350 | L50: -70101819 | M50: 595171773 | N50: -260976576 | O50: -260976576 | P50: -1511283199 | Q50: -1511283199 | R50: 222590126
A51: P07 | B51: 未払金の増減額 Increase (Decrease) in Accounts Payable | C51: CF | D51: 443295310 | E51: 139427800 | F51: 103418263 | G51: -1534000 | H51: -105731904 | I51: -1275207614 | J51: 538974551 | K51: 345609649 | L51: 196075517 | M51: -317783001 | N51: 88153647 | O51: 88153647 | P51: -789333539 | Q51: -789333539 | R51: -11545389
A52: P07 | B52: 法人税等の支払額 Income Taxes Paid | C52: CF | D52: -1444028766 | E52: -1313285181 | F52: -1753175117 | G52: -3241602245 | H52: -3444658113 | I52: -4570849744 | J52: -4295147563 | K52: -5868622443 | L52: -6491101287 | M52: -5854004398 | N52: -4322359076 | O52: -4322359076 | P52: -5565322558 | Q52: -5565322558 | R52: -4662868445
A53: P07 | B53: 営業活動によるキャッシュ・フロー Net Cash Provided by (Used in) Operating Activities | C53: CF | D53: 3206255118 | E53: 4212236296 | F53: 7656637556 | G53: 7930017746 | H53: 10135463781 | I53: 13479710148 | J53: 14810080526 | K53: 17094071174 | L53: 13632722706 | M53: 14098240224 | N53: 18400392999 | O53: 18400392999 | P53: 10893960767 | Q53: 10893960767 | R53: 13210566547
A54: P07 | B54: 有形固定資産の取得による支出 Purchase of Tangible Fixed Assets | C54: CF | D54: -2710009724 | E54: -1416158188 | F54: -1745897643 | G54: -3223309542 | H54: -2682791750 | I54: -3018704189 | J54: -2424805251 | K54: -2199656973 | L54: -3686765292 | M54: -3413459316 | N54: -3601187384 | O54: -3601187384 | P54: -5659890033 | Q54: -5659890033 | R54: -5315814658
A55: P07 | B55: 有形固定資産の売却による収入 Proceeds from Sales of Tangible Fixed Assets | C55: CF | D55: 44871662 | E55: 7007821 | F55: 19562813 | G55: 15969136 | H55: 48472617 | I55: 27127269 | J55: 769262008 | K55: 162889668 | L55: 453748942 | M55: 71950396 | N55: 24351752 | O55: 24351752 | P55: 29668387 | Q55: 29668387 | R55: 14316078
A56: P07 | B56: 無形固定資産の取得による支出 Purchase of Intangible Fixed Assets | C56: CF | D56: -193405227 | E56: -123872256 | F56: -112278161 | G56: -453270013 | H56: -472446961 | I56: -354815921 | J56: -210549405 | K56: -1055270713 | L56: -1704259346 | M56: -606279892 | N56: -222705089 | O56: -222705089 | P56: -234202087 | Q56: -234202087 | R56: -249577632
A57: P07 | B57: 投資活動によるキャッシュ・フロー Net Cash Provided by (Used in) Investing Activities | C57: CF | D57: -3949562256 | E57: -1871289807 | F57: -1848777771 | G57: -3794463215 | H57: -3134124588 | I57: -3332019659 | J57: -1854382400 | K57: -3586855016 | L57: -4704480203 | M57: -3995204094 | N57: -3815681794 | O57: -3815681794 | P57: -5593433584 | Q57: -5593433584 | R57: -5659113181
A58: P07 | B58: 短期借入れによる収入 Increase in Short-term Loans Payable | C58: CF | D58: 8548560000 | E58: 9516010000 | F58: 9513700000 | G58: 7079810000 | H58: 1390866296 | I58: 0 | J58: 485568896 | K58: 0 | L58: 0 | M58: 0 | N58: 0 | O58: 0 | P58: 0 | Q58: 0 | R58: 0
A59: P07 | B59: 短期借入金の返済による支出 Repayments of Short-term Loans Payable | C59: CF | D59: -7627950000 | E59: -9530540000 | F59: -10394000000 | G59: -8153100000 | H59: -1000000000 | I59: -505904280 | J59: -179455000 | K59: -673654760 | L59: 0 | M59: 0 | N59: 0 | O59: 0 | P59: 0 | Q59: 0 | R59: 0
A60: P07 | B60: 長期借入れによる収入 Proceeds from Long-term Loans Payable | C60: CF | D60: 1648000000 | E60: 1073080000 | F60: 1200000000 | G60: 752444000 | H60: 5000000000 | I60: 0 | J60: 0 | K60: 0 | L60: 0 | M60: 0 | N60: 0 | O60: 0 | P60: 0 | Q60: 0 | R60: 0
A61: P07 | B61: 長期借入金の返済による支出 Repayments of Long-term Loans Payable | C61: CF | D61: -103680000 | E61: -1020305800 | F61: -1656900160 | G61: -29688480 | H61: -1005031000 | I61: -1200000000 | J61: -837529000 | K61: -5000000000 | L61: 0 | M61: 0 | N61: 0 | O61: 0 | P61: 0 | Q61: 0 | R61: 0
A62: P07 | B62: 配当金の支払額 Payment of Cash Dividends | C62: CF | D62: -1518320528 | E62: -1758523510 | F62: -1761796829 | G62: -2740876325 | H62: -3995361276 | I62: -4789321770 | J62: -5622649835 | K62: -7066973122 | L62: -8260878993 | M62: -8230726182 | N62: -8517879052 | O62: -8517879052 | P62: -8741218877 | Q62: -8741218877 | R62: -8974340911
A63: P07 | B63: 財務活動によるキャッシュ・フロー Net Cash Provided by (Used in) Financing Activities | C63: CF | D63: 886237156 | E63: -1776035209 | F63: -3149745979 | G63: -3163282174 | H63: -150427949 | I63: -6567870584 | J63: -6223192385 | K63: -12812136601 | L63: -8338602898 | M63: -8734628603 | N63: -9231604580 | O63: -9231604580 | P63: -8693353562 | Q63: -8693353562 | R63: -9666398979
A64: P07 | B64: 現金及び現金同等物に係る換算差額 Effect of Exchange Rate Changes on Cash and Cash Equivalents | C64: CF | D64: -220765495 | E64: -98987602 | F64: 622582306 | G64: 1556008622 | H64: 1637416825 | I64: -873089821 | J64: -891876044 | K64: 599490140 | L64: -986951929 | M64: 98621268 | N64: -718804428 | O64: -718804428 | P64: 1560642958 | Q64: 1560642958 | R64: 1180044219
A65: P07 | B65: 現金及び現金同等物の増減額 Net Increase (Decrease) in Cash and Cash Equivalents | C65: CF | D65: -77835477 | E65: 465923678 | F65: 3280696112 | G65: 2528280979 | H65: 8488328066 | I65: 2706730084 | J65: 5840629697 | K65: 1294569697 | L65: -397312324 | M65: 1467028795 | N65: 4634302197 | O65: 4634302197 | P65: -1832183421 | Q65: -1832183421 | R65: -934901394
A66: P07 | B66: 現金及び現金同等物の期首残高 Cash and Cash Equivalents at Beginning of Period | C66: CF | D66: 6905541691 | E66: 6827706214 | F66: 7293629892 | G66: 10574326004 | H66: 13102606983 | I66: 21590935049 | J66: 24297665133 | K66: 30052162146 | L66: 31346731843 | M66: 30949419519 | N66: 32416448314 | O66: 32416448314 | P66: 37050750511 | Q66: 37050750511 | R66: 35218567090
A67: P07 | B67: 現金及び現金同等物の期末残高 Cash and Cash Equivalents at End of Period | C67: CF | D67: 6827706214 | E67: 7293629892 | F67: 10574326004 | G67: 13102606983 | H67: 21590935049 | I67: 24297665133 | J67: 30052162146 | K67: 31346731843 | L67: 30949419519 | M67: 32416448314 | N67: 37050750511 | O67: 37050750511 | P67: 35218567090 | Q67: 35218567090 | R67: 34283665696
A68: P01 | B68: １株当たり当期純利益（円） EPS (¥) | C68: KPI | D68: 24.45 | E68: 26.58 | F68: 38.09 | G68: 58.17 | H68: 70.55 | I68: 85.15 | J68: 92.84 | K68: 121.2 | L68: 118.89 | M68: 96.37 | N68: 88.93 | O68: 88.93 | P68: 73.44 | Q68: 73.44 | R68: 71.72
A69: P01 | B69: キャッシュコンバージョンサイクル（日） Cash Conversion Cycle (days) | C69: KPI | G69: 78.8 | H69: 88.8 | I69: 81 | J69: 74.4 | K69: 67.6 | L69: 75.6 | M69: 88.7 | N69: 92.3 | O69: 95.6 | P69: 105.9 | Q69: 105.9 | R69: 119.2
A70: P01 | B70: 減価償却費（のれん償却含む） Depreciation (including Amortization of Goodwill) | C70: KPI | D70: 1364301074 | E70: 1381049416 | F70: 1426742500 | G70: 1663394414 | H70: 1705051997 | I70: 2133077897 | J70: 2042262458
A71: P01 | B71: 減価償却費（のれん償却含む） Depreciation (including Amortization of Goodwill) | C71: KPI | J71: 2357003799 | K71: 2451150090 | L71: 2804778618 | M71: 3588655518 | N71: 3972805890 | O71: 3972805890 | P71: 4161908296 | Q71: 4161908296 | R71: 4947731935
A72: P01 | B72: 設備投資額 Capital Investment | C72: KPI | F72: 1204804597 | G72: 3091677067 | H72: 3204121803 | I72: 2639090344 | J72: 2328306686
A73: P01 | B73: 設備投資額 Capital Investment | C73: KPI | J73: 2498980327 | K73: 3546263805 | L73: 5376272039 | M73: 4059783302 | N73: 4185647460 | O73: 4185647460 | P73: 6735156804 | Q73: 6735156804 | R73: 7259370799
A74: P01 | B74: 研究開発費 R&D Expenditures | C74: KPI | D74: 1359392131 | E74: 1497192365 | F74: 1620971812 | G74: 1730035759 | H74: 1932261868 | I74: 2263991749 | J74: 2263272152 | K74: 2670827188 | L74: 3119754744 | M74: 3059864176 | N74: 3115688024 | O74: 3115688024 | P74: 3603479635 | Q74: 3603479635 | R74: 3792716375
A75: P01 | B75: １株当たり配当金（円） Dividend per Share (¥) | C75: KPI | D75: 14.67 | E75: 14.67 | F75: 19.17 | G75: 29.33 | H75: 35 | I75: 42 | J75: 53 | K75: 66 | L75: 68 | M75: 70 | N75: 72 | O75: 72 | P75: 74 | Q75: 74 | R75: 76
A76: P01 | B76: 配当性向（%） Dividend Payout Ratio (%) | C76: KPI | D76: 60.1 | E76: 55.3 | F76: 50.3 | G76: 50.4 | H76: 49.6 | I76: 49.3 | J76: 57.1 | K76: 54.5 | L76: 57.2 | M76: 72.7 | N76: 81 | O76: 81 | P76: 100.9 | Q76: 100.9 | R76: 106.1
A77: P08 | B77: 1株当たり純資産（円） BPS （￥） | C77: KPI | D77: 220.95 | E77: 228.41 | F77: 263.75 | G77: 325.83 | H77: 385.46 | I77: 413.88 | J77: 437.42 | K77: 506.79 | L77: 536.43 | M77: 565.64 | N77: 584.3 | O77: 584.3 | P77: 617.59 | Q77: 617.59 | R77: 640.96
A78: P10 | B78: インタレストカバレッジレシオ（倍） Interest Coverage Ratio（times） | C78: KPI | D78: 59.3 | E78: 67.2 | F78: 98.1 | G78: 334.5 | H78: 297.4 | I78: 108.7 | J78: 335.2 | K78: 1523.8 | L78: 6779,1 | M78: 272.8 | N78: 564.8 | O78: 564.8 | P78: 137.1 | Q78: 137.1 | R78: 137.6
A79: P06 | B79: 中国（香港含む） China (Including Hong Kong) | C79: OVS | D79: 9090217947 | E79: 10167944277 | F79: 14112288703 | G79: 22417685926 | H79: 26384703761 | I79: 2.829110135e+10 | J79: 2.798591706e+10 | K79: 3.190285946e+10 | L79: 3.332067322e+10 | M79: 3.518418593e+10 | N79: 3.570115415e+10 | O79: N/A | P79: 3.439255517e+10 | Q79: 3.439255517e+10 | R79: 3.212923915e+10
A80: P06 | B80: その他アジア Other Asian Countries | C80: OVS | D80: 3908427250 | E80: 4221742214 | F80: 5243204945 | G80: 6125258714 | H80: 6800205316 | I80: 7326208500 | J80: 6569779904 | K80: 7215613570 | L80: 9052082879 | M80: 8578088740 | N80: 7750911584 | O80: N/A | P80: 8092801079 | Q80: 8092801079 | R80: 9521800658
A81: P06 | B81: 北米 North America | C81: OVS | D81: 3855035176 | E81: 3842864837 | F81: 3668139207 | G81: 5418672050 | H81: 6376630731 | I81: 7671967987 | J81: 7061855797 | K81: 8109243050 | L81: 7715796298 | M81: 7831014232 | N81: 7924840814 | O81: N/A | P81: 8669968911 | Q81: 8669968911 | R81: 1.148628618e+10
A82: P06 | B82: 欧州 Europe | C82: OVS | H82: 2090096488 | I82: 2400350786 | J82: 2262535579 | K82: 2666091414 | L82: 2845142314 | M82: 2968769504 | N82: 2855430933 | O82: N/A | P82: 3650915698 | Q82: 3650915698 | R82: 3632482521
A83: P06 | B83: 中近東 Near and Middle East | C83: OVS | D83: 1411979969 | E83: 1532881695 | F83: 1878487154 | G83: 2118053442 | H83: 2262440798 | I83: 2684261941 | J83: 2382415731 | K83: 2019143096 | L83: 2285634824 | M83: 2303872593 | N83: 2117495540 | O83: N/A | P83: 2007038262 | Q83: 2007038262 | R83: 2550169589
A84: P06 | B84: その他地域 Other Region | C84: OVS | D84: 1588732295 | E84: 1776596485 | F84: 2020730905 | G84: 2412441343 | H84: 986708066 | I84: 1205243699 | J84: 976494540.6 | K84: 915655250.9 | L84: 1073062086 | M84: 957636820.6 | N84: 854967340 | O84: N/A | P84: 953812146.5 | Q84: 953812146.5 | R84: 1369292882
A85: P06 | B85: 1 U. S. dollar | C85: OVS | D85: 87.79 | E85: 79.79 | F85: 79.8 | G85: 97.72 | H85: 105.78 | I85: 121.1 | J85: 108.77 | K85: 112.16 | L85: 110.43 | M85: 109.02 | N85: 106.77 | O85: 106.77 | P85: 109.85 | Q85: 109.85 | R85: 131.55
A86: P06 | B86: 1 Chinese yuan | C86: OVS | D86: 12.96 | E86: 12.34 | F86: 12.66 | G86: 15.91 | H86: 17.17 | I86: 19.22 | J86: 16.35 | K86: 16.62 | L86: 16.7 | M86: 15.77 | N86: 15.47 | O86: 15.47 | P86: 17.03 | Q86: 17.03 | R86: 19.5
A87: P04 | B87: 日本事業-売上高 | C87: SEG | D87: 「p04-05」参照 | E87: 「p04-05」参照 | F87: 「p04-05」参照 | G87: 「p04-05」参照 | H87: 「p04-05」参照 | I87: 「p04-05」参照 | J87: 「p04-05」参照 | K87: 「p04-05」参照 | L87: 「p04-05」参照 | M87: 「p04-05」参照 | N87: 44977202786 | O87: 41231000000 | P87: 38264203632 | Q87: 38264203632 | R87: 36323488150
A88: P04 | B88: 中国事業-売上高 | C88: SEG | D88: 「p04-05」参照 | E88: 「p04-05」参照 | F88: 「p04-05」参照 | G88: 「p04-05」参照 | H88: 「p04-05」参照 | I88: 「p04-05」参照 | J88: 「p04-05」参照 | K88: 「p04-05」参照 | L88: 「p04-05」参照 | M88: 「p04-05」参照 | N88: 37732656350 | O88: 36121000000 | P88: 37239589749 | Q88: 37239589749 | R88: 34776327222
A89: P04 | B89: シンガポール事業-売上高 | C89: SEG | D89: 「p04-05」参照 | E89: 「p04-05」参照 | F89: 「p04-05」参照 | G89: 「p04-05」参照 | H89: 「p04-05」参照 | I89: 「p04-05」参照 | J89: 「p04-05」参照 | K89: 「p04-05」参照 | L89: 「p04-05」参照 | M89: 「p04-05」参照 | N89: 12184226998 | O89: 12184226998 | P89: 12619539216 | Q89: 12619539216 | R89: 14153520062
A90: P04 | B90: ランシノ事業-売上高 | C90: SEG | D90: 「p04-05」参照 | E90: 「p04-05」参照 | F90: 「p04-05」参照 | G90: 「p04-05」参照 | H90: 「p04-05」参照 | I90: 「p04-05」参照 | J90: 「p04-05」参照 | K90: 「p04-05」参照 | L90: 「p04-05」参照 | M90: 「p04-05」参照 | N90: 12473181155 | O90: 12473181155 | P90: 13320740974 | Q90: 13320740974 | R90: 16917441496
A91: P04 | B91: 連結計上額-売上高 | C91: SEG | D91: 「p04-05」参照 | E91: 「p04-05」参照 | F91: 「p04-05」参照 | G91: 「p04-05」参照 | H91: 「p04-05」参照 | I91: 「p04-05」参照 | J91: 「p04-05」参照 | K91: 「p04-05」参照 | L91: 「p04-05」参照 | M91: 「p04-05」参照 | N91: =N3 -> 99380313573 | O91: =O3 -> 94021000000 | P91: =P3 -> 93080837761 | Q91: =Q3 -> 93080837761 | R91: =R3 -> 94921917079
A92: P04 | B92: 日本事業-総利益 | C92: SEG | D92: 「p04-05」参照 | E92: 「p04-05」参照 | F92: 「p04-05」参照 | G92: 「p04-05」参照 | H92: 「p04-05」参照 | I92: 「p04-05」参照 | J92: 「p04-05」参照 | K92: 「p04-05」参照 | L92: 「p04-05」参照 | M92: 「p04-05」参照 | N92: 17767157880 | O92: =O87*34% -> 1.401854e+10 | P92: 13142696745 | Q92: 13142696745 | R92: 11775312105
A93: P04 | B93: 中国事業-総利益 | C93: SEG | D93: 「p04-05」参照 | E93: 「p04-05」参照 | F93: 「p04-05」参照 | G93: 「p04-05」参照 | H93: 「p04-05」参照 | I93: 「p04-05」参照 | J93: 「p04-05」参照 | K93: 「p04-05」参照 | L93: 「p04-05」参照 | M93: 「p04-05」参照 | N93: 20488889792 | O93: =O88*52.3% -> 18891283000 | P93: 18971506044 | Q93: 18971506044 | R93: 18271959164
A94: P04 | B94: シンガポール事業-総利益 | C94: SEG | D94: 「p04-05」参照 | E94: 「p04-05」参照 | F94: 「p04-05」参照 | G94: 「p04-05」参照 | H94: 「p04-05」参照 | I94: 「p04-05」参照 | J94: 「p04-05」参照 | K94: 「p04-05」参照 | L94: 「p04-05」参照 | M94: 「p04-05」参照 | N94: 4680228293 | O94: 4680228293 | P94: 4887794759 | Q94: 4887794759 | R94: 5782763041
A95: P04 | B95: ランシノ事業-総利益 | C95: SEG | D95: 「p04-05」参照 | E95: 「p04-05」参照 | F95: 「p04-05」参照 | G95: 「p04-05」参照 | H95: 「p04-05」参照 | I95: 「p04-05」参照 | J95: 「p04-05」参照 | K95: 「p04-05」参照 | L95: 「p04-05」参照 | M95: 「p04-05」参照 | N95: 6930587010 | O95: 6930587010 | P95: 7125084018 | Q95: 7125084018 | R95: 8942617098
A96: P04 | B96: 連結計上額-総利益 | C96: SEG | D96: 「p04-05」参照 | E96: 「p04-05」参照 | F96: 「p04-05」参照 | G96: 「p04-05」参照 | H96: 「p04-05」参照 | I96: 「p04-05」参照 | J96: 「p04-05」参照 | K96: 「p04-05」参照 | L96: 「p04-05」参照 | M96: 「p04-05」参照 | N96: =N5 -> 49921066075 | O96: =O5 -> 44562000000 | P96: =P5 -> 44072316537 | Q96: =Q5 -> 44072316537 | R96: =R5 -> 44834416896
A97: P04 | B97: 日本事業-セグメント利益 | C97: SEG | D97: 「p04-05」参照 | E97: 「p04-05」参照 | F97: 「p04-05」参照 | G97: 「p04-05」参照 | H97: 「p04-05」参照 | I97: 「p04-05」参照 | J97: 「p04-05」参照 | K97: 「p04-05」参照 | L97: 「p04-05」参照 | M97: 「p04-05」参照 | N97: 3008574330 | O97: 2772000000 | P97: 2065928363 | Q97: 2065928363 | R97: 1491078639
A98: P04 | B98: 中国事業-セグメント利益 | C98: SEG | D98: 「p04-05」参照 | E98: 「p04-05」参照 | F98: 「p04-05」参照 | G98: 「p04-05」参照 | H98: 「p04-05」参照 | I98: 「p04-05」参照 | J98: 「p04-05」参照 | K98: 「p04-05」参照 | L98: 「p04-05」参照 | M98: 「p04-05」参照 | N98: 12600687596 | O98: 12600000000 | P98: 11792310096 | Q98: 11792310096 | R98: 10408236477
A99: P04 | B99: シンガポール事業-セグメント利益 | C99: SEG | D99: 「p04-05」参照 | E99: 「p04-05」参照 | F99: 「p04-05」参照 | G99: 「p04-05」参照 | H99: 「p04-05」参照 | I99: 「p04-05」参照 | J99: 「p04-05」参照 | K99: 「p04-05」参照 | L99: 「p04-05」参照 | M99: 「p04-05」参照 | N99: 1647501349 | O99: 1647501349 | P99: 1811584882 | Q99: 1811584882 | R99: 2140424185
A100: P04 | B100: ランシノ事業-セグメント利益 | C100: SEG | D100: 「p04-05」参照 | E100: 「p04-05」参照 | F100: 「p04-05」参照 | G100: 「p04-05」参照 | H100: 「p04-05」参照 | I100: 「p04-05」参照 | J100: 「p04-05」参照 | K100: 「p04-05」参照 | L100: 「p04-05」参照 | M100: 「p04-05」参照 | N100: 1370266119 | O100: 1370266119 | P100: 953496726 | Q100: 953496726 | R100: 1154299083
A101: P04 | B101: 連結計上額-セグメント利益 | C101: SEG | D101: 「p04-05」参照 | E101: 「p04-05」参照 | F101: 「p04-05」参照 | G101: 「p04-05」参照 | H101: 「p04-05」参照 | I101: 「p04-05」参照 | J101: 「p04-05」参照 | K101: 「p04-05」参照 | L101: 「p04-05」参照 | M101: 「p04-05」参照 | N101: =N7 -> 15316065164 | O101: =O7 -> 15080000000 | P101: =P7 -> 13336607785 | Q101: =Q7 -> 13336607785 | R101: =R7 -> 12195983601
A102: P01 | B102: フリー・キャッシュ・フロー Free Cash Flows | C102: KPI | D102: =D53+D57 -> -743307138 | E102: 2340946489 | F102: 5807859785 | G102: 4135554531 | H102: 7001339193 | I102: 10147690489 | J102: 12955698126 | K102: 13507216158 | L102: 8928242503 | M102: 10103036130 | N102: 14584711205 | O102: 14584711205 | P102: 5300527183 | Q102: 5300527183 | R102: 7551453366
A103: P01 | B103: ROA(%) | C103: KPI | D103: 10.8 | E103: 11.4 | F103: 16 | G103: 20.7 | H103: 20.4 | I103: 20.6 | J103: =ROUND(J10/AVERAGE(I26:J26),3)*100 -> 21.5 | K103: =ROUND(K10/AVERAGE(J26:K26),3)*100 -> 24.6 | L103: =ROUND(L10/AVERAGE(K26:L26),3)*100 -> 24 | M103: =ROUND(M10/AVERAGE(L26:M26),3)*100 -> 19.6 | N103: =ROUND(N10/AVERAGE(M26:N26),3)*100 -> 17.5 | O103: =ROUND(O10/AVERAGE(M26,O26),3)*100 -> 17.5 | P103: =ROUND(P10/AVERAGE(O26:P26),3)*100 -> 15.3 | Q103: =ROUND(Q10/AVERAGE(O26,Q26),3)*100 -> 15.3 | R103: =ROUND(R10/AVERAGE(Q26,R26),3)*100 -> 13.5
A104: P01 | B104: ROE(%) | C104: KPI | D104: 11.2 | E104: 11.8 | F104: 15.5 | G104: 19.7 | H104: 19.8 | I104: 21.3 | J104: =ROUND(J17/AVERAGE((I42-I41),(J42-J41)),3)*100 -> 21.8 | K104: =ROUND(K17/AVERAGE((J42-J41),(K42-K41)),3)*100 -> 25.7 | L104: =ROUND(L17/AVERAGE((K42-K41),(L42-L41)),3)*100 -> 22.8 | M104: =ROUND(M17/AVERAGE((L42-L41),(M42-M41)),3)*100 -> 17.5 | N104: =ROUND(N17/AVERAGE((M42-M41),(N42-N41)),3)*100 -> 15.5 | O104: =ROUND(O17/AVERAGE((M42-M41),(O42-O41)),3)*100 -> 15.5 | P104: =ROUND(P17/AVERAGE((N42-N41),(P42-P41)),3)*100 -> 12.2 | Q104: =ROUND(Q17/AVERAGE((O42-O41),(Q42-Q41)),3)*100 -> 12.2 | R104: =ROUND(R17/AVERAGE((Q42-Q41),(R42-R41)),3)*100 -> 11.4
A105: P01 | B105: 投下資本利益率（%） ROIC (%) | C105: KPI | G105: 14.2 | H105: 13.7 | I105: 15.1 | J105: =ROUND(J7*(1-0.407)/AVERAGE((J42+J45),(I42+I45)),3)*100 -> 16.3
A106: P01 | B106: 投下資本利益率（%） ROIC (%) | C106: KPI | J106: =ROUND(J7*(1-0.3)/AVERAGE((J42+J45),(I42+I45)),3)*100 -> 19.2 | K106: =ROUND(K7*(1-0.3)/AVERAGE((K42+K45),(J42+J45)),3)*100 -> 22.2 | L106: =ROUND(L7*(1-0.3)/AVERAGE((L42+L45),(K42+K45)),3)*100 -> 21.2 | M106: =ROUND(M7*(1-0.3)/AVERAGE((M42+M45),(L42+L45)),3)*100 -> 17.4 | N106: =ROUND(N7*(1-0.3)/AVERAGE((N42+N45),(M42+M45)),3)*100 -> 15 | O106: =ROUND(O7*(1-0.3)/AVERAGE((O42+O45),(M42+M45)),3)*100 -> 14.8 | P106: =ROUND(P7*(1-0.3)/AVERAGE((P42+P45),(N42+N45)),3)*100 -> 12.5 | Q106: =ROUND(Q7*(1-0.3)/AVERAGE((Q42+Q45),(O42+O45)),3)*100 -> 12.5 | R106: =ROUND(R7*(1-0.3)/AVERAGE((R42+R45),(P42+P45)),3)*100 -> 10.9
A107: P02 | B107: その他流動資産 Other Current Assets | C107: BS | D107: =D21-SUM(D18,D19,D20) -> 2911059741 | E107: 2823431738 | F107: 3171871000 | G107: 4340894825 | H107: 4258645374 | I107: 4598651743 | J107: 3760707797 | K107: 4331146219 | L107: 4887297746 | M107: 4783744892 | N107: 4724814698 | O107: 4724814698 | P107: 6059521431 | Q107: =Q21-SUM(Q18,Q19,Q20) -> 6059521431 | R107: 6355095464
A108: P02 | B108: その他の固定資産 Other Fixed Assets | C108: BS | D108: =D25-SUM(D22,D23,D24) -> 608230054 | E108: 640968841 | F108: 630655399 | G108: 678940348 | H108: 700655126 | I108: 734044987 | J108: 792388957 | K108: 845620211 | L108: 1176625265 | M108: 1250550405 | N108: 1333038343 | O108: 1333038343 | P108: 1590729269 | Q108: 1590729269 | R108: 1601782897
A109: P02 | B109: その他流動負債 Other Current Liabilities | C109: BS | D109: =D31-SUM(D27,D28,D29,D30) -> 4453831712 | E109: 4577029939 | F109: 2832207448 | G109: 2961031139 | H109: 4711859087 | I109: 5932596313 | J109: 10792800379 | K109: 5723136541 | L109: 4768648885 | M109: 5876133127 | N109: 5320647168 | O109: 5320647168 | P109: 6668201451 | Q109: 6668201451 | R109: 6212678558
A110: P02 | B110: その他固定負債 Other Fixed Liabilities | C110: BS | D110: =D33-D32 -> 1798570158 | E110: 1812051697 | F110: 2353145104 | G110: 3143315851 | H110: 3868885715 | I110: 3926934115 | J110: 3770877442 | K110: 3982304250 | L110: 3412776057 | M110: 4389350201 | N110: 5181726329 | O110: 5181726329 | P110: 6159853398 | Q110: 6159853398 | R110: 6217709730
A111: P03 | B111: 売上総利益率（%） Gross Margin（%） | C111: PL | D111: =ROUND(D5/D$3,3)*100 -> 40.8 | E111: 41.1 | F111: 42.7 | G111: 44.5 | H111: 45.5 | I111: 47 | J111: 47.2 | K111: 49.3 | L111: 51.4 | M111: 50.8 | N111: 50.2 | O111: 47.4 | P111: 47.3 | Q111: 47.3 | R111: 47.2
A112: P03 | B112: 営業利益率（%） Operating Margin（%） | C112: PL | D112: =ROUND(D7/D$3,3)*100 -> 8 | E112: 8.5 | F112: 10.9 | G112: 13.4 | H112: 15.2 | I112: 15.7 | J112: 16.9 | K112: 18.9 | L112: 18.7 | M112: 17.1 | N112: 15.4 | O112: 16 | P112: 14.3 | Q112: 14.3 | R112: 12.8
A113: P03 | B113: 経常利益率（%） Ordinary Margin（%） | C113: PL | D113: =ROUND(D10/D$3,3)*100 -> 7.8 | E113: 8.3 | F113: 11.4 | G113: 14.2 | H113: 15.8 | I113: 16.4 | J113: 17.4 | K113: 19.6 | L113: 19.5 | M113: 17.3 | N113: 16.2 | O113: 17.1 | P113: 15.7 | Q113: 15.7 | R113: 14.2
A114: P03 | B114: 当期純利益 Net Income | C114: PL | D114: =D13-D14-D15 -> 3016887924 | E114: 3271301101 | F114: 4714506754 | G114: 7203311405 | H114: 8636923094 | I114: 10462883307 | J114: 11342669397 | K114: 14759676931 | L114: 14594816337 | M114: 11769855683 | N114: 10860015345 | O114: 10860000000 | P114: 8979058331 | Q114: 8979058331 | R114: =R13-R14-R15 -> 8761501978
A115: P03 | B115: 親会社株主に帰属する当期純利益率（%） Net Income Attributable to Owners of Parent Margin（%） | C115: PL | D115: =ROUND(D17/D$3,3)*100 -> 5.1 | E115: 5.4 | F115: 7 | G115: 9 | H115: 10 | I115: 11.1 | J115: 11.7 | K115: 14.2 | L115: 13.6 | M115: 11.5 | N115: 10.7 | O115: 11.3 | P115: 9.4 | Q115: 9.4 | R115: 9
A116: P07 | B116: その他（営業） Other | C116: CF | D116: =D53-SUM(D52,D51,D50,D49,D48,D47,D46) -> 233042101 | E116: 420681852 | F116: -125215787 | G116: -456889586 | H116: 529271667 | I116: 698308276 | J116: 681087417 | K116: -475716087 | L116: -1249652992 | M116: 1668216683 | N116: 1934993320 | O116: 1935373871 | P116: 1227741837 | Q116: 1227741837 | R116: -54257809
A117: P07 | B117: その他（投資） Other | C117: CF | D117: =D57-SUM(D56,D55,D54) -> -1091018967 | E117: -338267184 | F117: -10164780 | G117: -133852796 | H117: -27358494 | I117: 14373182 | J117: 11710248 | K117: -494816998 | L117: 232795493 | M117: -47415282 | N117: -16141073 | O117: -16141073 | P117: 270990149 | Q117: 270990149 | R117: -108036969
A118: P07 | B118: その他（財務） Other | C118: CF | D118: =D63-SUM(D62,D61,D60,D59,D58) -> -60372316 | E118: -55755899 | F118: -50748990 | G118: -71871369 | H118: -540901969 | I118: -72644534 | J118: -69127446 | K118: -71508719 | L118: -77723905 | M118: -503902421 | N118: -713725528 | O118: -713725528 | P118: 47865315 | Q118: 47865315 | R118: -692058068
A119: P08 | B119: 売上高成長率（%） Growth Rate of Net Sales（%） | C119: PL | D119: 6.8 | E119: =(ROUND(E3/D3,3)-1)*100 -> 3.7 | F119: 10 | G119: 19 | H119: 8.6 | I119: 9.6 | J119: 2.6 | K119: 8.4 | L119: 2.1 | M119: -4.5 | N119: -0.6 | O119: N/A | P119: =(ROUND(P3/N3,3)-1)*100 -> -6.3 | Q119: =(ROUND(Q3/O3,3)-1)*100 -> -1 | R119: =(ROUND(R3/P3,3)-1)*100 -> 2
A120: P08 | B120: 営業利益成長率（%） Growth Rate of Operating Income（%） | C120: PL | D120: -1.2 | E120: =(ROUND(E7/D7,3)-1)*100 -> 10.9 | F120: 40.5 | G120: 46.3 | H120: 23.3 | I120: 13.6 | J120: 10.3 | K120: 21.2 | L120: 1 | M120: -12.9 | N120: -10.3 | O120: N/A | P120: =(ROUND(P7/N7,3)-1)*100 -> -12.9 | Q120: =(ROUND(Q7/O7,3)-1)*100 -> -11.6 | R120: =(ROUND(R7/P7,3)-1)*100 -> -8.6
A121: P08 | B121: 親会社株主に帰属する当期純利益成長率（%） Growth Rate of Net Income Attributable to Owners of Parent （%） | C121: PL | D121: 3.1 | E121: =(ROUND(E17/D17,3)-1)*100 -> 8.7 | F121: 43.7 | G121: 52.7 | H121: 21 | I121: 20.7 | J121: 9 | K121: 30.5 | L121: -1.9 | M121: -19 | N121: -7.8 | O121: =(ROUND(O17/M17,3)-1)*100 -> -7.8 | P121: =(ROUND(P17/N17,3)-1)*100 -> -17.5 | Q121: =(ROUND(Q17/O17,3)-1)*100 -> -17.5 | R121: =(ROUND(R17/P17,3)-1)*100 -> -2.3
A122: P08 | B122: 1株当たり当期純利益成長率（%） Growth Rate of EPS（%） | C122: PL | D122: 3.1 | E122: =(ROUND(E68/D68,3)-1)*100 -> 8.7 | F122: 43.3 | G122: 52.7 | H122: 21.3 | I122: 20.7 | J122: 9 | K122: 30.5 | L122: -1.9 | M122: -18.9 | N122: -7.7 | O122: =(ROUND(O68/M68,3)-1)*100 -> -7.7 | P122: =(ROUND(P68/N68,3)-1)*100 -> -17.4 | Q122: =(ROUND(Q68/O68,3)-1)*100 -> -17.4 | R122: =(ROUND(R68/Q68,3)-1)*100 -> -2.3
A123: P08 | B123: 1株当たり純資産成長率（%） Growth Rate of BPS（%） | C123: PL | D123: 2.9 | E123: =(ROUND(E77/D77,3)-1)*100 -> 3.4 | F123: 15.5 | G123: 23.5 | H123: 18.3 | I123: 7.4 | J123: 5.7 | K123: 15.9 | L123: 5.8 | M123: 5.4 | N123: 3.3 | O123: =(ROUND(O77/M77,3)-1)*100 -> 3.3 | P123: =(ROUND(P77/N77,3)-1)*100 -> 5.7 | Q123: =(ROUND(Q77/O77,3)-1)*100 -> 5.7 | R123: =(ROUND(R77/P77,3)-1)*100 -> 3.8
A124: P09 | B124: 売上高販管費率（%） SG&A Ratio（%） | C124: PL | D124: =ROUND(D6/D$3,3)*100 -> 32.8 | E124: 32.6 | F124: 31.8 | G124: 31.1 | H124: 30.3 | I124: 31.3 | J124: 30.3 | K124: 30.4 | L124: 32.7 | M124: 33.7 | N124: 34.8 | O124: 31.4 | P124: 33 | Q124: 33 | R124: 34.4
A125: P10 | B125: 総資産回転率（回） Total Asset Turnover（times） | C125: KPI | D125: =ROUND(D$3/D26,2) -> 1.34 | E125: 1.35 | F125: 1.34 | G125: 1.34 | H125: 1.16 | I125: 1.25 | J125: 1.2 | K125: 1.21 | L125: 1.22 | M125: 1.11 | N125: 1.06 | O125: 1.01 | P125: 0.95 | Q125: 0.95 | R125: 0.93
A126: P10 | B126: 純資産回転率（回） Net Asset Turnover（times） | C126: KPI | D126: =ROUND(D$3/D42,2) -> 2.11 | E126: 2.12 | F126: 2.01 | G126: 1.94 | H126: 1.78 | I126: 1.82 | J126: 1.76 | K126: 1.63 | L126: 1.57 | M126: 1.42 | N126: 1.37 | O126: 1.29 | P126: 1.21 | Q126: 1.21 | R126: 1.19
A127: P10 | B127: たな卸資産回転率（回） Inventory Turnover（times） | C127: KPI | D127: =ROUND((D3-D5)/D44,2) -> 5.83 | E127: 5.03 | F127: 5.51 | G127: 5.34 | H127: 5.39 | I127: 5.52 | J127: 6.57 | K127: 5.97 | L127: 4.8 | M127: 4.39 | N127: 4.35 | O127: 4.35 | P127: 3.86 | Q127: 3.86 | R127: 3.27
A128: P10 | B128: 自己資本比率（%） Equity Ratio（%） | C128: KPI | D128: =ROUND((D42-D41)/D43,3)*100 -> 62.2 | E128: 62.7 | F128: 65.3 | G128: 67.5 | H128: 63.8 | I128: 67 | J128: 66.4 | K128: 71.9 | L128: 75 | M128: 74.8 | N128: 74.8 | O128: 74.8 | P128: 75.4 | Q128: 75.4 | R128: 75.4
A129: P10 | B129: 流動比率（%） Current Ratio（%） | C129: KPI | D129: =ROUND(D21/D$31,3)*100 -> 197.6 | E129: 205.5 | F129: 250.5 | G129: 275.9 | H129: 307.9 | I129: 343.9 | J129: 258.4 | K129: 329.2 | L129: 372.5 | M129: 396 | N129: 416.4 | O129: 416.4 | P129: 439.6 | Q129: 439.6 | R129: 431.4
A130: P10 | B130: D/Eレシオ（倍） Debt Equity Ratio（times） | C130: KPI | D130: =ROUND(D45/(D42-D41),3) -> 0.184 | E130: 0.179 | F130: 0.114 | G130: 0.087 | H130: 0.174 | I130: 0.127 | J130: 0.109 | K130: 0 | L130: 0 | M130: 0 | N130: 0 | O130: 0 | P130: 0 | Q130: 0 | R130: 0

Sheet 00
A12: Investor's Guide 2022
A13: For the Fiscal Years Ended January 31, 2011 - December 31, 2022

Sheet 01
A1: インベスターズガイド2022 目次 | K1: 免責事項
A2: Investor's Guide 2022 Contents | K2: Disclaimer
A4: 主要指標…………………………………………………………………………………………2 | F4: 2 | K4: 本インベスターズガイドは投資判断の参考となる情報提供のみを目的として作成したものです。当社株式の購入や売却などを勧誘するものではありません。
A5: Performance Highlights
A6: 連結貸借対照表……………………………………………………………………………………3 | F6: 3 | K6: 投資に関する決定は、投資家ご自身の判断において行われるようお願いいたします。
A7: Consolidated Balance Sheets
A8: 連結損益計算書 ……………………………………………………………………………………4 | F8: 4 | K8: 掲載内容については細心の注意を払っていますが、掲載された情報に誤りがあった場合、当社は一切責任を負うものではありませんのでご了承ください。
A9: Consolidated Statements of Income
A10: セグメント別情報 ………………………………………………………………………………… | F10: 5 | K10: Information contained in this Investor's Guide is provided solely for informational purposes and is not an offer or a solicitation of an offer to buy or sell securities. You are requested to make investment decisions using your own judgment. Although the Company has made sufficient effort to ensure the accuracy of information provided herein, the Company assumes no responsibility for any damages or liabilities including, but not limited to, those due to incorrect information or any other reason.
A11: Segment Information
A12: 海外売上高地域別状況 ……………………………………………………………………………6 | F12: 6
A13: Overseas Business Sales by Region
A14: 連結キャッシュ・フロー計算書 …………………………………………………………………… | F14: 7
A15: Consolidated Statement of Cash Flows
A16: 成長性指標…………………………………………………………………………………………… | F16: 8
A17: Growth Indicators
A18: 収益性指標…………………………………………………………………………………………… | F18: 9 | K18: 連結決算日の変更
A19: Profitability Indicators | K19: Change of Consolidated Closing Date
A20: 効率性指標 ………………………………………………………………………………… | F20: 9
A21: Efficiency Indicators | K21: 当社は、連結決算日を１月31日としていましたが、海外連結子会社と決算期を統一することで、グローバルな事業運営の推進及び経営情報の透明性の向上を図るため、2019年４月25日開催の第62期定時株主総会の決議により、連結決算日を12月31日に変更しています。
A22: 安全性指標 ………………………………………………………………………………………… | F22: 9
A23: Stability Indicators
A24: 株式情報 ………………………………………………………………………………………… | F24: 10
A25: Stock Information | K25: この変更に伴い、経過期間となる連結会計年度（2019年12月期）は、2019年２月１日から12月31日までの11ヶ月間となっています。
K28: これに伴い、1月末決算であった当社および国内子会社につきましては2019年２月１日から2019年12月31日までの11ヶ月間を、海外子会社につきましては、従来通り、2019年１月１日から2019年12月31日までの12ヶ月を連結対象期間としています。
A29: 会社概要
A30: https://www.pigeon.co.jp/about/companyinfo/company/
A31: Company Profile | K31: Our consolidated closing date used to be January 31. However, the decision was made at the 62nd Ordinary General Meeting of Shareholeders (for the fiscal year ended January 31, 2019) on April 25, 2019, to change the consolidated closing date to December 31. This is intended to optimize our global business operations and improve the transparency of corporate information by unifying the fiscal period with our overseas consolidated subsidiaries. As a result of this change, the consolidated fiscal year ended December 31, 2019 has changed to the 11 months from February 1, 2019 to December 31, 2019, as a transition period. In the consolidated accounting year under review, the consolidation period for the Company and its Japanese subsidiaries that used to settle their accounts on January 31 shall be the 11-month period from February 1 to December 31, 2019. For overseas subsidiaries that currently settle their accounts on December 31, or that are doing so temporarily, the consolidation period shall continue to be the 12-month period from January 1 to December 31.
A32: https://www.pigeon.com/about/corporate/companyprofile/
A35: 株価
A36: https://www.pigeon.co.jp/ir/stockinfo/stock/
A37: Stock Price
A38: https://www.pigeon.com/ir/stockinfo/stock/
K44: 会計方針の変更
K45: Change in accounting policies
K47: 会計方針の変更として、「収益認識に関する会計基準」（企業会計基準第29号 2020年３月31日）等を2021年12月期の期首から適用しております。
K49: As a change in accounting policies, the Group has applied the Accounting Standard for Revenue Recognition (ASBJ Statement No. 29; March 31, 2020) from the beginning of the consolidated fiscal year ended December 31, 2021.
K53: その他の注意事項
K54: Note
K55: 本インベスターズガイドの財務内容に係る数値は、単位未満を切り捨てて表示しています。
K57: 表中の括弧内はマイナスの意味です。
K59: Financial figures in this Investor's Guide have been rounded down to the nearest unit. Figures in parentheses denote negative amounts.
S62: 2022年12月31日現在
S63: As of December 31, 2022

Sheet 02
A1: ■主要指標 Performance Highlights
A2: 2011年1月31日～2022年12月31日に終了した会計年度 | P2: (百万円)
A3: Fiscal years ended Jan. 31, 2011 through Dec. 31, 2022 | N3: (¥ millions)
C4: 旧基準 Old Standards | N4: 新基準 (注9) New Standards (Note 9)
A5: 科目 Item | B5: 期別 Period | C5: 2011 | D5: 2012 | E5: 2013 | F5: 2014 | G5: 2015 | H5: 2016 | I5: 2017 | J5: 2018 | K5: Jan. 2019 | L5: Dec. 2019 | M5: 2020 | N5: 2020 | O5: 2021 | P5: 2022
A6: 売上高 | C6: 57061 | D6: 59145 | E6: 65075 | F6: 77465 | G6: 84113 | H6: 92209 | I6: 94640 | J6: 102563 | K6: 104747 | L6: 100017 | M6: 99380 | N6: 94021 | O6: 93080 | P6: 94921
A7: Net Sales
A8: 営業利益 | C8: 4546 | D8: 5042 | E8: 7086 | F8: 10365 | G8: 12780 | H8: 14521 | I8: 16015 | J8: 19412 | K8: 19612 | L8: 17072 | M8: 15316 | N8: 15080 | O8: 13336 | P8: 12195
A9: Operating Income
A10: 親会社株主に帰属する当期純利益（注1） | C10: 2928 | D10: 3183 | E10: 4573 | F10: 6985 | G10: 8451 | H10: 10197 | I10: 11118 | J10: 14515 | K10: 14238 | L10: 11538 | M10: 10643 | N10: 10643 | O10: 8785 | P10: 8581
A11: Net Income Attributable to Owners of Parent (Note 1)
A12: １株当たり当期純利益（注2）（円） | C12: 24.45 | D12: 26.58 | E12: 38.09 | F12: 58.17 | G12: 70.55 | H12: 85.15 | I12: 92.84 | J12: 121.2 | K12: 118.89 | L12: 96.37 | M12: 88.93 | N12: 88.93 | O12: 73.44 | P12: 71.72
A13: EPS (Note 2) (¥)
A14: フリー・キャッシュ・フロー（注3） | C14: -743 | D14: 2340 | E14: 5807 | F14: 4135 | G14: 7001 | H14: 10147 | I14: 12955 | J14: 13507 | K14: 8928 | L14: 10103 | M14: 14584 | N14: 14584 | O14: 5300 | P14: 7551
A15: Free Cash Flows (Note 3)
A16: キャッシュコンバージョンサイクル（日） | C16: ー | D16: ー | E16: ー | F16: 78.8 | G16: 88.8 | H16: 81 | I16: 74.4 | J16: 67.6 | K16: 75.6 | L16: 88.7 | M16: 92.3 | N16: 95.6 | O16: 105.9 | P16: 119.2
A17: Cash Conversion Cycle (days)
A18: 減価償却費（のれん償却含む）（注4） | C18: 1364 | D18: 1381 | E18: 1426 | F18: 1663 | G18: 1705 | H18: 2133 | I18: 2042
A19: Depreciation (including Amortization of Goodwill) (Note 4) | I19: 2357 | J19: 2451 | K19: 2804 | L19: 3588 | M19: 3972 | N19: 4161 | O19: 4161 | P19: 4947
A20: 設備投資額（注5） | C20: ー | D20: ー | E20: 1204 | F20: 3091 | G20: 3204 | H20: 2639 | I20: 2328
A21: Capital Investment (Note 5) | I21: 2498 | J21: 3546 | K21: 5376 | L21: 4059 | M21: 4185 | N21: 4185 | O21: 6735 | P21: 7259
A22: 研究開発費（注6） | C22: 1359 | D22: 1497 | E22: 1620 | F22: 1730 | G22: 1932 | H22: 2263 | I22: 2263 | J22: 2670 | K22: 3119 | L22: 3059 | M22: 3115 | N22: 3115 | O22: 3603 | P22: 3792
A23: R&D Expenditures (Note 6)
A24: １株当たり配当金（注2）（円） | C24: 14.67 | D24: 14.67 | E24: 19.17 | F24: 29.33 | G24: 35 | H24: 42 | I24: 53 | J24: 66 | K24: 68 | L24: 70 | M24: 72 | N24: 72 | O24: 74 | P24: 76
A25: Dividend per Share (Note 2) (¥)
A26: 配当性向（%） | C26: 60.1 | D26: 55.3 | E26: 50.3 | F26: 50.4 | G26: 49.6 | H26: 49.3 | I26: 57.1 | J26: 54.5 | K26: 57.2 | L26: 72.7 | M26: 81 | N26: 81 | O26: 100.9 | P26: 106.1
A27: Dividend Payout Ratio (%)
A28: ROA（注7）(Note 7) (%) | C28: 10.8 | D28: 11.4 | E28: 16 | F28: 20.7 | G28: 20.4 | H28: 20.6 | I28: 21.5 | J28: 24.6 | K28: 24 | L28: 19.6 | M28: 17.5 | N28: 17.5 | O28: 15.3 | P28: 13.5
A29: ROE（注7）(Note 7) (%) | C29: 11.2 | D29: 11.8 | E29: 15.5 | F29: 19.7 | G29: 19.8 | H29: 21.3 | I29: 21.8 | J29: 25.7 | K29: 22.8 | L29: 17.5 | M29: 15.5 | N29: 15.5 | O29: 12.2 | P29: 11.4
A30: 投下資本利益率（注8）（%） | C30: ー | D30: ー | E30: ー | F30: 14.2 | G30: 13.7 | H30: 15.1 | I30: 16.3
A31: ROIC (Note 8) (%) | I31: 19.2 | J31: 22.2 | K31: 21.2 | L31: 17.4 | M31: 15 | N31: 14.8 | O31: 12.5 | P31: 10.9
A33: （注1）「企業結合に関する会計基準」（企業会計基準第21号 2013年9月13日）等を適用し、従来の「当期純利益」を「親会社株主に帰属する当期純利益」として表示しています。 | F33: Notes | G33: 1: As the Company has applied the “Accounting Standard for Business Combinations” (ASBJ Statement No. 21, September 13, 2013) and others, figures formerly disclosed as “Net Income” are now described as “Net Income Attributable to Owners of Parent.” | P33: 7: ROA is the ratio of ordinary income to total assets. ROE is the ratio calculated by dividing net income for the year by the average equity at the beginning and end of the FY. The denominator for both is the average of the figures at the beginning and end of the fiscal year.
A35: （注2）2013年8月1日を効力発生日として、普通株式１株につき２株の割合で、また2015年5月1日を効力発生日として、普通株式1株につき3株の割合で株式分割を行っています。2011年１月期期首に当該株式分割が行われたと仮定して算出しています。
G37: 2: The Company carried out a 2-for-1 split of common stock, effective August 1, 2013, and a 3-for-1 split of common stock, effective May 1, 2015. Figures have been calculated assuming that those stock splits were conducted at the beginning of the year ended January 31, 2011.
A38: （注3）フリー・キャッシュ・フロー=営業キャッシュ・フロー−投資キャッシュ・フロー | P38: 8: Return on invested capital (ROIC) is defined as net operating profit after tax (NOPAT) divided by invested capital. This figure is calculated using a tax rate of 30.0% from the year ended January 31, 2018 and for the second (bottom) of the two figures for the year ended January 31, 2017; and using a tax rate of 40.7% for the first (top) of the two figures for the year ended January 31, 2017 and before. Invested capital is calculated using the average of the beginning and year-end figures.
A39: （注4）2017年1月期の上段ならびにそれ以前の数値は、減価償却費（有形固定資産）を表示しています。
A41: （注5）2017年1月期の下段ならびにそれ以降の数値は、有形及び無形固定資産と長期前払費用を含めて表示しています。2017年1月期の上段ならびにそれ以前の数値は、有形固定資産取得（計上額）を表示しています。
G42: 3: Free Cash Flows = Net cash from operating activities – Net cash from investing activities.
A44: （注6）人件費を含めた研究開発活動にかかる費用の総額を表示しています。 | G44: 4: The figures for the years ended January 31, 2011 through 2016 and the upper figure for the year ended January 31, 2017 present depreciation of tangible fixed assets.
A45: （注7）ROAは経常利益/総資産、ROEは親会社株主に帰属する当期純利益/自己資本で、分母は期首・期末平均で算出しています。 | P45: 9: As a change in its accounting policy, the Company has applied the “Accounting Standard for Revenue Recognition” (ASBJ Statement No. 29, March 31, 2020) and other standards from the fiscal year ended December 31, 2021. The results listed under “Old standards” in the table are the results based on the accounting standards as of the fiscal year ended December 31, 2020, while the results listed under “New standards” are the results based on the accounting standards after the change. Alongside the results for the fiscal year ended December 31, 2020, a trial calculation of the same results under the new standards is also published.
A47: （注8）ROICはNOPAT/投下資本。税率は2018年1月期以降ならびに2017年1月期の下段は30.0％、2017年１月期の上段ならびにそれ以前の数値は40.7％、投下資本は期首・期末平均で算出しています。 | G47: 5: The figures for the years ended after January 31, 2018 and the lower figure for the year ended January 31, 2017 refer to purchase of tangible and intangible fixed assets including long-term prepaid expenses. The figures for the years ended January 31, 2011 through 2016 and the upper figure for the year ended January 31, 2017 refer to purchase of tangible fixed assets.
A50: （注9）当社は会計方針の変更として、「収益認識に関する会計基準」（企業会計基準第29号 2020年３月31日）等を2021年12月期から適用しています。表にある「旧基準」は2020年12月期時点の会計基準に基づいた実績値、「新基準」は会計基準変更後の実績値となります。なお、2020年12月期の実績につきましては、「新基準」の試算値も併記しています。
G53: 6: Refers to total R&D expenditures, including personnel-related.

Sheet 02_1.主要指標_グラフ用シート (hidden)
C1: ※灰色の部分はいじらない。背後のシマシマ部分を作るために必要な部分です。
C2: ※このシートにあるグラフは参照用です。本物は02sheetです。
C3: ※表の一番右端をオートフィル機能で一列右へ引っ張る。グラフのデータ範囲に新しい列を加えおかしくないことを確認してから「02sheet」のグラフ範囲も同様に新しい列を加える。
C4: ※ROA/ROEとROICの凡例はテキストボックスなのでこのシートにはありません。
C6: =作業用!A6 -> 2011 | D6: =作業用!B6 -> 2012 | E6: =作業用!C6 -> 2013 | F6: =作業用!D6 -> 2014 | G6: =作業用!E6 -> 2015 | H6: =作業用!F6 -> 2016 | I6: =作業用!G6 -> 2017 | J6: =作業用!H6 -> 2018 | K6: Jan. 2019 | L6: Dec. 2019 | M6: =作業用!K6 -> 2020 | N6: 2020(注9) (Note 9) | O6: =作業用!M6 -> 2021 | P6: =作業用!N6 -> 2022
B7: 売上高 | C7: =ROUNDDOWN(_xlfn.XLOOKUP("売上高*",IGデータ共有!$B:$B,IGデータ共有!D:D,,2),-6) -> 57061000000 | D7: =ROUNDDOWN(_xlfn.XLOOKUP("売上高*",IGデータ共有!$B:$B,IGデータ共有!E:E,,2),-6) -> 59145000000 | E7: =ROUNDDOWN(_xlfn.XLOOKUP("売上高*",IGデータ共有!$B:$B,IGデータ共有!F:F,,2),-6) -> 65075000000 | F7: =ROUNDDOWN(_xlfn.XLOOKUP("売上高*",IGデータ共有!$B:$B,IGデータ共有!G:G,,2),-6) -> 77465000000 | G7: =ROUNDDOWN(_xlfn.XLOOKUP("売上高*",IGデータ共有!$B:$B,IGデータ共有!H:H,,2),-6) -> 84113000000 | H7: =ROUNDDOWN(_xlfn.XLOOKUP("売上高*",IGデータ共有!$B:$B,IGデータ共有!I:I,,2),-6) -> 92209000000 | I7: =ROUNDDOWN(_xlfn.XLOOKUP("売上高*",IGデータ共有!$B:$B,IGデータ共有!J:J,,2),-6) -> 94640000000 | J7: =ROUNDDOWN(_xlfn.XLOOKUP("売上高*",IGデータ共有!$B:$B,IGデータ共有!K:K,,2),-6) -> 102563000000 | K7: =ROUNDDOWN(_xlfn.XLOOKUP("売上高*",IGデータ共有!$B:$B,IGデータ共有!L:L,,2),-6) -> 104747000000 | L7: =ROUNDDOWN(_xlfn.XLOOKUP("売上高*",IGデータ共有!$B:$B,IGデータ共有!M:M,,2),-6) -> 100017000000 | M7: =ROUNDDOWN(_xlfn.XLOOKUP("売上高*",IGデータ共有!$B:$B,IGデータ共有!N:N,,2),-6) -> 99380000000 | N7: =ROUNDDOWN(_xlfn.XLOOKUP("売上高*",IGデータ共有!$B:$B,IGデータ共有!O:O,,2),-6) -> 94021000000 | O7: =ROUNDDOWN(_xlfn.XLOOKUP("売上高*",IGデータ共有!$B:$B,IGデータ共有!P:P,,2),-6) -> 93080000000 | P7: =ROUNDDOWN(_xlfn.XLOOKUP("売上高*",IGデータ共有!$B:$B,IGデータ共有!R:R,,2),-6) -> 94921000000
C9: 20000000000 | D9: 20000000000 | E9: 20000000000 | F9: 20000000000 | G9: 20000000000 | H9: 20000000000 | I9: 20000000000 | J9: 20000000000 | K9: 20000000000 | L9: 20000000000 | M9: 20000000000 | N9: 20000000000 | O9: 20000000000 | P9: 20000000000
C10: 20000000000 | D10: 20000000000 | E10: 20000000000 | F10: 20000000000 | G10: 20000000000 | H10: 20000000000 | I10: 20000000000 | J10: 20000000000 | K10: 20000000000 | L10: 20000000000 | M10: 20000000000 | N10: 20000000000 | O10: 20000000000 | P10: 20000000000
C11: 20000000000 | D11: 20000000000 | E11: 20000000000 | F11: 20000000000 | G11: 20000000000 | H11: 20000000000 | I11: 20000000000 | J11: 20000000000 | K11: 20000000000 | L11: 20000000000 | M11: 20000000000 | N11: 20000000000 | O11: 20000000000 | P11: 20000000000
C12: 20000000000 | D12: 20000000000 | E12: 20000000000 | F12: 20000000000 | G12: 20000000000 | H12: 20000000000 | I12: 20000000000 | J12: 20000000000 | K12: 20000000000 | L12: 20000000000 | M12: 20000000000 | N12: 20000000000 | O12: 20000000000 | P12: 20000000000
C13: 20000000000 | D13: 20000000000 | E13: 20000000000 | F13: 20000000000 | G13: 20000000000 | H13: 20000000000 | I13: 20000000000 | J13: 20000000000 | K13: 20000000000 | L13: 20000000000 | M13: 20000000000 | N13: 20000000000 | O13: 20000000000 | P13: 20000000000
C14: 20000000000 | D14: 20000000000 | E14: 20000000000 | F14: 20000000000 | G14: 20000000000 | H14: 20000000000 | I14: 20000000000 | J14: 20000000000 | K14: 20000000000 | L14: 20000000000 | M14: 20000000000 | N14: 20000000000 | O14: 20000000000 | P14: 20000000000
C15: 0 | D15: 0 | E15: 0 | F15: 0 | G15: 0 | H15: 0 | I15: 0 | J15: 0 | K15: 0 | L15: 0 | M15: 0 | N15: 0 | O15: 0 | P15: 0
B16: 営業利益 | C16: =ROUNDDOWN(_xlfn.XLOOKUP("営業利益*",IGデータ共有!$B:$B,IGデータ共有!D:D,,2),-6) -> 4546000000 | D16: =ROUNDDOWN(_xlfn.XLOOKUP("営業利益*",IGデータ共有!$B:$B,IGデータ共有!E:E,,2),-6) -> 5042000000 | E16: =ROUNDDOWN(_xlfn.XLOOKUP("営業利益*",IGデータ共有!$B:$B,IGデータ共有!F:F,,2),-6) -> 7086000000 | F16: =ROUNDDOWN(_xlfn.XLOOKUP("営業利益*",IGデータ共有!$B:$B,IGデータ共有!G:G,,2),-6) -> 10365000000 | G16: =ROUNDDOWN(_xlfn.XLOOKUP("営業利益*",IGデータ共有!$B:$B,IGデータ共有!H:H,,2),-6) -> 12780000000 | H16: =ROUNDDOWN(_xlfn.XLOOKUP("営業利益*",IGデータ共有!$B:$B,IGデータ共有!I:I,,2),-6) -> 14521000000 | I16: =ROUNDDOWN(_xlfn.XLOOKUP("営業利益*",IGデータ共有!$B:$B,IGデータ共有!J:J,,2),-6) -> 16015000000 | J16: =ROUNDDOWN(_xlfn.XLOOKUP("営業利益*",IGデータ共有!$B:$B,IGデータ共有!K:K,,2),-6) -> 19412000000 | K16: =ROUNDDOWN(_xlfn.XLOOKUP("営業利益*",IGデータ共有!$B:$B,IGデータ共有!L:L,,2),-6) -> 19612000000 | L16: =ROUNDDOWN(_xlfn.XLOOKUP("営業利益*",IGデータ共有!$B:$B,IGデータ共有!M:M,,2),-6) -> 17072000000 | M16: =ROUNDDOWN(_xlfn.XLOOKUP("営業利益*",IGデータ共有!$B:$B,IGデータ共有!N:N,,2),-6) -> 15316000000 | N16: =ROUNDDOWN(_xlfn.XLOOKUP("営業利益*",IGデータ共有!$B:$B,IGデータ共有!O:O,,2),-6) -> 15080000000 | O16: =ROUNDDOWN(_xlfn.XLOOKUP("営業利益*",IGデータ共有!$B:$B,IGデータ共有!P:P,,2),-6) -> 13336000000 | P16: =ROUNDDOWN(_xlfn.XLOOKUP("営業利益*",IGデータ共有!$B:$B,IGデータ共有!R:R,,2),-6) -> 12195000000
C18: 2000000000 | D18: 2000000000 | E18: 2000000000 | F18: 2000000000 | G18: 2000000000 | H18: 2000000000 | I18: 2000000000 | J18: 2000000000 | K18: 2000000000 | L18: 2000000000 | M18: 2000000000 | N18: 2000000000 | O18: 2000000000 | P18: 2000000000
C19: 2000000000 | D19: 2000000000 | E19: 2000000000 | F19: 2000000000 | G19: 2000000000 | H19: 2000000000 | I19: 2000000000 | J19: 2000000000 | K19: 2000000000 | L19: 2000000000 | M19: 2000000000 | N19: 2000000000 | O19: 2000000000 | P19: 2000000000
C20: 2000000000 | D20: 2000000000 | E20: 2000000000 | F20: 2000000000 | G20: 2000000000 | H20: 2000000000 | I20: 2000000000 | J20: 2000000000 | K20: 2000000000 | L20: 2000000000 | M20: 2000000000 | N20: 2000000000 | O20: 2000000000 | P20: 2000000000
C21: 2000000000 | D21: 2000000000 | E21: 2000000000 | F21: 2000000000 | G21: 2000000000 | H21: 2000000000 | I21: 2000000000 | J21: 2000000000 | K21: 2000000000 | L21: 2000000000 | M21: 2000000000 | N21: 2000000000 | O21: 2000000000 | P21: 2000000000
C22: 2000000000 | D22: 2000000000 | E22: 2000000000 | F22: 2000000000 | G22: 2000000000 | H22: 2000000000 | I22: 2000000000 | J22: 2000000000 | K22: 2000000000 | L22: 2000000000 | M22: 2000000000 | N22: 2000000000 | O22: 2000000000 | P22: 2000000000
C23: 2000000000 | D23: 2000000000 | E23: 2000000000 | F23: 2000000000 | G23: 2000000000 | H23: 2000000000 | I23: 2000000000 | J23: 2000000000 | K23: 2000000000 | L23: 2000000000 | M23: 2000000000 | N23: 2000000000 | O23: 2000000000 | P23: 2000000000
C24: 2000000000 | D24: 2000000000 | E24: 2000000000 | F24: 2000000000 | G24: 2000000000 | H24: 2000000000 | I24: 2000000000 | J24: 2000000000 | K24: 2000000000 | L24: 2000000000 | M24: 2000000000 | N24: 2000000000 | O24: 2000000000 | P24: 2000000000
C25: 2000000000 | D25: 2000000000 | E25: 2000000000 | F25: 2000000000 | G25: 2000000000 | H25: 2000000000 | I25: 2000000000 | J25: 2000000000 | K25: 2000000000 | L25: 2000000000 | M25: 2000000000 | N25: 2000000000 | O25: 2000000000 | P25: 2000000000
C26: 2000000000 | D26: 2000000000 | E26: 2000000000 | F26: 2000000000 | G26: 2000000000 | H26: 2000000000 | I26: 2000000000 | J26: 2000000000 | K26: 2000000000 | L26: 2000000000 | M26: 2000000000 | N26: 2000000000 | O26: 2000000000 | P26: 2000000000
C27: 2000000000 | D27: 2000000000 | E27: 2000000000 | F27: 2000000000 | G27: 2000000000 | H27: 2000000000 | I27: 2000000000 | J27: 2000000000 | K27: 2000000000 | L27: 2000000000 | M27: 2000000000 | N27: 2000000000 | O27: 2000000000 | P27: 2000000000
C28: 0 | D28: 0 | E28: 0 | F28: 0 | G28: 0 | H28: 0 | I28: 0 | J28: 0 | K28: 0 | L28: 0 | M28: 0 | N28: 0 | O28: 0 | P28: 0
B29: 親会社株主に帰属する当期純利益 | C29: =ROUNDDOWN(_xlfn.XLOOKUP("親会社株主に帰属する当期純利益*",IGデータ共有!$B:$B,IGデータ共有!D:D,,2),-6) -> 2928000000 | D29: =ROUNDDOWN(_xlfn.XLOOKUP("親会社株主に帰属する当期純利益*",IGデータ共有!$B:$B,IGデータ共有!E:E,,2),-6) -> 3183000000 | E29: =ROUNDDOWN(_xlfn.XLOOKUP("親会社株主に帰属する当期純利益*",IGデータ共有!$B:$B,IGデータ共有!F:F,,2),-6) -> 4573000000 | F29: =ROUNDDOWN(_xlfn.XLOOKUP("親会社株主に帰属する当期純利益*",IGデータ共有!$B:$B,IGデータ共有!G:G,,2),-6) -> 6985000000 | G29: =ROUNDDOWN(_xlfn.XLOOKUP("親会社株主に帰属する当期純利益*",IGデータ共有!$B:$B,IGデータ共有!H:H,,2),-6) -> 8451000000 | H29: =ROUNDDOWN(_xlfn.XLOOKUP("親会社株主に帰属する当期純利益*",IGデータ共有!$B:$B,IGデータ共有!I:I,,2),-6) -> 10197000000 | I29: =ROUNDDOWN(_xlfn.XLOOKUP("親会社株主に帰属する当期純利益*",IGデータ共有!$B:$B,IGデータ共有!J:J,,2),-6) -> 11118000000 | J29: =ROUNDDOWN(_xlfn.XLOOKUP("親会社株主に帰属する当期純利益*",IGデータ共有!$B:$B,IGデータ共有!K:K,,2),-6) -> 14515000000 | K29: =ROUNDDOWN(_xlfn.XLOOKUP("親会社株主に帰属する当期純利益*",IGデータ共有!$B:$B,IGデータ共有!L:L,,2),-6) -> 14238000000 | L29: =ROUNDDOWN(_xlfn.XLOOKUP("親会社株主に帰属する当期純利益*",IGデータ共有!$B:$B,IGデータ共有!M:M,,2),-6) -> 11538000000 | M29: =ROUNDDOWN(_xlfn.XLOOKUP("親会社株主に帰属する当期純利益*",IGデータ共有!$B:$B,IGデータ共有!N:N,,2),-6) -> 10643000000 | N29: =ROUNDDOWN(_xlfn.XLOOKUP("親会社株主に帰属する当期純利益*",IGデータ共有!$B:$B,IGデータ共有!O:O,,2),-6) -> 10643000000 | O29: =ROUNDDOWN(_xlfn.XLOOKUP("親会社株主に帰属する当期純利益*",IGデータ共有!$B:$B,IGデータ共有!P:P,,2),-6) -> 8785000000 | P29: =ROUNDDOWN(_xlfn.XLOOKUP("親会社株主に帰属する当期純利益*",IGデータ共有!$B:$B,IGデータ共有!R:R,,2),-6) -> 8581000000
C31: 2000000000 | D31: 2000000000 | E31: 2000000000 | F31: 2000000000 | G31: 2000000000 | H31: 2000000000 | I31: 2000000000 | J31: 2000000000 | K31: 2000000000 | L31: 2000000000 | M31: 2000000000 | N31: 2000000000 | O31: 2000000000 | P31: 2000000000
C32: 2000000000 | D32: 2000000000 | E32: 2000000000 | F32: 2000000000 | G32: 2000000000 | H32: 2000000000 | I32: 2000000000 | J32: 2000000000 | K32: 2000000000 | L32: 2000000000 | M32: 2000000000 | N32: 2000000000 | O32: 2000000000 | P32: 2000000000
C33: 2000000000 | D33: 2000000000 | E33: 2000000000 | F33: 2000000000 | G33: 2000000000 | H33: 2000000000 | I33: 2000000000 | J33: 2000000000 | K33: 2000000000 | L33: 2000000000 | M33: 2000000000 | N33: 2000000000 | O33: 2000000000 | P33: 2000000000
C34: 2000000000 | D34: 2000000000 | E34: 2000000000 | F34: 2000000000 | G34: 2000000000 | H34: 2000000000 | I34: 2000000000 | J34: 2000000000 | K34: 2000000000 | L34: 2000000000 | M34: 2000000000 | N34: 2000000000 | O34: 2000000000 | P34: 2000000000
C35: 2000000000 | D35: 2000000000 | E35: 2000000000 | F35: 2000000000 | G35: 2000000000 | H35: 2000000000 | I35: 2000000000 | J35: 2000000000 | K35: 2000000000 | L35: 2000000000 | M35: 2000000000 | N35: 2000000000 | O35: 2000000000 | P35: 2000000000
C36: 2000000000 | D36: 2000000000 | E36: 2000000000 | F36: 2000000000 | G36: 2000000000 | H36: 2000000000 | I36: 2000000000 | J36: 2000000000 | K36: 2000000000 | L36: 2000000000 | M36: 2000000000 | N36: 2000000000 | O36: 2000000000 | P36: 2000000000
C37: 2000000000 | D37: 2000000000 | E37: 2000000000 | F37: 2000000000 | G37: 2000000000 | H37: 2000000000 | I37: 2000000000 | J37: 2000000000 | K37: 2000000000 | L37: 2000000000 | M37: 2000000000 | N37: 2000000000 | O37: 2000000000 | P37: 2000000000
C38: 2000000000 | D38: 2000000000 | E38: 2000000000 | F38: 2000000000 | G38: 2000000000 | H38: 2000000000 | I38: 2000000000 | J38: 2000000000 | K38: 2000000000 | L38: 2000000000 | M38: 2000000000 | N38: 2000000000 | O38: 2000000000 | P38: 2000000000
B39: フリー・キャッシュ・フロー | C39: =ROUNDDOWN(_xlfn.XLOOKUP("フリー・キャッシュ・フロー*",IGデータ共有!$B:$B,IGデータ共有!D:D,,2),-6) -> -743000000 | D39: =ROUNDDOWN(_xlfn.XLOOKUP("フリー・キャッシュ・フロー*",IGデータ共有!$B:$B,IGデータ共有!E:E,,2),-6) -> 2340000000 | E39: =ROUNDDOWN(_xlfn.XLOOKUP("フリー・キャッシュ・フロー*",IGデータ共有!$B:$B,IGデータ共有!F:F,,2),-6) -> 5807000000 | F39: =ROUNDDOWN(_xlfn.XLOOKUP("フリー・キャッシュ・フロー*",IGデータ共有!$B:$B,IGデータ共有!G:G,,2),-6) -> 4135000000 | G39: =ROUNDDOWN(_xlfn.XLOOKUP("フリー・キャッシュ・フロー*",IGデータ共有!$B:$B,IGデータ共有!H:H,,2),-6) -> 7001000000 | H39: =ROUNDDOWN(_xlfn.XLOOKUP("フリー・キャッシュ・フロー*",IGデータ共有!$B:$B,IGデータ共有!I:I,,2),-6) -> 10147000000 | I39: =ROUNDDOWN(_xlfn.XLOOKUP("フリー・キャッシュ・フロー*",IGデータ共有!$B:$B,IGデータ共有!J:J,,2),-6) -> 12955000000 | J39: =ROUNDDOWN(_xlfn.XLOOKUP("フリー・キャッシュ・フロー*",IGデータ共有!$B:$B,IGデータ共有!K:K,,2),-6) -> 13507000000 | K39: =ROUNDDOWN(_xlfn.XLOOKUP("フリー・キャッシュ・フロー*",IGデータ共有!$B:$B,IGデータ共有!L:L,,2),-6) -> 8928000000 | L39: =ROUNDDOWN(_xlfn.XLOOKUP("フリー・キャッシュ・フロー*",IGデータ共有!$B:$B,IGデータ共有!M:M,,2),-6) -> 10103000000 | M39: =ROUNDDOWN(_xlfn.XLOOKUP("フリー・キャッシュ・フロー*",IGデータ共有!$B:$B,IGデータ共有!N:N,,2),-6) -> 14584000000 | N39: =ROUNDDOWN(_xlfn.XLOOKUP("フリー・キャッシュ・フロー*",IGデータ共有!$B:$B,IGデータ共有!O:O,,2),-6) -> 14584000000 | O39: =ROUNDDOWN(_xlfn.XLOOKUP("フリー・キャッシュ・フロー*",IGデータ共有!$B:$B,IGデータ共有!P:P,,2),-6) -> 5300000000 | P39: =ROUNDDOWN(_xlfn.XLOOKUP("フリー・キャッシュ・フロー*",IGデータ共有!$B:$B,IGデータ共有!R:R,,2),-6) -> 7551000000
C41: 2000000000 | D41: 2000000000 | E41: 2000000000 | F41: 2000000000 | G41: 2000000000 | H41: 2000000000 | I41: 2000000000 | J41: 2000000000 | K41: 2000000000 | L41: 2000000000 | M41: 2000000000 | N41: 2000000000 | O41: 2000000000 | P41: 2000000000
C42: 2000000000 | D42: 2000000000 | E42: 2000000000 | F42: 2000000000 | G42: 2000000000 | H42: 2000000000 | I42: 2000000000 | J42: 2000000000 | K42: 2000000000 | L42: 2000000000 | M42: 2000000000 | N42: 2000000000 | O42: 2000000000 | P42: 2000000000
C43: 2000000000 | D43: 2000000000 | E43: 2000000000 | F43: 2000000000 | G43: 2000000000 | H43: 2000000000 | I43: 2000000000 | J43: 2000000000 | K43: 2000000000 | L43: 2000000000 | M43: 2000000000 | N43: 2000000000 | O43: 2000000000 | P43: 2000000000
C44: 2000000000 | D44: 2000000000 | E44: 2000000000 | F44: 2000000000 | G44: 2000000000 | H44: 2000000000 | I44: 2000000000 | J44: 2000000000 | K44: 2000000000 | L44: 2000000000 | M44: 2000000000 | N44: 2000000000 | O44: 2000000000 | P44: 2000000000
C45: 2000000000 | D45: 2000000000 | E45: 2000000000 | F45: 2000000000 | G45: 2000000000 | H45: 2000000000 | I45: 2000000000 | J45: 2000000000 | K45: 2000000000 | L45: 2000000000 | M45: 2000000000 | N45: 2000000000 | O45: 2000000000 | P45: 2000000000
C46: 2000000000 | D46: 2000000000 | E46: 2000000000 | F46: 2000000000 | G46: 2000000000 | H46: 2000000000 | I46: 2000000000 | J46: 2000000000 | K46: 2000000000 | L46: 2000000000 | M46: 2000000000 | N46: 2000000000 | O46: 2000000000 | P46: 2000000000
C47: 2000000000 | D47: 2000000000 | E47: 2000000000 | F47: 2000000000 | G47: 2000000000 | H47: 2000000000 | I47: 2000000000 | J47: 2000000000 | K47: 2000000000 | L47: 2000000000 | M47: 2000000000 | N47: 2000000000 | O47: 2000000000 | P47: 2000000000
C48: 2000000000 | D48: 2000000000 | E48: 2000000000 | F48: 2000000000 | G48: 2000000000 | H48: 2000000000 | I48: 2000000000 | J48: 2000000000 | K48: 2000000000 | L48: 2000000000 | M48: 2000000000 | N48: 2000000000 | O48: 2000000000 | P48: 2000000000
C49: 2000000000 | D49: 2000000000 | E49: 2000000000 | F49: 2000000000 | G49: 2000000000 | H49: 2000000000 | I49: 2000000000 | J49: 2000000000 | K49: 2000000000 | L49: 2000000000 | M49: 2000000000 | N49: 2000000000 | O49: 2000000000 | P49: 2000000000
B50: ROA/ROE (%) | C50: =_xlfn.XLOOKUP("ROA*",IGデータ共有!$B:$B,IGデータ共有!D:D,,2) -> 10.8 | D50: =_xlfn.XLOOKUP("ROA*",IGデータ共有!$B:$B,IGデータ共有!E:E,,2) -> 11.4 | E50: =_xlfn.XLOOKUP("ROA*",IGデータ共有!$B:$B,IGデータ共有!F:F,,2) -> 16 | F50: =_xlfn.XLOOKUP("ROA*",IGデータ共有!$B:$B,IGデータ共有!G:G,,2) -> 20.7 | G50: =_xlfn.XLOOKUP("ROA*",IGデータ共有!$B:$B,IGデータ共有!H:H,,2) -> 20.4 | H50: =_xlfn.XLOOKUP("ROA*",IGデータ共有!$B:$B,IGデータ共有!I:I,,2) -> 20.6 | I50: =_xlfn.XLOOKUP("ROA*",IGデータ共有!$B:$B,IGデータ共有!J:J,,2) -> 21.5 | J50: =_xlfn.XLOOKUP("ROA*",IGデータ共有!$B:$B,IGデータ共有!K:K,,2) -> 24.6 | K50: =_xlfn.XLOOKUP("ROA*",IGデータ共有!$B:$B,IGデータ共有!L:L,,2) -> 24 | L50: =_xlfn.XLOOKUP("ROA*",IGデータ共有!$B:$B,IGデータ共有!M:M,,2) -> 19.6 | M50: =_xlfn.XLOOKUP("ROA*",IGデータ共有!$B:$B,IGデータ共有!N:N,,2) -> 17.5 | N50: =_xlfn.XLOOKUP("ROA*",IGデータ共有!$B:$B,IGデータ共有!O:O,,2) -> 17.5 | O50: =_xlfn.XLOOKUP("ROA*",IGデータ共有!$B:$B,IGデータ共有!P:P,,2) -> 15.3 | P50: =_xlfn.XLOOKUP("ROA*",IGデータ共有!$B:$B,IGデータ共有!R:R,,2) -> 13.5
C51: =_xlfn.XLOOKUP("ROE*",IGデータ共有!$B:$B,IGデータ共有!D:D,,2) -> 11.2 | D51: =_xlfn.XLOOKUP("ROE*",IGデータ共有!$B:$B,IGデータ共有!E:E,,2) -> 11.8 | E51: =_xlfn.XLOOKUP("ROE*",IGデータ共有!$B:$B,IGデータ共有!F:F,,2) -> 15.5 | F51: =_xlfn.XLOOKUP("ROE*",IGデータ共有!$B:$B,IGデータ共有!G:G,,2) -> 19.7 | G51: =_xlfn.XLOOKUP("ROE*",IGデータ共有!$B:$B,IGデータ共有!H:H,,2) -> 19.8 | H51: =_xlfn.XLOOKUP("ROE*",IGデータ共有!$B:$B,IGデータ共有!I:I,,2) -> 21.3 | I51: =_xlfn.XLOOKUP("ROE*",IGデータ共有!$B:$B,IGデータ共有!J:J,,2) -> 21.8 | J51: =_xlfn.XLOOKUP("ROE*",IGデータ共有!$B:$B,IGデータ共有!K:K,,2) -> 25.7 | K51: =_xlfn.XLOOKUP("ROE*",IGデータ共有!$B:$B,IGデータ共有!L:L,,2) -> 22.8 | L51: =_xlfn.XLOOKUP("ROE*",IGデータ共有!$B:$B,IGデータ共有!M:M,,2) -> 17.5 | M51: =_xlfn.XLOOKUP("ROE*",IGデータ共有!$B:$B,IGデータ共有!N:N,,2) -> 15.5 | N51: =_xlfn.XLOOKUP("ROE*",IGデータ共有!$B:$B,IGデータ共有!O:O,,2) -> 15.5 | O51: =_xlfn.XLOOKUP("ROE*",IGデータ共有!$B:$B,IGデータ共有!P:P,,2) -> 12.2 | P51: =_xlfn.XLOOKUP("ROE*",IGデータ共有!$B:$B,IGデータ共有!R:R,,2) -> 11.4
C52: 5 | D52: 5 | E52: 5 | F52: 5 | G52: 5 | H52: 5 | I52: 5 | J52: 5 | K52: 5 | L52: 5 | M52: 5 | N52: 5 | O52: 5 | P52: 5
C53: 5 | D53: 5 | E53: 5 | F53: 5 | G53: 5 | H53: 5 | I53: 5 | J53: 5 | K53: 5 | L53: 5 | M53: 5 | N53: 5 | O53: 5 | P53: 5
C54: 5 | D54: 5 | E54: 5 | F54: 5 | G54: 5 | H54: 5 | I54: 5 | J54: 5 | K54: 5 | L54: 5 | M54: 5 | N54: 5 | O54: 5 | P54: 5
C55: 5 | D55: 5 | E55: 5 | F55: 5 | G55: 5 | H55: 5 | I55: 5 | J55: 5 | K55: 5 | L55: 5 | M55: 5 | N55: 5 | O55: 5 | P55: 5
C56: 5 | D56: 5 | E56: 5 | F56: 5 | G56: 5 | H56: 5 | I56: 5 | J56: 5 | K56: 5 | L56: 5 | M56: 5 | N56: 5 | O56: 5 | P56: 5
C57: 5 | D57: 5 | E57: 5 | F57: 5 | G57: 5 | H57: 5 | I57: 5 | J57: 5 | K57: 5 | L57: 5 | M57: 5 | N57: 5 | O57: 5 | P57: 5
B58: ROIC(投下資本利益率)（%） | F58: =_xlfn.XLOOKUP("投下資本利益率*",IGデータ共有!$B:$B,IGデータ共有!G:G,,2,1) -> 14.2 | G58: =_xlfn.XLOOKUP("投下資本利益率*",IGデータ共有!$B:$B,IGデータ共有!H:H,,2,1) -> 13.7 | H58: =_xlfn.XLOOKUP("投下資本利益率*",IGデータ共有!$B:$B,IGデータ共有!I:I,,2,1) -> 15.1 | I58: =_xlfn.XLOOKUP("投下資本利益率*",IGデータ共有!$B:$B,IGデータ共有!J:J,,2,1) -> 16.3
I59: =_xlfn.XLOOKUP("投下資本利益率*",IGデータ共有!$B:$B,IGデータ共有!J:J,,2,-1) -> 19.2 | J59: =_xlfn.XLOOKUP("投下資本利益率*",IGデータ共有!$B:$B,IGデータ共有!K:K,,2,-1) -> 22.2 | K59: =_xlfn.XLOOKUP("投下資本利益率*",IGデータ共有!$B:$B,IGデータ共有!L:L,,2,-1) -> 21.2 | L59: =_xlfn.XLOOKUP("投下資本利益率*",IGデータ共有!$B:$B,IGデータ共有!M:M,,2,-1) -> 17.4 | M59: =_xlfn.XLOOKUP("投下資本利益率*",IGデータ共有!$B:$B,IGデータ共有!N:N,,2,-1) -> 15 | N59: =_xlfn.XLOOKUP("投下資本利益率*",IGデータ共有!$B:$B,IGデータ共有!O:O,,2,-1) -> 14.8 | O59: =_xlfn.XLOOKUP("投下資本利益率*",IGデータ共有!$B:$B,IGデータ共有!P:P,,2,-1) -> 12.5 | P59: =_xlfn.XLOOKUP("投下資本利益率*",IGデータ共有!$B:$B,IGデータ共有!R:R,,2,-1) -> 10.9
C60: 5 | D60: 5 | E60: 5 | F60: 5 | G60: 5 | H60: 5 | I60: 5 | J60: 5 | K60: 5 | L60: 5 | M60: 5 | N60: 5 | O60: 5 | P60: 5
C61: 5 | D61: 5 | E61: 5 | F61: 5 | G61: 5 | H61: 5 | I61: 5 | J61: 5 | K61: 5 | L61: 5 | M61: 5 | N61: 5 | O61: 5 | P61: 5
C62: 5 | D62: 5 | E62: 5 | F62: 5 | G62: 5 | H62: 5 | I62: 5 | J62: 5 | K62: 5 | L62: 5 | M62: 5 | N62: 5 | O62: 5 | P62: 5
C63: 5 | D63: 5 | E63: 5 | F63: 5 | G63: 5 | H63: 5 | I63: 5 | J63: 5 | K63: 5 | L63: 5 | M63: 5 | N63: 5 | O63: 5 | P63: 5
C64: 5 | D64: 5 | E64: 5 | F64: 5 | G64: 5 | H64: 5 | I64: 5 | J64: 5 | K64: 5 | L64: 5 | M64: 5 | N64: 5 | O64: 5 | P64: 5

Sheet 03
A1: ■連結貸借対照表 Consolidated Balance Sheets
A2: 2011年1月31日～2022年12月31日に終了した会計年度 | N2: (百万円)
A3: Fiscal years ended Jan. 31, 2011 through Dec. 31, 2022 | N3: (¥ millions)
A5: 科目 Item | B5: 期別 Period | C5: 2011 | D5: 2012 | E5: 2013 | F5: 2014 | G5: 2015 | H5: 2016 | I5: 2017 | J5: 2018 | K5: Jan. 2019 | L5: Dec. 2019 | M5: 2020 | N5: 2021 | O5: 2022
A7: 資産の部
A8: Assets
A9: 現金及び預金 | C9: 6827 | D9: 7293 | E9: 10574 | F9: 13102 | G9: 21590 | H9: 24297 | I9: 30052 | J9: 31346 | K9: 30949 | L9: 32416 | M9: 37163 | N9: 35218 | O9: 34283
A10: Cash and Deposits
A11: 受取手形及び売掛金 | C11: 9874 | D11: 9993 | E11: 10540 | F11: 12569 | G11: 15278 | H11: 13870 | I11: 16103 | J11: 16440 | K11: 15004 | L11: 16588 | M11: 15085 | N11: 16253 | O11: 15975
A12: Notes and Accounts Receivable -Trade
A13: 商品及び製品 | C13: 4549 | D13: 5332 | E13: 4816 | F13: 5350 | G13: 5899 | H13: 6146 | I13: 5328 | J13: 6059 | K13: 7360 | L13: 8144 | M13: 8256 | N13: 8723 | O13: 10529
A14: Merchandise and Finished Goods
A15: その他流動資産 | C15: 2911 | D15: 2823 | E15: 3171 | F15: 4340 | G15: 4258 | H15: 4598 | I15: 3760 | J15: 4331 | K15: 4887 | L15: 4783 | M15: 4724 | N15: 6059 | O15: 6355
A16: Other Current Assets
A17: 〈流動資産合計〉 | C17: 24162 | D17: 25443 | E17: 29103 | F17: 35363 | G17: 47027 | H17: 48913 | I17: 55244 | J17: 58178 | K17: 58201 | L17: 61933 | M17: 65231 | N17: 66254 | O17: 67143
A18: 〈Total Current Assets〉
A19: 有形固定資産 | C19: 15409 | D19: 15058 | E19: 16208 | F19: 19023 | G19: 21383 | H19: 21471 | I19: 20263 | J19: 21116 | K19: 21127 | L19: 22494 | M19: 23262 | N19: 27093 | O19: 30132
A20: Tangible Fixed Assets
A21: 無形固定資産 | C21: 1188 | D21: 1285 | E21: 1176 | F21: 1441 | G21: 1724 | H21: 1346 | I21: 1106 | J21: 3307 | K21: 4223 | L21: 3863 | M21: 2957 | N21: 2572 | O21: 2308
A22: Intangible Fixed Assets
A23: 投資有価証券 | C23: 1316 | D23: 1344 | E23: 1420 | F23: 1448 | G23: 1531 | H23: 1477 | I23: 1481 | J23: 1020 | K23: 889 | L23: 950 | M23: 687 | N23: 532 | O23: 547
A24: Investment Securities
A25: その他の固定資産 | C25: 608 | D25: 640 | E25: 630 | F25: 678 | G25: 700 | H25: 734 | I25: 792 | J25: 845 | K25: 1176 | L25: 1250 | M25: 1333 | N25: 1590 | O25: 1601
A26: Other Fixed Assets
A27: 〈固定資産合計〉 | C27: 18521 | D27: 18329 | E27: 19435 | F27: 22591 | G27: 25339 | H27: 25029 | I27: 23644 | J27: 26289 | K27: 27417 | L27: 28558 | M27: 28241 | N27: 31788 | O27: 34590
A28: 〈Total Fixed Assets〉
A29: 〈資産合計〉 | C29: 42684 | D29: 43772 | E29: 48538 | F29: 57955 | G29: 72367 | H29: 73943 | I29: 78889 | J29: 84467 | K29: 85618 | L29: 90491 | M29: 93472 | N29: 98042 | O29: 101733
A30: 〈Total Assets〉
A32: 負債の部
A33: Liabilities
A34: 支払手形及び買掛金 | C34: 3984 | D34: 3758 | E34: 3864 | F34: 4518 | G34: 4462 | H34: 3743 | I34: 4857 | J34: 5194 | K34: 4567 | L34: 4900 | M34: 4757 | N34: 4087 | O34: 5066
A35: Notes and Accounts Payable - Trade
A36: 未払金 | C36: 2687 | D36: 2755 | E36: 3179 | F36: 3401 | G36: 3778 | H36: 2147 | I36: 2477 | J36: 3141 | K36: 3363 | L36: 2660 | M36: 2727 | N36: 2253 | O36: 2373
A37: Accounts Payable
A38: 未払法人税等 | C38: 563 | D38: 704 | E38: 1134 | F38: 1155 | G38: 1535 | H38: 1505 | I38: 2324 | J38: 2578 | K38: 1951 | L38: 1272 | M38: 1906 | N38: 1180 | O38: 989
A39: Income Taxes Payable
A40: 賞与引当金 | C40: 537 | D40: 587 | E40: 606 | F40: 782 | G40: 783 | H40: 894 | I40: 929 | J40: 1035 | K40: 972 | L40: 928 | M40: 952 | N40: 882 | O40: 920
A41: Accrued Bonuses to Employees
A42: その他流動負債 | C42: 4453 | D42: 4577 | E42: 2832 | F42: 2961 | G42: 4711 | H42: 5932 | I42: 10792 | J42: 5723 | K42: 4768 | L42: 5876 | M42: 5320 | N42: 6668 | O42: 6212
A43: Other Current Liabilities
A44: 〈流動負債合計〉 | C44: 12227 | D44: 12382 | E44: 11615 | F44: 12818 | G44: 15272 | H44: 14223 | I44: 21381 | J44: 17673 | K44: 15623 | L44: 15638 | M44: 15664 | N44: 15072 | O44: 15563
A45: 〈Total Current Liabilities〉
A46: 長期借入金 | C46: 1615 | D46: 1642 | E46: 2204 | F46: 2011 | G46: 5928 | H46: 5000 | I46: ー | J46: ー | K46: ー | L46: ー | M46: ー | N46: ー | O46: ー
A47: Long-term Borrowings
A48: その他固定負債 | C48: 1798 | D48: 1812 | E48: 2353 | F48: 3143 | G48: 3868 | H48: 3926 | I48: 3770 | J48: 3982 | K48: 3412 | L48: 4389 | M48: 5181 | N48: 6159 | O48: 6217
A49: Other Fixed Liabilities
A50: 〈固定負債合計〉 | C50: 3413 | D50: 3454 | E50: 4557 | F50: 5154 | G50: 9797 | H50: 8926 | I50: 3770 | J50: 3982 | K50: 3412 | L50: 4389 | M50: 5181 | N50: 6159 | O50: 6217
A51: 〈Total Fixed Liabilities〉
A52: 〈負債合計〉 | C52: 15640 | D52: 15836 | E52: 16173 | F52: 17973 | G52: 25069 | H52: 23150 | I52: 25152 | J52: 21655 | K52: 19036 | L52: 20028 | M52: 20846 | N52: 21232 | O52: 21781
A53: 〈Total Liabilities〉
A55: 純資産の部
A56: Net Assets
A57: 資本金 | C57: 5199 | D57: 5199 | E57: 5199 | F57: 5199 | G57: 5199 | H57: 5199 | I57: 5199 | J57: 5199 | K57: 5199 | L57: 5199 | M57: 5199 | N57: 5199 | O57: 5199
A58: Capital Stock
A59: 資本剰余金 | C59: 5180 | D59: 5180 | E59: 5180 | F59: 5180 | G59: 5180 | H59: 5180 | I59: 5179 | J59: 5179 | K59: 5179 | L59: 5179 | M59: 5179 | N59: 5179 | O59: 5132
A60: Capital Surplus
A61: 利益剰余金 | C61: 18451 | D61: 19873 | E61: 22686 | F61: 26929 | G61: 31383 | H61: 36790 | I61: 42280 | J61: 49729 | K61: 55704 | L61: 58979 | M61: 61120 | N61: 61163 | O61: 60762
A62: Retained Earnings
A63: 自己株式 | C63: -447 | D63: -448 | E63: -450 | F63: -455 | G63: -942 | H63: -947 | I63: -948 | J63: -949 | K63: -951 | L63: -1088 | M63: -1478 | N63: -1479 | O63: -1387
A64: Treasury Stock
A65: その他有価証券評価差額金 | C65: 11 | D65: 10 | E65: 26 | F65: 30 | G65: 36 | H65: 32 | I65: 47 | J65: 44 | K65: 21 | L65: 25 | M65: 13 | N65: 16 | O65: 26
A66: Valuation Difference on Available-for-Sale Securities
A67: 為替換算調整勘定 | C67: -1861 | D67: -2386 | E67: -970 | F67: 2240 | G67: 5306 | H67: 3311 | I67: 628 | J67: 1490 | K67: -910 | L67: -572 | M67: -129 | N67: 3805 | O67: 6962
A68: Foreign Currency Translation Adjustment
A69: 非支配株主持分 | C69: 510 | D69: 507 | E69: 693 | F69: 856 | G69: 1132 | H69: 1225 | I69: 1349 | J69: 2119 | K69: 2339 | L69: 2741 | M69: 2722 | N69: 2925 | O69: 3257
A70: Non-Controlling Interests
A71: 〈純資産合計〉 | C71: 27044 | D71: 27935 | E71: 32365 | F71: 39981 | G71: 47297 | H71: 50792 | I71: 53736 | J71: 62812 | K71: 66582 | L71: 70463 | M71: 72625 | N71: 76810 | O71: 79952
A72: 〈Total Net Assets〉
A73: 〈負債純資産合計〉 | C73: 42684 | D73: 43772 | E73: 48538 | F73: 57955 | G73: 72367 | H73: 73943 | I73: 78889 | J73: 84467 | K73: 85618 | L73: 90491 | M73: 93472 | N73: 98042 | O73: 101733
A74: 〈Total Liabilities and Net Assets〉
A75: （注）当社は、2019年度より「『税効果会計に係る会計基準』の一部改正」を適用しておりますが、当インベスターズガイド上の2018年度以前の数値は遡及修正を行っておりません。
A76: (Note) The Company has adopted the "Partial Amendments to Accounting Standard for Tax Effect Accounting" (ASBJ Statement No. 28, February 16, 2018) from fiscal 2019, but financial figures for fiscal 2018 and earlier in this Investor's Guide have not been retroactively adjusted.

Sheet 04
A1: ■連結損益計算書 Consolidated Statements of Income
A2: 2011年1月31日～2022年12月31日に終了した会計年度 | O2: (百万円)
A3: Fiscal years ended Jan. 31, 2011 through Dec. 31, 2022 | O3: (¥ millions)
C4: 旧基準 Old Standards | N4: 新基準(注) New Standards (Note)
A5: 科目 Item | B5: 期別 Period | C5: 2011 | D5: 2012 | E5: 2013 | F5: 2014 | G5: 2015 | H5: 2016 | I5: 2017 | J5: 2018 | K5: Jan. 2019 | L5: Dec. 2019 | M5: 2020 | N5: 2020 | O5: 2021 | P5: 2022
A6: 売上高 | C6: 57061 | D6: 59145 | E6: 65075 | F6: 77465 | G6: 84113 | H6: 92209 | I6: 94640 | J6: 102563 | K6: 104747 | L6: 100017 | M6: 99380 | N6: 94021 | O6: 93080 | P6: 94921
A7: Net Sales
A8: 売上原価 | C8: 33780 | D8: 34826 | E8: 37314 | F8: 43000 | G8: 45817 | H8: 48864 | I8: 49951 | J8: 51990 | K8: 50889 | L8: 49216 | M8: 49459 | N8: 49459 | O8: 49008 | P8: 50087
A9: Cost of Sales
A10: 売上総利益 | C10: 23281 | D10: 24319 | E10: 27760 | F10: 34464 | G10: 38296 | H10: 43345 | I10: 44688 | J10: 50572 | K10: 53858 | L10: 50800 | M10: 49921 | N10: 44562 | O10: 44072 | P10: 44834
A11: Gross Profit
A12: 売上総利益率（%） | C12: 40.8 | D12: 41.1 | E12: 42.7 | F12: 44.5 | G12: 45.5 | H12: 47 | I12: 47.2 | J12: 49.3 | K12: 51.4 | L12: 50.8 | M12: 50.2 | N12: 47.4 | O12: 47.3 | P12: 47.2
A13: Gross Margin（%）
A14: 販売費及び一般管理費 | C14: 18734 | D14: 19276 | E14: 20674 | F14: 24098 | G14: 25515 | H14: 28823 | I14: 28673 | J14: 31159 | K14: 34246 | L14: 33727 | M14: 34605 | N14: 29482 | O14: 30735 | P14: 32638
A15: Selling, General and Administrative Expenses
A16: 営業利益 | C16: 4546 | D16: 5042 | E16: 7086 | F16: 10365 | G16: 12780 | H16: 14521 | I16: 16015 | J16: 19412 | K16: 19612 | L16: 17072 | M16: 15316 | N16: 15080 | O16: 13336 | P16: 12195
A17: Operating Income
A18: 営業利益率（%） | C18: 8 | D18: 8.5 | E18: 10.9 | F18: 13.4 | G18: 15.2 | H18: 15.7 | I18: 16.9 | J18: 18.9 | K18: 18.7 | L18: 17.1 | M18: 15.4 | N18: 16 | O18: 14.3 | P18: 12.8
A19: Operating Margin（%）
A20: 営業外収益 | C20: 372 | D20: 373 | E20: 656 | F20: 974 | G20: 923 | H20: 1112 | I20: 945 | J20: 1263 | K20: 1295 | L20: 1136 | M20: 1406 | N20: 1406 | O20: 1427 | P20: 1418
A21: Non-operating Income
A22: 営業外費用 | C22: 484 | D22: 499 | E22: 352 | F22: 337 | G22: 404 | H22: 553 | I22: 498 | J22: 547 | K22: 509 | L22: 924 | M22: 608 | N22: 608 | O22: 115 | P22: 149
A23: Non-operating Expenses
A24: 経常利益 | C24: 4435 | D24: 4917 | E24: 7389 | F24: 11002 | G24: 13299 | H24: 15080 | I24: 16462 | J24: 20129 | K24: 20398 | L24: 17284 | M24: 16113 | N24: 16113 | O24: 14648 | P24: 13465
A25: Ordinary Income
A26: 経常利益率（%） | C26: 7.8 | D26: 8.3 | E26: 11.4 | F26: 14.2 | G26: 15.8 | H26: 16.4 | I26: 17.4 | J26: 19.6 | K26: 19.5 | L26: 17.3 | M26: 16.2 | N26: 17.1 | O26: 15.7 | P26: 14.2
A27: Ordinary Margin（%）
A28: 特別利益 | C28: 20 | D28: 19 | E28: 7 | F28: 8 | G28: 8 | H28: 10 | I28: 122 | J28: 1058 | K28: 243 | L28: 121 | M28: 38 | N28: 38 | O28: 65 | P28: 7
A29: Extraordinary Income
A30: 特別損失 | C30: 86 | D30: 213 | E30: 26 | F30: 24 | G30: 167 | H30: 204 | I30: 350 | J30: 271 | K30: 379 | L30: 300 | M30: 315 | N30: 315 | O30: 1182 | P30: 329
A31: Extraordinary Loss
A32: 税金等調整前当期純利益 | C32: 4369 | D32: 4723 | E32: 7369 | F32: 10986 | G32: 13140 | H32: 14887 | I32: 16234 | J32: 20916 | K32: 20262 | L32: 17104 | M32: 15836 | N32: 15836 | O32: 13531 | P32: 13143
A33: Income before Income Taxes
A34: 法人税、住民税及び事業税 | C34: 1331 | D34: 1463 | E34: 2128 | F34: 3077 | G34: 3768 | H34: 4548 | I34: 5165 | J34: 5931 | K34: 5794 | L34: 5067 | M34: 4715 | N34: 4715 | O34: 4690 | P34: 4678
A35: Income Taxes - Current
A36: 法人税等調整額 | C36: 21 | D36: -10 | E36: 526 | F36: 705 | G36: 734 | H36: -124 | I36: -273 | J36: 225 | K36: -127 | L36: 267 | M36: 261 | N36: 261 | O36: -138 | P36: -296
A37: Income Taxes - Deferred
A38: 当期純利益 | C38: 3016 | D38: 3271 | E38: 4714 | F38: 7203 | G38: 8636 | H38: 10462 | I38: 11342 | J38: 14759 | K38: 14594 | L38: 11769 | M38: 10860 | N38: 10860 | O38: 8979 | P38: 8761
A39: Net Income
A40: 非支配株主に帰属する当期純利益 | C40: 88 | D40: 87 | E40: 140 | F40: 217 | G40: 185 | H40: 265 | I40: 224 | J40: 244 | K40: 356 | L40: 230 | M40: 216 | N40: 216 | O40: 193 | P40: 179
A41: Net Income Attributable to Non-Controlling Interests
A42: 親会社株主に帰属する当期純利益 | C42: 2928 | D42: 3183 | E42: 4573 | F42: 6985 | G42: 8451 | H42: 10197 | I42: 11118 | J42: 14515 | K42: 14238 | L42: 11538 | M42: 10643 | N42: 10643 | O42: 8785 | P42: 8581
A43: Net Income Attributable to Owners of Parent
A44: 親会社株主に帰属する当期純利益率（%） | C44: 5.1 | D44: 5.4 | E44: 7 | F44: 9 | G44: 10 | H44: 11.1 | I44: 11.7 | J44: 14.2 | K44: 13.6 | L44: 11.5 | M44: 10.7 | N44: 11.3 | O44: 9.4 | P44: 9
A45: Net Income Attributable to Owners of Parent Margin（%）
A46: （注）当社は会計方針の変更として、「収益認識に関する会計基準」（企業会計基準第29号 2020年３月31日）等を2021年12月期から適用しています。表にある「旧基準」は2020年12月期時点の会計基準に基づいた実績値、「新基準」は会計基準変更後の実績値となります。なお、2020年12月期の実績につきましては、「新基準」の試算値も併記しています。
A48: （Note) As a change in its accounting policy, the Company has applied the “Accounting Standard for Revenue Recognition” (ASBJ Statement No. 29, March 31, 2020) and other standards from the fiscal year ended December 31, 2021. The results listed under “Old standards” in the table are the results based on the accounting standards as of the fiscal year ended December 31, 2020, while the results listed under “New standards” are the results based on the accounting standards after the change. Alongside the results for the fiscal year ended December 31, 2020, a trial calculation of the same results under the new standards is also published.

Sheet 06.セグメント別情報 (hidden)
A1: 2 | B1: ■セグメント別情報 Segment Information
A2: 0 | B2: =作業用!A2 -> 2011年1月31日～2022年12月31日に終了した会計年度 | M2: =作業用!A9 -> (百万円)
A3: 1 | B3: =作業用!A3 -> Fiscal years ended Jan. 31, 2011 through Dec. 31, 2022 | M3: =作業用!A10 -> (¥ millions)
A4: 2
A5: 2 | B5: 科目 Item | C5: 期別 Period | D5: 2011 | E5: 2012 | F5: 2013 | G5: 2014 | H5: 2015 | I5: 2016 | J5: 2017 | K5: 2018 | L5: Jan. 2019 | M5: Dec. 2019* | N5: Dec. 2020
A6: 2
A7: 2 | B7: 売上高 | M7: * 目次ページ参照
A8: 2 | B8: Net Sales | M8: *See table of contents page
A9: 0 | B9: 国内ベビー・ママ事業 | D9: 24145 | E9: 24047 | F9: 23882 | G9: 24451 | H9: 24432 | I9: 28053 | J9: 31823 | K9: 33841 | L9: 35593 | M9: 30813 | N9: ー | R9: （注1）2015年1月期より、「海外事業」から「中国事業」を分離し、2019年1月期より、「海外事業」の名称を変更し、ASEAN・中東諸国を中心にピジョンブランド事業を行う「シンガポール事業」としたうえで、従来、「海外事業」に含まれていた、欧米を中心に展開するランシノブランド事業を「ランシノ事業」として独立させています。なお、2014年1月期ならびに2018年1月期の数値は、当該変更後のセグメント区分に組み替えた数値で表示しています。
A10: 1 | B10: Domestic Baby & Mother Care Business
A11: 0 | B11: 子育て支援事業 | D11: 5455 | E11: 5990 | F11: 6388 | G11: 6599 | H11: 6722 | I11: 6757 | J11: 7393 | K11: 7541 | L11: 4472 | M11: 3492 | N11: ー
A12: 1 | B12: Child Care Service Business
A13: 0 | B13: ヘルスケア・介護事業 | D13: 6503 | E13: 6469 | F13: 6699 | G13: 6721 | H13: 6761 | I13: 6499 | J13: 6901 | K13: 7058 | L13: 6986 | M13: 6546 | N13: ー
A14: 1 | B14: Health & Elder Care Business
A15: 0 | B15: 日本事業 | D15: ー | E15: ー | F15: ー | G15: ー | H15: ー | I15: ー | J15: ー | K15: ー | L15: ー | M15: ー | N15: 44977000000
A16: 1 | B16: Japan Business
A17: 0 | B17: 海外事業（注1） | D17: 19907 | E17: 21584 | F17: 26964 | G17: 20305 | H17: 23373 | I17: 25234 | J17: 23051 | K17: 25427 | L17: ー | M17: ー | N17: ー | R17: （注2）2016年1月期より、韓国、台湾、香港、フィリピン、ロシア等地域における事業の管轄が海外事業本部から中国事業本部に移管されたことに伴い、「海外事業」ならびに「中国事業」における一部の地域の事業は、2015年1月期からセグメントを変更して表示しています。
A18: 1 | B18: Overseas Business (Note 1)
A19: 0 | B19: 中国事業（注1、2） | D19: ー | E19: ー | F19: ー | G19: 21980 | H19: 26301 | I19: 31688 | J19: 30533 | K19: 34494 | L19: 35581 | M19: 36824 | N19: 37732000000
A20: 1 | B20: China Business (Notes 1, 2) | K20: [34,305]
A21: 0 | B21: シンガポール事業（注1） | D21: ー | E21: ー | F21: ー | G21: ー | H21: ー | I21: ー | J21: ー | K21: 10286 | L21: 12133 | M21: 11482 | N21: 12184000000 | R21: （注3）2014年1月期以降の「連結計上額」は、「海外事業」および「中国事業」のセグメント間取引消去後の金額となっています。また2018年1月期以降の「連結計上額」は「シンガポール事業」「ランシノ事業」および「中国事業」 のセグメント間取引消去後の金額となっています。
A22: 1 | B22: Singapore Business (Note 1)
A23: 0 | B23: ランシノ事業（注1） | D23: ー | E23: ー | F23: ー | G23: ー | H23: ー | I23: ー | J23: ー | K23: 12523 | L23: 12753 | M23: 13213 | N23: 12473000000
A24: 1 | B24: Lansinoh Business (Note 1)
A25: 0 | B25: その他 | D25: 1050 | E25: 1052 | F25: 1140 | G25: 1151 | H25: 1276 | I25: 1283 | J25: 1273 | K25: 1289 | L25: ー | M25: ー | N25: ー | R25: （注4）セグメント利益での2017年1月期の下段ならびに2018年1月期以降の数値は、配賦不能営業費用の中の研究・開発部門に係る費用を各報告セグメントのセグメント利益に含めて計上しています。2017年1月期の上段ならびにそれ以前は、当該費用は調整額に含めています。
A26: 1 | B26: Other
A27: 0 | B27: 連結計上額（注3） | D27: 57061 | E27: 59145 | F27: 65075 | G27: 77465 | H27: 84113 | I27: 92209 | J27: 94640 | K27: 102563 | L27: 104747 | M27: 100017 | N27: 99380000000
A28: 1 | B28: Consolidated Amount (Note 3)
A29: 2
A30: 0 | B30: セグメント総利益 | R30: （注5）セグメント利益の合計は調整（すべて配賦不能営業費用）を行い、連結損益計算書の営業利益となっています。
A31: 1 | B31: Gross Profit
A32: 0 | B32: 国内ベビー・ママ事業 | D32: 10914 | E32: 11181 | F32: 11174 | G32: 11209 | H32: 11244 | I32: 12444 | J32: 14956 | K32: 16560 | L32: 17309 | M32: 15030 | N32: ー
A33: 1 | B33: Domestic Baby & Mother Care Business
A34: 0 | B34: 子育て支援事業 | D34: 664 | E34: 689 | F34: 726 | G34: 755 | H34: 755 | I34: 722 | J34: 785 | K34: 784 | L34: 624 | M34: 440 | N34: ー
A35: 1 | B35: Child Care Service Business
A36: 0 | B36: ヘルスケア・介護事業 | D36: 1859 | E36: 1893 | F36: 2050 | G36: 2002 | H36: 1941 | I36: 1842 | J36: 2168 | K36: 2210 | L36: 2266 | M36: 2050 | N36: ー | Q36: Notes | R36: 1: In the year ended January 31, 2015, the Company separated its China Business from the Overseas Business. In the year ending January 31, 2019, the Company separated its Overseas Business into two, Singapore Business and Lansinoh Business. Pigeon brand mainly in the ASEAN and countries of the Middle East is under Singapore Business and Lansinoh brand mainly developed in Europe and the U.S. is under Lansinoh Business. The figures in the years ended January 31, 2014 and 2018 are presented based on the new reporting segments.
A37: 1 | B37: Health & Elder Care Business
A38: 0 | B38: 日本事業 | D38: ー | E38: ー | F38: ー | G38: ー | H38: ー | I38: ー | J38: ー | K38: ー | L38: ー | M38: ー | N38: 17767000000
A39: 1 | B39: Japan Business
A40: 0 | B40: 海外事業 | D40: 9685 | E40: 10389 | F40: 13636 | G40: 10790 | H40: 12556 | I40: 13989 | J40: 12810 | K40: 14529 | L40: ー | M40: ー | N40: ー
A41: 1 | B41: Overseas Business
A42: 0 | B42: 中国事業 | D42: ー | E42: ー | F42: ー | G42: 9439 | H42: 11504 | I42: 14126 | J42: 13625 | K42: 16282 | L42: 19931 | M42: 20355 | N42: 20488000000
A43: 1 | B43: China Business | K43: [18,923]
A44: 0 | B44: シンガポール事業 | D44: ー | E44: ー | F44: ー | G44: ー | H44: ー | I44: ー | J44: ー | K44: 4871 | L44: 5978 | M44: 5184 | N44: 4680000000
A45: 1 | B45: Singapore Business
A46: 0 | B46: ランシノ事業 | D46: ー | E46: ー | F46: ー | G46: ー | H46: ー | I46: ー | J46: ー | K46: 7051 | L46: 7582 | M46: 7700 | N46: 6930000000 | R46: 2: In the year ended Januar y 31, 2016, the Company ’s businesses in some regions below were shifted to the China Business segment from Overseas Business. Reporting segments were changed accordingly. - South Korea, Taiwan, Hong Kong, the Philippines, and Russia.
A47: 1 | B47: Lansinoh Business
A48: 0 | B48: その他 | D48: 157 | E48: 164 | F48: 172 | G48: 235 | H48: 211 | I48: 197 | J48: 198 | K48: 165 | L48: 183 | M48: 122 | N48: ー
A49: 1 | B49: Other | K49: [164]
A50: 0 | B50: 連結計上額（注3） | D50: 23281 | E50: 24319 | F50: 27760 | G50: 34464 | H50: 38296 | I50: 43345 | J50: 44688 | K50: 50572 | L50: 53838 | M50: 50800 | N50: 49921000000
A51: 1 | B51: Consolidated Amount (Note 3)
A52: 2
A53: 0 | B53: セグメント利益（注4）
A54: 1 | B54: Segment Profit (Note 4) | R54: 3: The consolidated amounts recorded for the fiscal years ended January 31, 2014 and subsequent fiscal years are posted as the sums resulting from eliminating intersegment transactions between Overseas Business and China Business. The consolidated amounts recorded for the fiscal year ended January 31, 2018 and subsequent fiscal years are posted as the sums resulting from eliminating intersegment transactions among Singapore Business, Lansinoh Business and China Business.
A55: 0 | B55: 国内ベビー・ママ事業 | D55: 3611 | E55: 3677 | F55: 3379 | G55: 3411 | H55: 3752 | I55: 4383 | J55: 6244
A56: 1 | B56: Domestic Baby & Mother Care Business | J56: 4818 | K56: 5928 | L56: 6096 | M56: 4697 | N56: ー
A57: 0 | B57: 子育て支援事業 | D57: 117 | E57: 152 | F57: 182 | G57: 176 | H57: 189 | I57: 148 | J57: 211
A58: 1 | B58: Child Care Service Business | J58: 211 | K58: 218 | L58: 169 | M58: 49 | N58: ー
A59: 0 | B59: ヘルスケア・介護事業 | D59: 111 | E59: 350 | F59: 212 | G59: 212 | H59: 260 | I59: 140 | J59: 504
A60: 1 | B60: Health & Elder Care Business | J60: 445 | K60: 468 | L60: 353 | M60: 386 | N60: ー
A61: 0 | B61: 日本事業 | D61: ー | E61: ー | F61: ー | G61: ー | H61: ー | I61: ー | J61: ー | K61: ー | L61: ー | M61: ー | N61: 3008000000
A62: 1 | B62: Japan Business
A63: 0 | B63: 海外事業 | D63: 3745 | E63: 3909 | F63: 6387 | G63: 4152 | H63: 4969 | I63: 5579 | J63: 5352
A64: 1 | B64: Overseas Business | J64: 4861 | K64: 5841 | L64: ー | M64: ー | N64: ー | R64: 4: With respect to Segment Profit, for the fiscal year ended January 31, 2017 (the lower figure) and subsequent fiscal years, the Company reports expenses in non-allocable operating expenses associated with Research and Development in the Segment Profit of each reporting segment. For the fiscal year ended January 31, 2017 and subsequent fiscal years (the upper figure), such expenses are included in the adjustment.
A65: 0 | B65: 中国事業 | D65: ー | E65: ー | F65: ー | G65: 6041 | H65: 7525 | I65: 8586 | J65: 8355 | K65: [11,514]
A66: 1 | B66: China Business | J66: 8355 | K66: 9716 | L66: 11972 | M66: 12483 | N66: 12600000000
A67: 0 | B67: シンガポール事業 | D67: ー | E67: ー | F67: ー | G67: ー | H67: ー | I67: ー | J67: ー | K67: 2488 | L67: 2744 | M67: 2007 | N67: 1647000000
A68: 1 | B68: Singapore Business
A69: 0 | B69: ランシノ事業 | D69: ー | E69: ー | F69: ー | G69: ー | H69: ー | I69: ー | J69: ー | K69: 1553 | L69: 1576 | M69: 1784 | N69: 1370000000 | R69: 5: The sum of Segment Profit (with all non-allocable operating expenses) has been adjusted and posted as operating income in the consolidated statements of income.
A70: 1 | B70: Lansinoh Business
A71: 0 | B71: その他 | D71: 135 | E71: 138 | F71: 141 | G71: 204 | H71: 173 | I71: 152 | J71: 162
A72: 1 | B72: Other | J72: 162 | K72: 126
A73: 0 | B73: 連結計上額（注3、5） | D73: 4546 | E73: 5042 | F73: 7086 | G73: 10365 | H73: 12780 | I73: 14521 | J73: 16015 | K73: 19412 | L73: 19612 | M73: 17072 | N73: 15316000000
A74: 1 | B74: Consolidated Amount (Notes 3, 5)

Sheet 05
A1: ■セグメント別情報 Segment Information | N1: ■セグメント別情報 Segment Information
A2: 2011年1月31日～2018年12月31日に終了した会計年度 | I2: (百万円) | N2: 2018年1月31日～2022年12月31日に終了した会計年度 | V2: (百万円)
A3: Fiscal years ended Jan. 31, 2011 through Dec. 31, 2018 | I3: (¥ millions) | N3: Fiscal years ended Jan. 31, 2018 through Dec. 31, 2022 | U3: (¥ millions)
C4: 旧基準 Old Standards | M4: 2 | P4: 旧基準 Old Standards | T4: 新基準 (注6) New Standards（Note 6)
A5: 科目 Item | B5: 期別 Period | C5: 2011 | D5: 2012 | E5: 2013 | F5: 2014 | G5: 2015 | H5: 2016 | I5: 2017 | J5: 2018 | N5: 科目 Item | O5: 期別 Period | P5: 2018 | Q5: Jan. 2019 | R5: Dec. 2019 | S5: 2020 | T5: 2020 | U5: 2021 | V5: 2022
M6: 2
A7: 売上高 | M7: 2 | N7: 売上高
A8: Net Sales | M8: 2 | N8: Net Sales
A9: 国内ベビー・ママ事業 | C9: 24145 | D9: 24047 | E9: 23882 | F9: 24451 | G9: 24432 | H9: 28053 | I9: 31823 | J9: 33841 | M9: 0 | N9: 国内ベビー・ママ事業 | P9: 33841 | Q9: 35593 | R9: 30813 | S9: ー | T9: ー | U9: ー | V9: ー
A10: Domestic Baby & Mother Care Business | M10: 1 | N10: Domestic Baby & Mother Care Business
A11: 子育て支援事業 | C11: 5455 | D11: 5990 | E11: 6388 | F11: 6599 | G11: 6722 | H11: 6757 | I11: 7393 | J11: 7541 | M11: 0 | N11: 子育て支援事業 | P11: 7541 | Q11: 4472 | R11: 3492 | S11: ー | T11: ー | U11: ー | V11: ー
A12: Child Care Service Business | M12: 1 | N12: Child Care Service Business
A13: ヘルスケア・介護事業 | C13: 6503 | D13: 6469 | E13: 6699 | F13: 6721 | G13: 6761 | H13: 6499 | I13: 6901 | J13: 7058 | M13: 0 | N13: ヘルスケア・介護事業 | P13: 7058 | Q13: 6986 | R13: 6546 | S13: ー | T13: ー | U13: ー | V13: ー
A14: Health & Elder Care Business | M14: 1 | N14: Health & Elder Care Business
A15: 海外事業（注1） | C15: 19907 | D15: 21584 | E15: 26964 | F15: 20305 | G15: 23373 | H15: 25234 | I15: 23051 | J15: 25427 | M15: 0 | N15: 日本事業 | P15: ー | Q15: ー | R15: ー | S15: 44977 | T15: 41231 | U15: 38264 | V15: 36323
A16: Overseas Business (Note 1) | M16: 1 | N16: Japan Business
A17: 中国事業（注1、2） | C17: ー | D17: ー | E17: ー | F17: 21980 | G17: 26301 | H17: 31688 | I17: 30533 | J17: 34494 | M17: 0 | N17: 中国事業（注1、2） | P17: 34305 | Q17: 35581 | R17: 36824 | S17: 37732 | T17: 36121 | U17: 37239 | V17: 34776
A18: China Business (Notes 1, 2) | M18: 1 | N18: China Business (Notes 1, 2)
A19: その他 | C19: 1050 | D19: 1052 | E19: 1140 | F19: 1151 | G19: 1276 | H19: 1283 | I19: 1273 | J19: 1289 | M19: 0 | N19: シンガポール事業（注1） | P19: 10286 | Q19: 12133 | R19: 11482 | S19: 12184 | T19: 12184 | U19: 12619 | V19: 14153
A20: Other | M20: 1 | N20: Singapore Business (Note 1)
A21: 連結計上額（注3） | C21: 57061 | D21: 59145 | E21: 65075 | F21: 77465 | G21: 84113 | H21: 92209 | I21: 94640 | J21: 102563 | M21: 0 | N21: ランシノ事業（注1） | P21: 12523 | Q21: 12753 | R21: 13213 | S21: 12473 | T21: 12473 | U21: 13320 | V21: 16917
A22: Consolidated Amount (Note 3) | M22: 1 | N22: Lansinoh Business (Note 1)
M23: 0 | N23: その他 | P23: 1289 | Q23: 1402 | R23: 1343 | S23: ー | T23: ー | U23: ー | V23: ー
M24: 1 | N24: Other
M25: 0 | N25: 連結計上額（注3） | P25: 102563 | Q25: 104747 | R25: 100017 | S25: 99380 | T25: 94021 | U25: 93080 | V25: 94921
M26: 1 | N26: Consolidated Amount (Note 3)
M27: 2
A28: セグメント総利益 | M28: 0 | N28: セグメント総利益
A29: Gross Profit | M29: 1 | N29: Gross Profit
A30: 国内ベビー・ママ事業 | C30: 10914 | D30: 11181 | E30: 11174 | F30: 11209 | G30: 11244 | H30: 12444 | I30: 14956 | J30: 16560 | M30: 0 | N30: 国内ベビー・ママ事業 | P30: 16560 | Q30: 17309 | R30: 15030 | S30: ー | T30: ー | U30: ー | V30: ー
A31: Domestic Baby & Mother Care Business | M31: 1 | N31: Domestic Baby & Mother Care Business
A32: 子育て支援事業 | C32: 664 | D32: 689 | E32: 726 | F32: 755 | G32: 755 | H32: 722 | I32: 785 | J32: 784 | M32: 0 | N32: 子育て支援事業 | P32: 784 | Q32: 624 | R32: 440 | S32: ー | T32: ー | U32: ー | V32: ー
A33: Child Care Service Business | M33: 1 | N33: Child Care Service Business
A34: ヘルスケア・介護事業 | C34: 1859 | D34: 1893 | E34: 2050 | F34: 2002 | G34: 1941 | H34: 1842 | I34: 2168 | J34: 2210 | M34: 0 | N34: ヘルスケア・介護事業 | P34: 2210 | Q34: 2266 | R34: 2050 | S34: ー | T34: ー | U34: ー | V34: ー
A35: Health & Elder Care Business | M35: 1 | N35: Health & Elder Care Business
A36: 海外事業 | C36: 9685 | D36: 10389 | E36: 13636 | F36: 10790 | G36: 12556 | H36: 13989 | I36: 12810 | J36: 14529 | M36: 0 | N36: 日本事業 | P36: ー | Q36: ー | R36: ー | S36: 17767 | T36: 14018 | U36: 13142 | V36: 11775
A37: Overseas Business | M37: 1 | N37: Japan Business
A38: 中国事業 | C38: ー | D38: ー | E38: ー | F38: 9439 | G38: 11504 | H38: 14126 | I38: 13625 | J38: 16282 | M38: 0 | N38: 中国事業 | P38: 18923 | Q38: 19931 | R38: 20355 | S38: 20488 | T38: 18891 | U38: 18971 | V38: 18271
A39: China Business | M39: 1 | N39: China Business
A40: その他 | C40: 157 | D40: 164 | E40: 172 | F40: 235 | G40: 211 | H40: 197 | I40: 198 | J40: 165 | M40: 0 | N40: シンガポール事業 | P40: 4871 | Q40: 5978 | R40: 5184 | S40: 4680 | T40: 4680 | U40: 4887 | V40: 5782
A41: Other | M41: 1 | N41: Singapore Business
A42: 連結計上額（注3） | C42: 23281 | D42: 24319 | E42: 27760 | F42: 34464 | G42: 38296 | H42: 43345 | I42: 44688 | J42: 50572 | M42: 0 | N42: ランシノ事業 | P42: 7051 | Q42: 7582 | R42: 7700 | S42: 6930 | T42: 6930 | U42: 7125 | V42: 8942
A43: Consolidated Amount (Note 3) | M43: 1 | N43: Lansinoh Business
M44: 0 | N44: その他 | P44: 164 | Q44: 183 | R44: 122 | S44: ー | T44: ー | U44: ー | V44: ー
M45: 1 | N45: Other
M46: 0 | N46: 連結計上額（注3） | P46: 50572 | Q46: 53838 | R46: 50800 | S46: 49921 | T46: 44562 | U46: 44072 | V46: 44834
M47: 1 | N47: Consolidated Amount (Note 3)
M48: 2
A49: セグメント利益（注4） | M49: 0 | N49: セグメント利益（注4）
A50: Segment Profit (Note 4) | M50: 1 | N50: Segment Profit (Note 4)
A51: 国内ベビー・ママ事業 | C51: 3611 | D51: 3677 | E51: 3379 | F51: 3411 | G51: 3752 | H51: 4383 | I51: 6244 | M51: 0 | N51: 国内ベビー・ママ事業 | P51: 5928 | Q51: 6096 | R51: 4697 | S51: ー | T51: ー | U51: ー | V51: ー
A52: Domestic Baby & Mother Care Business | I52: 4818 | J52: 5928 | M52: 1 | N52: Domestic Baby & Mother Care Business
A53: 子育て支援事業 | C53: 117 | D53: 152 | E53: 182 | F53: 176 | G53: 189 | H53: 148 | I53: 211 | M53: 0 | N53: 子育て支援事業 | P53: 218 | Q53: 169 | R53: 49 | S53: ー | T53: ー | U53: ー | V53: ー
A54: Child Care Service Business | I54: 211 | J54: 218 | M54: 1 | N54: Child Care Service Business
A55: ヘルスケア・介護事業 | C55: 111 | D55: 350 | E55: 212 | F55: 212 | G55: 260 | H55: 140 | I55: 504 | M55: 0 | N55: ヘルスケア・介護事業 | P55: 468 | Q55: 353 | R55: 386 | S55: ー | T55: ー | U55: ー | V55: ー
A56: Health & Elder Care Business | I56: 445 | J56: 468 | M56: 1 | N56: Health & Elder Care Business
A57: 海外事業 | C57: 3745 | D57: 3909 | E57: 6387 | F57: 4152 | G57: 4969 | H57: 5579 | I57: 5352 | M57: 0 | N57: 日本事業 | P57: ー | Q57: ー | R57: ー | S57: 3008 | T57: 2772 | U57: 2065 | V57: 1491
A58: Overseas Business | I58: 4861 | J58: 5841 | M58: 1 | N58: Japan Business
A59: 中国事業 | C59: ー | D59: ー | E59: ー | F59: 6041 | G59: 7525 | H59: 8586 | I59: 8355 | M59: 0 | N59: 中国事業 | P59: 11514 | Q59: 11972 | R59: 12483 | S59: 12600 | T59: 12600 | U59: 11792 | V59: 10408
A60: China Business | I60: 8355 | J60: 9716 | M60: 1 | N60: China Business
A61: その他 | C61: 135 | D61: 138 | E61: 141 | F61: 204 | G61: 173 | H61: 152 | I61: 162 | M61: 0 | N61: シンガポール事業 | P61: 2488 | Q61: 2744 | R61: 2007 | S61: 1647 | T61: 1647 | U61: 1811 | V61: 2140
A62: Other | I62: 162 | J62: 126 | M62: 1 | N62: Singapore Business
A63: 連結計上額（注3、5） | C63: 4546 | D63: 5042 | E63: 7086 | F63: 10365 | G63: 12780 | H63: 14521 | I63: 16015 | J63: 19412 | M63: 0 | N63: ランシノ事業 | P63: 1553 | Q63: 1576 | R63: 1784 | S63: 1370 | T63: 1370 | U63: 953 | V63: 1154
A64: Consolidated Amount (Notes 3, 5) | M64: 1 | N64: Lansinoh Business
M65: 0 | N65: その他 | P65: 126 | Q65: 142 | R65: 72 | S65: ー | T65: ー | U65: ー | V65: ー
M66: 1 | N66: Other
M67: 0 | N67: 連結計上額（注3、5） | P67: 19412 | Q67: 19612 | R67: 17072 | S67: 15316 | T67: 15080 | U67: 13336 | V67: 12195
M68: 1 | N68: Consolidated Amount (Notes 3, 5)
A71: （注1）2015年1月期より、「海外事業」から「中国事業」を分離し、2019年1月期より、「海外事業」の名称を変更し、ASEAN・中東諸国を中心にピジョンブランド事業を行う「シンガポール事業」としたうえで、従来、「海外事業」に含まれていた、欧米を中心に展開するランシノブランド事業を「ランシノ事業」として独立させています。なお、2014年1月期ならびに2018年1月期の数値は、当該変更後のセグメント区分に組み替えた数値で表示しています。 | L71: Notes | M71: Notes | N71: 1: In the year ended January 31, 2015, the Company separated its China Business from the Overseas Business. In the year ending January 31, 2019, the Company separated its Overseas Business into two, Singapore Business and Lansinoh Business. Pigeon brand mainly in the ASEAN and countries of the Middle East is under Singapore Business and Lansinoh brand mainly developed in Europe and the U.S. is under Lansinoh Business. The figures in the years ended January 31, 2014 and 2018 are presented based on the new reporting segments.
A78: （注2）2016年1月期より、韓国、台湾、香港、フィリピン、ロシア等地域における事業の管轄が海外事業本部から中国事業本部に移管されたことに伴い、「海外事業」ならびに「中国事業」における一部の地域の事業は、2015年1月期からセグメントを変更して表示しています。 | N78: 2: In the year ended Januar y 31, 2016, the Company ’s businesses in some regions below were shifted to the China Business segment from Overseas Business. Reporting segments were changed accordingly. - South Korea, Taiwan, Hong Kong, the Philippines, and Russia.
A82: （注3）2014年1月期以降の「連結計上額」は、「海外事業」および「中国事業」のセグメント間取引消去後の金額となっています。また2018年1月期以降の「連結計上額」は「シンガポール事業」「ランシノ事業」および「中国事業」 のセグメント間取引消去後の金額となっています。 | N82: 3: The consolidated amounts recorded for the fiscal years ended January 31, 2014 and subsequent fiscal years are posted as the sums resulting from eliminating intersegment transactions between Overseas Business and China Business. The consolidated amounts recorded for the fiscal year ended January 31, 2018 and subsequent fiscal years are posted as the sums resulting from eliminating intersegment transactions among Singapore Business, Lansinoh Business and China Business.
A88: （注4）セグメント利益での2017年1月期の下段ならびに2018年1月期以降の数値は、配賦不能営業費用の中の研究・開発部門に係る費用を各報告セグメントのセグメント利益に含めて計上しています。2017年1月期の上段ならびにそれ以前は、当該費用は調整額に含めています。 | N88: 4: Segment Profit for the fiscal year ended January 31, 2017 (the lower figure) and subsequent fiscal years, the Company reports expenses in non-allocable operating expenses associated with Research and Development in the Segment Profit of each reporting segment. For the fiscal year ended January 31, 2017 and subsequent fiscal years (the upper figure), such expenses are included in the adjustment.
A93: （注5）セグメント利益の合計は調整（すべて配賦不能営業費用）を行い、連結損益計算書の営業利益となっています。 | N93: 5: The sum of Segment Profit (with all non-allocable operating expenses) has been adjusted and posted as operating income in the consolidated statements of income.
A96: （注6）当社は会計方針の変更として、「収益認識に関する会計基準」（企業会計基準第29号 2020年３月31日）等を2021年12月期から適用しています。表にある「旧基準」は2020年12月期時点の会計基準に基づいた実績値、「新基準」は会計基準変更後の実績値となります。なお、2020年12月期の実績につきましては、「新基準」の試算値も併記しています。 | N96: 6: As a change in its accounting policy, the Company has applied the “Accounting Standard for Revenue Recognition” (ASBJ Statement No. 29, March 31, 2020) and other standards from the fiscal year ended December 31, 2021. The results listed under “Old standards” in the table are the results based on the accounting standards as of the fiscal year ended December 31, 2020, while the results listed under “New standards” are the results based on the accounting standards after the change. Alongside the results for the fiscal year ended December 31, 2020, a trial calculation of the same results under the new standards is also published.

Sheet 06
A1: ■海外売上高地域別状況 Overseas Business Sales by Region
A2: 2011年1月31日～2022年12月31日に終了した会計年度 | O2: (百万円)
A3: Fiscal years ended Jan. 31, 2011 through Dec. 31, 2022 | N3: (¥ millions)
C4: 旧基準 Old Standards | N4: 新基準(注) New Standards （Note)
A5: 科目 Item | B5: 期別 Period | C5: 2011 | D5: 2012 | E5: 2013 | F5: 2014 | G5: 2015 | H5: 2016 | I5: 2017 | J5: 2018 | K5: Jan. 2019 | L5: Dec. 2019 | M5: 2020 | N5: 2021 | O5: 2022
A6: 中国（香港含む） | C6: 9090 | D6: 10167 | E6: 14112 | F6: 22417 | G6: 26384 | H6: 28291 | I6: 27985 | J6: 31902 | K6: 33320 | L6: 35184 | M6: 35701 | N6: 34392 | O6: 32129
A7: China (Including Hong Kong)
A8: その他アジア | C8: 3908 | D8: 4221 | E8: 5243 | F8: 6125 | G8: 6800 | H8: 7326 | I8: 6569 | J8: 7215 | K8: 9052 | L8: 8578 | M8: 7750 | N8: 8092 | O8: 9521
A9: Other Asian Countries
A10: 北米 | C10: 3855 | D10: 3842 | E10: 3668 | F10: 5418 | G10: 6376 | H10: 7671 | I10: 7061 | J10: 8109 | K10: 7715 | L10: 7831 | M10: 7924 | N10: 8669 | O10: 11486
A11: North America
A12: 欧州 | C12: ー | D12: ー | E12: ー | F12: ー | G12: 2090 | H12: 2400 | I12: 2262 | J12: 2666 | K12: 2845 | L12: 2968 | M12: 2855 | N12: 3650 | O12: 3632
A13: Europe
A14: 中近東 | C14: 1411 | D14: 1532 | E14: 1878 | F14: 2118 | G14: 2262 | H14: 2684 | I14: 2382 | J14: 2019 | K14: 2285 | L14: 2303 | M14: 2117 | N14: 2007 | O14: 2550
A15: Near and Middle East
A16: その他地域 | C16: 1588 | D16: 1776 | E16: 2020 | F16: 2412 | G16: 986 | H16: 1205 | I16: 976 | J16: 915 | K16: 1073 | L16: 957 | M16: 854 | N16: 953 | O16: 1369
A17: Other Region
A18: （注）当社は会計方針の変更として、「収益認識に関する会計基準」（企業会計基準第29号 2020年３月31日）等を2021年12月期から適用しています。表にある「旧基準」は2020年12月期時点の会計基準に基づいた実績値、「新基準」は会計基準変更後の実績値となります。
A20: （Note) As a change in its accounting policy, the Company has applied the “Accounting Standard for Revenue Recognition” (ASBJ Statement No. 29, March 31, 2020) and other standards from the fiscal year ended December 31, 2021. The results listed under “Old standards” in the table are the results based on the accounting standards as of the fiscal year ended December 31, 2020, while the results listed under “New standards” are the results based on the accounting standards after the change.
A24: （注）各期における平均為替レートは以下の通りです。 | O24: (円)
A25: （Note) The average foreign currency rates for each fiscal year are stated in the chart below. | O25: ( ¥ )
A26: 1 U. S. dollar | C26: 87.79 | D26: 79.79 | E26: 79.8 | F26: 97.72 | G26: 105.78 | H26: 121.1 | I26: 108.77 | J26: 112.16 | K26: 110.43 | L26: 109.02 | M26: 106.77 | N26: 109.85 | O26: 131.55
A27: 1 Chinese yuan | C27: 12.96 | D27: 12.34 | E27: 12.66 | F27: 15.91 | G27: 17.17 | H27: 19.22 | I27: 16.35 | J27: 16.62 | K27: 16.7 | L27: 15.77 | M27: 15.47 | N27: 17.03 | O27: 19.5

Sheet 07
A1: ■連結キャッシュ・フロー計算書 Consolidated Statement of Cash Flows
A2: 2011年1月31日～2022年12月31日に終了した会計年度 | O2: (百万円)
A3: Fiscal years ended Jan. 31, 2011 through Dec. 31, 2022 | N3: (¥ millions)
A5: 科目 Item | B5: 期別 Period | C5: 2011 | D5: 2012 | E5: 2013 | F5: 2014 | G5: 2015 | H5: 2016 | I5: 2017 | J5: 2018 | K5: Jan. 2019 | L5: Dec. 2019 | M5: 2020 | N5: 2021 | O5: 2022
A7: 営業活動によるキャッシュ・フロー
A8: Cash Flows from Operating Activities
A9: 税金等調整前当期純利益 | C9: 4369 | D9: 4723 | E9: 7369 | F9: 10986 | G9: 13140 | H9: 14887 | I9: 16234 | J9: 20916 | K9: 20262 | L9: 17104 | M9: 15836 | N9: 13531 | O9: 13143
A10: Income before Income Taxes
A11: 減価償却費 | C11: 1624 | D11: 1595 | E11: 1626 | F11: 1865 | G11: 1914 | H11: 2345 | I11: 2259 | J11: 2444 | K11: 2638 | L11: 3406 | M11: 3815 | N11: 3997 | O11: 4758
A12: Depreciation and Amortization
A13: 売上債権の増減額 | C13: -1470 | D13: -93 | E13: 192 | F13: -587 | G13: -1312 | H13: 843 | I13: -2927 | J13: 376 | K13: 646 | L13: -1791 | M13: 1351 | N13: 469 | O13: 1631
A14: Decrease (Increase) in Notes and Accounts Receivable - Trade
A15: たな卸資産の増減額 | C15: -400 | D15: -1019 | E15: 585 | F15: -480 | G15: 136 | H15: -636 | I15: 835 | J15: -761 | K15: -2300 | L15: -713 | M15: -42 | N15: -466 | O15: -1816
A16: Decrease (Increase) in Inventories
A17: 仕入債務の増減額 | C17: -148 | D17: -241 | E17: -342 | F17: -154 | G17: -721 | H17: 1187 | I17: 1482 | J17: 115 | K17: -70 | L17: 595 | M17: -260 | N17: -1511 | O17: 222
A18: Increase (Decrease) in Notes and Accounts Payable - Trade
A19: 未払金の増減額 | C19: 443 | D19: 139 | E19: 103 | F19: -1 | G19: -105 | H19: -1275 | I19: 538 | J19: 345 | K19: 196 | L19: -317 | M19: 88 | N19: -789 | O19: -11
A20: Increase (Decrease) in Accounts Payable
A21: 法人税等の支払額 | C21: -1444 | D21: -1313 | E21: -1753 | F21: -3241 | G21: -3444 | H21: -4570 | I21: -4295 | J21: -5868 | K21: -6491 | L21: -5854 | M21: -4322 | N21: -5565 | O21: -4662
A22: Income Taxes Paid
A23: その他 | C23: 233 | D23: 420 | E23: -125 | F23: -456 | G23: 529 | H23: 698 | I23: 681 | J23: -475 | K23: -1249 | L23: 1668 | M23: 1934 | N23: 1227 | O23: -54
A24: Other
A25: 営業活動によるキャッシュ・フロー | C25: 3206 | D25: 4212 | E25: 7656 | F25: 7930 | G25: 10135 | H25: 13479 | I25: 14810 | J25: 17094 | K25: 13632 | L25: 14098 | M25: 18400 | N25: 10893 | O25: 13210
A26: Net Cash Provided by (Used in) Operating Activities
A28: 投資活動によるキャッシュ・フロー
A29: Cash Flows from Investing Activities
A30: 有形固定資産の取得による支出 | C30: -2710 | D30: -1416 | E30: -1745 | F30: -3223 | G30: -2682 | H30: -3018 | I30: -2424 | J30: -2199 | K30: -3686 | L30: -3413 | M30: -3601 | N30: -5659 | O30: -5315
A31: Purchase of Tangible Fixed Assets
A32: 有形固定資産の売却による収入 | C32: 44 | D32: 7 | E32: 19 | F32: 15 | G32: 48 | H32: 27 | I32: 769 | J32: 162 | K32: 453 | L32: 71 | M32: 24 | N32: 29 | O32: 14
A33: Proceeds from Sales of Tangible Fixed Assets
A34: 無形固定資産の取得による支出 | C34: -193 | D34: -123 | E34: -112 | F34: -453 | G34: -472 | H34: -354 | I34: -210 | J34: -1055 | K34: -1704 | L34: -606 | M34: -222 | N34: -234 | O34: -249
A35: Purchase of Intangible Fixed Assets
A36: その他 | C36: -1091 | D36: -338 | E36: -10 | F36: -133 | G36: -27 | H36: 14 | I36: 11 | J36: -494 | K36: 232 | L36: -47 | M36: -16 | N36: 270 | O36: -108
A37: Other
A38: 投資活動によるキャッシュ・フロー | C38: -3949 | D38: -1871 | E38: -1848 | F38: -3794 | G38: -3134 | H38: -3332 | I38: -1854 | J38: -3586 | K38: -4704 | L38: -3995 | M38: -3815 | N38: -5593 | O38: -5659
A39: Net Cash Provided by (Used in) Investing Activities
A41: 財務活動によるキャッシュ・フロー
A42: Cash Flows from Financing Activities
A43: 短期借入れによる収入 | C43: 8548 | D43: 9516 | E43: 9513 | F43: 7079 | G43: 1390 | H43: ー | I43: 485 | J43: ー | K43: ー | L43: ー | M43: ー | N43: ー | O43: ー
A44: Increase in Short-term Loans Payable
A45: 短期借入金の返済による支出 | C45: -7627 | D45: -9530 | E45: -10394 | F45: -8153 | G45: -1000 | H45: -505 | I45: -179 | J45: -673 | K45: ー | L45: ー | M45: ー | N45: ー | O45: ー
A46: Repayments of Short-term Loans Payable
A47: 長期借入れによる収入 | C47: 1648 | D47: 1073 | E47: 1200 | F47: 752 | G47: 5000 | H47: ー | I47: ー | J47: ー | K47: ー | L47: ー | M47: ー | N47: ー | O47: ー
A48: Proceeds from Long-term Loans Payable
A49: 長期借入金の返済による支出 | C49: -103 | D49: -1020 | E49: -1656 | F49: -29 | G49: -1005 | H49: -1200 | I49: -837 | J49: -5000 | K49: ー | L49: ー | M49: ー | N49: ー | O49: ー
A50: Repayments of Long-term Loans Payable
A51: 配当金の支払額 | C51: -1518 | D51: -1758 | E51: -1761 | F51: -2740 | G51: -3995 | H51: -4789 | I51: -5622 | J51: -7066 | K51: -8260 | L51: -8230 | M51: -8517 | N51: -8741 | O51: -8974
A52: Payment of Cash Dividends
A53: その他 | C53: -60 | D53: -55 | E53: -50 | F53: -71 | G53: -540 | H53: -72 | I53: -69 | J53: -71 | K53: -77 | L53: -503 | M53: -713 | N53: 47 | O53: -692
A54: Other
A55: 財務活動によるキャッシュ・フロー | C55: 886 | D55: -1776 | E55: -3149 | F55: -3163 | G55: -150 | H55: -6567 | I55: -6223 | J55: -12812 | K55: -8338 | L55: -8734 | M55: -9231 | N55: -8693 | O55: -9666
A56: Net Cash Provided by (Used in) Financing Activities
A57: 現金及び現金同等物に係る換算差額 | C57: -220 | D57: -98 | E57: 622 | F57: 1556 | G57: 1637 | H57: -873 | I57: -891 | J57: 599 | K57: -986 | L57: 98 | M57: -718 | N57: 1560 | O57: 1180
A58: Effect of Exchange Rate Changes on Cash and Cash Equivalents
A59: 現金及び現金同等物の増減額 | C59: -77 | D59: 465 | E59: 3280 | F59: 2528 | G59: 8488 | H59: 2706 | I59: 5840 | J59: 1294 | K59: -397 | L59: 1467 | M59: 4634 | N59: -1832 | O59: -934
A60: Net Increase (Decrease) in Cash and Cash Equivalents
A61: 現金及び現金同等物の期首残高 | C61: 6905 | D61: 6827 | E61: 7293 | F61: 10574 | G61: 13102 | H61: 21590 | I61: 24297 | J61: 30052 | K61: 31346 | L61: 30949 | M61: 32416 | N61: 37050 | O61: 35218
A62: Cash and Cash Equivalents at Beginning of Period
A63: 現金及び現金同等物の期末残高 | C63: 6827 | D63: 7293 | E63: 10574 | F63: 13102 | G63: 21590 | H63: 24297 | I63: 30052 | J63: 31346 | K63: 30949 | L63: 32416 | M63: 37050 | N63: 35218 | O63: 34283
A64: Cash and Cash Equivalents at End of Period

Sheet 08
A1: ■成長性指標 Growth Indicators
A2: 2011年1月31日～2022年12月31日に終了した会計年度 | P2: (百万円)
A3: Fiscal years ended Jan. 31, 2011 through Dec. 31, 2022 | N3: (¥ millions)
C4: 旧基準 Old Standards | N4: 新基準 (注) New Standards（Note)
A5: 科目 Item | B5: 期別 Period | C5: 2011 | D5: 2012 | E5: 2013 | F5: 2014 | G5: 2015 | H5: 2016 | I5: 2017 | J5: 2018 | K5: Jan. 2019 | L5: Dec. 2019 | M5: 2020 | N5: 2020 | O5: 2021 (注7 Note 7) | P5: 2022
A6: 売上高 | C6: 57061 | D6: 59145 | E6: 65075 | F6: 77465 | G6: 84113 | H6: 92209 | I6: 94640 | J6: 102563 | K6: 104747 | L6: 100017 | M6: 99380 | N6: 94021 | O6: 93080 | P6: 94921
A7: Net Sales
A8: 売上高成長率（%） | C8: 6.8 | D8: 3.7 | E8: 10 | F8: 19 | G8: 8.6 | H8: 9.6 | I8: 2.6 | J8: 8.4 | K8: 2.1 | L8: ー (注5 Note 5) | M8: -0.6 | N8: ー | O8: -6.3 | P8: 2
A9: Growth Rate of Net Sales（%） | O9: -1
A10: 営業利益 | C10: 4546 | D10: 5042 | E10: 7086 | F10: 10365 | G10: 12780 | H10: 14521 | I10: 16015 | J10: 19412 | K10: 19612 | L10: 17072 | M10: 15316 | N10: 15080 | O10: 13336 | P10: 12195
A11: Operating Income
A12: 営業利益成長率（%） | C12: -1.2 | D12: 10.9 | E12: 40.5 | F12: 46.3 | G12: 23.3 | H12: 13.6 | I12: 10.3 | J12: 21.2 | K12: 1 | L12: ー | M12: -10.3 | N12: ー | O12: -12.9 | P12: -8.6
A13: Growth Rate of Operating Income（%） | O13: -11.6
A14: 親会社株主に帰属する当期純利益 | C14: 2928 | D14: 3183 | E14: 4573 | F14: 6985 | G14: 8451 | H14: 10197 | I14: 11118 | J14: 14515 | K14: 14238 | L14: 11538 | M14: 10643 | N14: 10643 | O14: 8785 | P14: 8581
A15: Net Income Attributable to Owners of Parent
A16: 親会社株主に帰属する当期純利益成長率（注1）（%） | C16: 3.1 | D16: 8.7 | E16: 43.7 | F16: 52.7 | G16: 21 | H16: 20.7 | I16: 9 | J16: 30.5 | K16: -1.9 | L16: ー | M16: -7.8 | N16: -7.8 | O16: -17.5 | P16: -2.3
A17: Growth Rate of Net Income Attributable to Owners of Parent (Note 1) (%）
A18: 1株当たり当期純利益（注2）（円） | C18: 24.45 | D18: 26.58 | E18: 38.09 | F18: 58.17 | G18: 70.55 | H18: 85.15 | I18: 92.84 | J18: 121.2 | K18: 118.89 | L18: 96.37 | M18: 88.93 | N18: 88.93 | O18: 73.44 | P18: 71.72
A19: EPS (Note 2) (￥）
A20: 1株当たり当期純利益成長率（%） | C20: 3.1 | D20: 8.7 | E20: 43.7 | F20: 52.7 | G20: 21 | H20: 20.7 | I20: 9 | J20: 30.5 | K20: -1.9 | L20: ー | M20: -7.8 | N20: -7.8 | O20: -17.5 | P20: -2.3
A21: Growth Rate of EPS（%）
A22: 1株当たり純資産（注2）（円） | C22: 220.95 | D22: 228.41 | E22: 263.75 | F22: 325.83 | G22: 385.46 | H22: 413.88 | I22: 437.42 | J22: 506.79 | K22: 536.43 | L22: 565.64 | M22: 584.3 | N22: 584.3 | O22: 617.59 | P22: 640.96
A23: BPS (Note 2) (￥）
A24: 1株当たり純資産成長率（%） | C24: 2.9 | D24: 3.4 | E24: 15.5 | F24: 23.5 | G24: 18.3 | H24: 7.4 | I24: 5.7 | J24: 15.9 | K24: 5.8 | L24: 5.4 | M24: 7.5 | N24: 7.5 | O24: 1.6 | P24: 3.8
A25: Growth Rate of BPS（%）
A26: フリー・キャッシュ・フロー | C26: -743 | D26: 2340 | E26: 5807 | F26: 4135 | G26: 7001 | H26: 10147 | I26: 12955 | J26: 13507 | K26: 8928 | L26: 10103 | M26: 14584 | N26: 14584 | O26: 5300 | P26: 7551
A27: Free Cash Flows
A28: ROA（注3）(Note 3) (%） | C28: 10.8 | D28: 11.4 | E28: 16 | F28: 20.7 | G28: 20.4 | H28: 20.6 | I28: 21.5 | J28: 24.6 | K28: 24 | L28: 19.6 | M28: 17.5 | N28: 17.5 | O28: 15.3 | P28: 13.5
A29: ROE（注3）(Note 3) (%） | C29: 11.2 | D29: 11.8 | E29: 15.5 | F29: 19.7 | G29: 19.8 | H29: 21.3 | I29: 21.8 | J29: 25.7 | K29: 22.8 | L29: 17.5 | M29: 15.5 | N29: 15.5 | O29: 12.2 | P29: 11.4
A30: 投下資本利益率（注4）(%） | C30: ー | D30: ー | E30: ー | F30: 14.2 | G30: 13.7 | H30: 15.1 | I30: 16.3
A31: ROIC (Note 4) (%） | I31: 19.2 | J31: 22.2 | K31: 21.2 | L31: 17.4 | M31: 15 | N31: 14.8 | O31: 12.5 | P31: 10.9
A33: （注1）「企業結合に関する会計基準」（企業会計基準第21号 2013年9月13日）等を適用し、従来の「当期純利益」を「親会社株主に帰属する当期純利益」として表示しています。 | D33: Notes | E33: 1: As the Company has applied the Accounting Standard for Business Combinations (ASBJ Statement No. 21, September 13, 2013) and other standards, figures formerly disclosed as “Net Income” are now described as “Net Income Attributable to Owners of Parent.” | M33: 5: As a result of the change of consolidated closing date, the consolidated fiscal year ended Dec. 31, 2019, the transition period, shall be the 11-month period from February 1, 2019 to December 31, 2019 for the scope of the Company and its subsidiaries in Japan that used to settle their accounts on January 31. As a result, some growth indicators that use comparisons with the previous fiscal year are not described here.
A36: （注2）2013年8月1日を効力発生日として、普通株式1株につき2株の割合で、また2015年5月1日を効力発生日として、普通株式1株につき3株の割合で株式分割を行っています。2011年1月期期首に当該株式分割が行われたと仮定して算出しています。
E38: 2: The Company carried out a 2-for-1 split of common stock, effective August 1, 2013, and a 3-for-1 split of common stock, effective May 1, 2015. Figures have been calculated assuming that those stock splits were conducted at the beginning of the year ended January 31, 2011.
A40: （注3）ROAは総資産経常利益率、ROEは自己資本当期純利益率で、分母は期首・期末平均で算出しています。
M41: 6: As a change in its accounting policy, the Company has applied the “Accounting Standard for Revenue Recognition” (ASBJ Statement No. 29, March 31, 2020) and other standards from the fiscal year ended December 31, 2021. The results listed under “Old standards” in the table are the results based on the accounting standards as of the fiscal year ended December 31, 2020, while the results listed under “New standards” are the results based on the accounting standards after the change. Alongside the results for the fiscal year ended December 31, 2020, a trial calculation of the same results under the new standards is also published. For this reason, some comparisons with the previous fiscal year are omitted.
A43: （注4）ROICはNOPAT/投下資本。税率は2018年1月期以降ならびに2017年1月期の下段は30.0％、2017年1月期の上段ならびにそれ以前の数値は40.7％、投下資本は期首・期末平均で算出しています。 | E43: 3: ROA is the ratio of ordinary income to total assets. ROE is the ratio of net income attributable to owners of parent to shareholders’ equity. The denominator for both is the average of the figures at the beginning and end of the fiscal year.
A47: （注5）連結決算日の変更に伴い、経過期間となる2019年12月期は、1月決算であった当社および国内子会社につきましては2019年2月1日から2019年12月31日までの11ヶ月間を連結対象期間としています。このため、一部の対前期比率は記載していません。
E48: 4: Return on invested capital (ROIC) is defined as net operating profit after tax (NOPAT) divided by invested capital. This figure is calculated using a tax rate of 30.0% from the year ended January 31, 2018 and for the second (bottom) of the two figures for the year ended January 31, 2017; and using a tax rate of 40.7% for the first (top) of the two figures for the year ended January 31, 2017 and before. Invested capital is calculated using the average of the beginning and year-end figures.
A51: （注6）当社は会計方針の変更として、「収益認識に関する会計基準」（企業会計基準第29号 2020年３月31日）等を2021年12月期から適用しています。表にある「旧基準」は2020年12月期時点の会計基準に基づいた実績値、「新基準」は会計基準変更後の実績値となります。なお、2020年12月期の実績につきましては、「新基準」の試算値も併記しています。このため、一部の対前期比率は記載していません。
M53: 7: For Growth Rate of Net Sales (%) and Growth Rate of Operating Income (%), the top row displays a comparison of the old standards for 2020/12 with the new standards for 2021/12, while the bottom row displays a comparison of the trial calculation values under the new standards for 2020/12 with the actual values under the new standards for 2021/12.
A57: （注7）「売上高成長率（%）」「営業利益率成長率（％）」について、上段は2020年12月期の旧基準と2021年12月期の新基準の比較、下段は2020年12月期の新基準での試算値と2021年12月期の新基準の実績値の比較を表記しています。

Sheet 09
A1: ■収益性指標 Profitability Indicators
A2: 2011年1月31日～2022年12月31日に終了した会計年度 | P2: (百万円)
A3: Fiscal years ended Jan. 31, 2011 through Dec. 31, 2022 | O3: (¥ millions)
C4: 旧基準 Old Standards | N4: 新基準 (注) New Standards（Note)
A5: 科目 Item | B5: 期別 Period | C5: 2011 | D5: 2012 | E5: 2013 | F5: 2014 | G5: 2015 | H5: 2016 | I5: 2017 | J5: 2018 | K5: Jan. 2019 | L5: Dec. 2019 | M5: 2020 | N5: 2020 | O5: 2021 | P5: 2022
A6: 売上高 | C6: 57061 | D6: 59145 | E6: 65075 | F6: 77465 | G6: 84113 | H6: 92209 | I6: 94640 | J6: 102563 | K6: 104747 | L6: 100017 | M6: 99380 | N6: 94021 | O6: 93080 | P6: 94921
A7: Net Sales
A8: 売上総利益 | C8: 23281 | D8: 24319 | E8: 27760 | F8: 34464 | G8: 38296 | H8: 43345 | I8: 44688 | J8: 50572 | K8: 53858 | L8: 50800 | M8: 49921 | N8: 44562 | O8: 44072 | P8: 44834
A9: Gross Profit
A10: 売上総利益率（%） | C10: 40.8 | D10: 41.1 | E10: 42.7 | F10: 44.5 | G10: 45.5 | H10: 47 | I10: 47.2 | J10: 49.3 | K10: 51.4 | L10: 50.8 | M10: 50.2 | N10: 47.4 | O10: 47.3 | P10: 47.2
A11: Gross Margin（%）
A12: 販売費及び一般管理費 | C12: 18734 | D12: 19276 | E12: 20674 | F12: 24098 | G12: 25515 | H12: 28823 | I12: 28673 | J12: 31159 | K12: 34246 | L12: 33727 | M12: 34605 | N12: 29482 | O12: 30735 | P12: 32638
A13: Selling, General and Administrative Expenses
A14: 売上高販管費率（%） | C14: 32.8 | D14: 32.6 | E14: 31.8 | F14: 31.1 | G14: 30.3 | H14: 31.3 | I14: 30.3 | J14: 30.4 | K14: 32.7 | L14: 33.7 | M14: 34.8 | N14: 31.4 | O14: 33 | P14: 34.4
A15: SG&A Ratio（%）
A16: 営業利益 | C16: 4546 | D16: 5042 | E16: 7086 | F16: 10365 | G16: 12780 | H16: 14521 | I16: 16015 | J16: 19412 | K16: 19612 | L16: 17072 | M16: 15316 | N16: 15080 | O16: 13336 | P16: 12195
A17: Operating Income
A18: 営業利益率（%） | C18: 8 | D18: 8.5 | E18: 10.9 | F18: 13.4 | G18: 15.2 | H18: 15.7 | I18: 16.9 | J18: 18.9 | K18: 18.7 | L18: 17.1 | M18: 15.4 | N18: 16 | O18: 14.3 | P18: 12.8
A19: Operating Margin（%）
A20: 経常利益 | C20: 4435 | D20: 4917 | E20: 7389 | F20: 11002 | G20: 13299 | H20: 15080 | I20: 16462 | J20: 20129 | K20: 20398 | L20: 17284 | M20: 16113 | N20: 16113 | O20: 14648 | P20: 13465
A21: Ordinary Income
A22: 売上高経常利益率（%） | C22: 7.8 | D22: 8.3 | E22: 11.4 | F22: 14.2 | G22: 15.8 | H22: 16.4 | I22: 17.4 | J22: 19.6 | K22: 19.5 | L22: 17.3 | M22: 16.2 | N22: 17.1 | O22: 15.7 | P22: 14.2
A23: Ordinary Margin（%）
A24: 親会社株主に帰属する当期純利益 | C24: 2928 | D24: 3183 | E24: 4573 | F24: 6985 | G24: 8451 | H24: 10197 | I24: 11118 | J24: 14515 | K24: 14238 | L24: 11538 | M24: 10643 | N24: 10643 | O24: 8785 | P24: 8581
A25: Net Income Attributable to Owners of Parent
A26: 売上高親会社株主に帰属する当期純利益率（%） | C26: 5.1 | D26: 5.4 | E26: 7 | F26: 9 | G26: 10 | H26: 11.1 | I26: 11.7 | J26: 14.2 | K26: 13.6 | L26: 11.5 | M26: 10.7 | N26: 11.3 | O26: 9.4 | P26: 9
A27: Net Income Attributable to Owners of Parent Margin（%）
A30: ■効率性指標 Efficiency Indicators
A31: 2011年1月31日～2022年12月31日に終了した会計年度 | P31: (百万円)
A32: Fiscal years ended Jan. 31, 2011 through Dec. 31, 2022 | O32: (¥ millions)
C33: =C4 -> 旧基準 Old Standards | N33: =N4 -> 新基準 (注) New Standards（Note)
A34: 科目 Item | B34: 期別 Period | C34: 2011 | D34: 2012 | E34: 2013 | F34: 2014 | G34: 2015 | H34: 2016 | I34: 2017 | J34: 2018 | K34: Jan. 2019 | L34: Dec. 2019 | M34: 2020 | N34: 2020 | O34: 2021 | P34: 2022
A35: 総資産 | C35: 42684 | D35: 43772 | E35: 48538 | F35: 57955 | G35: 72367 | H35: 73943 | I35: 78889 | J35: 84467 | K35: 85618 | L35: 90491 | M35: 93472 | N35: 93472 | O35: 98042 | P35: 101733
A36: Total Assets
A37: 総資産回転率（回） | C37: 1.34 | D37: 1.35 | E37: 1.34 | F37: 1.34 | G37: 1.16 | H37: 1.25 | I37: 1.2 | J37: 1.21 | K37: 1.22 | L37: 1.11 | M37: 1.06 | N37: 1.01 | O37: 0.95 | P37: 0.93
A38: Total Asset Turnover（times）
A39: 純資産 | C39: 27044 | D39: 27935 | E39: 32365 | F39: 39981 | G39: 47297 | H39: 50792 | I39: 53736 | J39: 62812 | K39: 66582 | L39: 70463 | M39: 72625 | N39: 72625 | O39: 76810 | P39: 79952
A40: Net Assets
A41: 純資産回転率（回） | C41: 2.11 | D41: 2.12 | E41: 2.01 | F41: 1.94 | G41: 1.78 | H41: 1.82 | I41: 1.76 | J41: 1.63 | K41: 1.57 | L41: 1.42 | M41: 1.37 | N41: 1.29 | O41: 1.21 | P41: 1.19
A42: Net Asset Turnover（times）
A43: たな卸資産 | C43: 5798 | D43: 6926 | E43: 6776 | F43: 8052 | G43: 8498 | H43: 8859 | I43: 7603 | J43: 8713 | K43: 10605 | L43: 11211 | M43: 11376 | N43: 11376 | O43: 12706 | P43: 15318
A44: Inventories
A45: たな卸資産回転率（回） | C45: 5.83 | D45: 5.03 | E45: 5.51 | F45: 5.34 | G45: 5.39 | H45: 5.52 | I45: 6.57 | J45: 5.97 | K45: 4.8 | L45: 4.39 | M45: 4.35 | N45: 4.35 | O45: 3.86 | P45: 3.27
A46: Inventory Turnover（times）
A49: ■安全性指標 Stability Indicators
A50: 2011年1月31日～2022年12月31日に終了した会計年度 | P50: (百万円)
A51: Fiscal years ended Jan. 31, 2011 through Dec. 31, 2022 | O51: (¥ millions)
C52: =C33 -> 旧基準 Old Standards | N52: =N4 -> 新基準 (注) New Standards（Note)
A53: 科目 Item | B53: 期別 Period | C53: 2011 | D53: 2012 | E53: 2013 | F53: 2014 | G53: 2015 | H53: 2016 | I53: 2017 | J53: 2018 | K53: Jan. 2019 | L53: Dec. 2019 | M53: 2020 | N53: 2020 | O53: 2021 | P53: 2022
A54: 総資産 | C54: 42684 | D54: 43772 | E54: 48538 | F54: 57955 | G54: 72367 | H54: 73943 | I54: 78889 | J54: 84467 | K54: 85618 | L54: 90491 | M54: 93472 | N54: 93472 | O54: 98042 | P54: 101733
A55: Total Assets
A56: 純資産 | C56: 27044 | D56: 27935 | E56: 32365 | F56: 39981 | G56: 47297 | H56: 50792 | I56: 53736 | J56: 62812 | K56: 66582 | L56: 70463 | M56: 72625 | N56: 72625 | O56: 76810 | P56: 79952
A57: Net Assets
A58: 自己資本比率（%） | C58: 62.2 | D58: 62.7 | E58: 65.3 | F58: 67.5 | G58: 63.8 | H58: 67 | I58: 66.4 | J58: 71.9 | K58: 75 | L58: 74.8 | M58: 74.8 | N58: 74.8 | O58: 75.4 | P58: 75.4
A59: Equity Ratio（%）
A60: 有利子負債 | C60: 4873 | D60: 4898 | E60: 3620 | F60: 3411 | G60: 8018 | H60: 6308 | I60: 5699 | J60: ー | K60: ー | L60: ー | M60: ー | N60: ー | O60: ー | P60: ー
A61: Interest-Bearing Debt
A62: 流動比率（%） | C62: 197.6 | D62: 205.5 | E62: 250.5 | F62: 275.9 | G62: 307.9 | H62: 343.9 | I62: 258.4 | J62: 329.2 | K62: 372.5 | L62: 396 | M62: 416.4 | N62: 416.4 | O62: 439.6 | P62: 431.4
A63: Current Ratio（%）
A64: D/Eレシオ（倍） | C64: 0.18 | D64: 0.18 | E64: 0.11 | F64: 0.09 | G64: 0.17 | H64: 0.13 | I64: 0.11 | J64: ー | K64: ー | L64: ー | M64: ー | N64: ー | O64: ー | P64: ー
A65: Debt Equity Ratio（times）
A66: インタレストカバレッジレシオ（倍） | C66: 59.3 | D66: 67.2 | E66: 98.1 | F66: 334.5 | G66: 297.4 | H66: 108.7 | I66: 335.2 | J66: 1523.8 | K66: 6779,1 | L66: 272.8 | M66: 564.8 | N66: 564.8 | O66: 137.1 | P66: 137.6
A67: Interest Coverage Ratio（times）
A68: （注）当社は会計方針の変更として、「収益認識に関する会計基準」（企業会計基準第29号 2020年３月31日）等を2021年12月期から適用しています。表にある「旧基準」は2020年12月期時点の会計基準に基づいた実績値、「新基準」は会計基準変更後の実績値となります。なお、2020年12月期の実績につきましては、「新基準」の試算値も併記しています。
A70: （Note) As a change in its accounting policy, the Company has applied the “Accounting Standard for Revenue Recognition” (ASBJ Statement No. 29, March 31, 2020) and other standards from the fiscal year ended December 31, 2021. The results listed under “Old standards” in the table are the results based on the accounting standards as of the fiscal year ended December 31, 2020, while the results listed under “New standards” are the results based on the accounting standards after the change. Alongside the results for the fiscal year ended December 31, 2020, a trial calculation of the same results under the new standards is also published.

Sheet 11.効率性指標 (hidden)

Sheet 12.安全性指標 (hidden)

Sheet 10
A1: ■株式情報 Stock Information
A3: 株式の状況（2022年12 月31日現在）
A4: Stock Data (As of December 31, 2022)
A6: 発行可能株式総数 | B6: 360,000,000株/shares | C6: 総株主数 | D6: 22,970名/shareholders | E6: 自己株式 | F6: 1,893,532株/shares
A7: Shares Authorized | C7: Total Number of Shareholders | E7: Treasury Stock
A9: 発行済株式の総数 | B9: 121,653,486株/shares | C9: 議決権保有株主数 | D9: 20,272名/shareholders
A10: Shares Issued | C10: Number of Shareholders with Voting Rights
A13: 大株主名（上位10名） | E13: 株式数（千株） | F13: 持株比率※（％）
A14: Shareholder's Name (Ten Largest Shareholders) | E14: Shares Held (thousands) | F14: Ownership* (%)
A15: 日本マスタートラスト信託銀行株式会社（信託口） | E15: 21830 | F15: 18.2
A16: The Master Trust Bank of Japan, Ltd. (Trust Account)
A17: 株式会社日本カストディ銀行（信託口） | E17: 7282 | F17: 6.1
A18: Custody Bank of Japan, Ltd. (Trust Account)
A19: BNYMSANV RE MIL RE FIRST SENTIER INVESTORS ICVC - STEWART INVESTORS ASIA PACIFIC LEADERS SUSTAINABILITY FUND | E19: 5168 | F19: 4.3
A21: ＳＭＢＣ日興証券株式会社 | E21: 3340 | F21: 2.8
A22: SMBC Nikko Securities Inc.
A23: THE BANK OF NEW YORK MELLON 140051 | E23: 3169 | F23: 2.6
A25: RBC ISB S/A DUB NON RESIDENT/TREATY RATE UCITS-CLIENTS ACCOUNT-MIG | E25: 2783 | F25: 2.3
A27: STATE STREET BANK CLIENT OMNIBUS OM04 | E27: 2432 | F27: 2
A29: ワイ．エヌ株式会社 | E29: 2378 | F29: 2
A30: Y.N Corporation
A31: JPモルガン証券株式会社 | E31: 2030 | F31: 1.7
A32: JPMorgan Securities Japan Co., Ltd.
A33: 仲田 洋一 | E33: 1944 | F33: 1.6
A34: Yoichi Nakata
A36: ※持ち株比率は自己株式（1,893,532株）を控除して計算しています。なお、自己株式には、役員報酬BIP信託口における保有株数（102,956株）は含んでおりません。
A37: * Percentage of ownership figures are based on 119,759,954 shares (121,653,486 shares issued and outstanding, minus 1,893,532 shares of treasury stock).
A38: The figure for treasury stock does not include the 102,956 shares held in the board-incentive-plan (BIP) trust account for executive remuneration.
A43: 株式分布状況（2022年12 月31日現在）
A44: Share Breakdown by Shareholders (As of December 31, 2022)
K52: 持株数（千株）※
K53: Shares Held (thousands)*
F54: 外国法人等 | I54: 0.424 | J54: 51,613千株
F55: Non-Japanese Corporations
F56: 金融機関 | I56: 0.314 | J56: 38,177千株
F57: Financial Institutions
F58: 個人・その他 | I58: 0.139 | J58: 16,861千株
F59: Individuals and Others
F60: 金融商品取引業者（証券会社） | I60: 0.059 | J60: 7,135千株
F61: Securities Companies
F62: その他の法人 | I62: 0.049 | J62: 5,970千株
F63: Japanese Corporations
F64: 自己名義株式 | I64: 0.016 | J64: 1,893千株
F65: Treasury Stock
F66: 政府・地方公共団体 | I66: 0 | J66: 1千株
F67: Government and Public Bodies
F68: ※持株数は、単位未満を切り捨てています。
F69: * The number of shares held has been rounded down to the nearest unit.
A78: ※株式分布比率は小数第2位を四捨五入しています。
A79: * Share breakdown by shareholders is rounded to the first decimal place.

Sheet 【削除予定】14.会社概要 (hidden)
A1: ■ 会社概要 | B1: ="企業データ（"&作業用!A1&"年12月31日現在）" -> 企業データ（2022年12月31日現在）
A3: 社名 | B3: ピジョン株式会社
A5: 住所 | B5: 〒103-8480 東京都中央区日本橋久松町4番4号（本社）
B6: TEL：03-3661-4200（大代表） FAX：03-3661-4320
B7: URL: www.pigeon.co.jp（日本語）
B8: www.pigeon.com（グローバル）
A10: 設立 | B10: 1957-08-15
A12: 資本金 | B12: 5,199,597千円
A14: 決算期 | B14: 毎年12月31日
B15: ※2019年4月25日開催の第62期定時株式総会にて、「定数の一部変更の件」の承認を受け、2019年度より決算期を1月31日から12月31日に変更いたしました。
A18: 事業内容 | B18: 育児・マタニティ・女性ケア・ホームヘルスケア・介護用品等の製造、販売および輸出入、ならびに保育事業
A19: 従業員数 | B19: 361名 / グループ合計 3,954名
A24: ■ Corporate Information | D24: ="Corporate Data (As of December 31, "&作業用!A1&")" -> Corporate Data (As of December 31, 2022)
A26: Company Name | B26: Pigeon Corporation
A29: Address | B29: 4-4, Nihonbashi Hisamatsu-cho, Chuo-ku,Tokyo 103-8480, Japan (Head Office) Phone +81-3-3661-4200 Fax +81-3-3661-4320
B30: URL : www.pigeon.com (Global site)
B31: www.pigeon.co.jp (Japan site)
A33: Established | B33: 1957-08-15
A36: Capital stock | B36: ¥5,199,597 thousand
A39: Fiscal Year-End | B39: 2021-12-31
B40: Note: At the 62nd Ordinary General Meeting of Shareholders convened April 25, 2019, a partial amendment to the Articles of Incorporation was approved, changing the fiscal year-end from January 31 to December 31, from FY2019 onward.
A44: Our Business | B44: Manufacture, sale, import and export of baby and child- care products, maternity items, women’s care products, home healthcare products, elder care products, etc.; operation of child-minding centers
A48: Number of Employees | B48: 361 ( Japan, Full-time employees) / 3,954 (Worldwide, Includes Part-time employees)

Sheet 10.株式情報_グラフ用シート (hidden)
A1: 大株主名（上位10名） | E1: 株式数（千株） | F1: 持株比率（％） | G1: ←議決権数比率です。
A2: 日本マスタートラスト信託銀行株式会社（信託口） | E2: 21830 | F2: 18.2
A3: The Master Trust Bank of Japan, Ltd. (Trust Account)
A4: 株式会社日本カストディ銀行（信託口） | E4: 7282 | F4: 6.1
A5: Custody Bank of Japan, Ltd. (Trust Account)
A6: BNYMSANV RE MIL RE FIRST SENTIER INVESTORS ICVC - STEWART INVESTORS ASIA PACIFIC LEADERS SUSTAINABILITY FUND | E6: 5168 | F6: 4.3
A8: ＳＭＢＣ日興証券株式会社 | E8: 3340 | F8: 2.8
A9: SMBC Nikko Securities Inc.
A10: THE BANK OF NEW YORK MELLON 140051 | E10: 3169 | F10: 2.6
A12: RBC ISB S/A DUB NON RESIDENT/TREATY RATE UCITS-CLIENTS ACCOUNT-MIG | E12: 2783 | F12: 2.3
A14: STATE STREET BANK CLIENT OMNIBUS OM04 | E14: 2432 | F14: 2
A16: ワイ．エヌ株式会社 | E16: 2378 | F16: 2
A17: Y.N Corporation
A18: JPモルガン証券株式会社 | E18: 2030 | F18: 1.7 | T18: 119760660
A19: JPMorgan Securities Japan Co., Ltd. | T19: 121653486
A20: 仲田 洋一 | E20: 1944 | F20: 1.6 | T20: 1892826 | U20: =T18-T19 -> -1892826
A21: Yoichi Nakata
D23: 持株数（千株）
D24: Shares Held (thousands)
A25: 金融機関 Financial Institutions | B25: Financial Institutions | C25: =作業用!J12 -> 0.314 | D25: =作業用!K12 -> 38177
A26: 金融商品取引業者（証券会社） Securities Companies | B26: Securities Companies | C26: =作業用!J13 -> 0.059 | D26: =作業用!K13 -> 7135
A27: その他の法人 Japanese Corporations | B27: Japanese Corporations | C27: =作業用!J14 -> 0.049 | D27: =作業用!K14 -> 5970
A28: 外国法人等 Non-Japanese Corporations | B28: Non-Japanese Corporations | C28: =作業用!J15 -> 0.424 | D28: =作業用!K15 -> 51613
A29: 個人・その他 Individuals and Others | B29: Individuals and Others | C29: =作業用!J17 -> 0.139 | D29: =作業用!K17 -> 16861
A30: 自己名義株式 Treasury Stock | B30: Treasury Stock | C30: =作業用!J16 -> 0.016 | D30: =作業用!K16 -> 1893
A31: 政府・地方公共団体 Government and Public Bodies | B31: Government and Public Bodies | C31: =作業用!J18 -> 0 | D31: =作業用!K18 -> 1
C61: 調整済終値 | D61: 売買高
A62: 2019 | B62: 1 | C62: 4240 | D62: 26849500 | E62: 1000 | F62: 1000
B63: 2 | C63: 4540 | D63: 15788100 | E63: 1000 | F63: 1000
B64: 3 | C64: 4525 | D64: 26987600 | E64: 1000 | F64: 1000 | G64: 1000 | H64: 1000 | I64: 1000 | J64: 1000 | K64: 1000
B65: 4 | C65: 4715 | D65: 17904400 | E65: 1000 | F65: 1000 | G65: 1000 | H65: 1000 | I65: 1000 | J65: 1000 | K65: 1000
B66: 5 | C66: 4135 | D66: 12477400 | E66: 1000 | F66: 1000 | G66: 1000 | H66: 1000 | I66: 1000 | J66: 1000 | K66: 1000
B67: 6 | C67: 4335 | D67: 18357200 | E67: 1000 | F67: 1000 | G67: 1000 | H67: 1000 | I67: 1000 | J67: 1000 | K67: 1000
B68: 7 | C68: 4020 | D68: 15735300 | E68: 1000 | F68: 1000 | G68: 1000 | H68: 1000 | I68: 1000 | J68: 1000 | K68: 1000
B69: 8 | C69: 3860 | D69: 12781100 | E69: 1000 | F69: 1000 | G69: 1000 | H69: 1000 | I69: 1000 | J69: 1000 | K69: 1000
B70: 9 | C70: 4455 | D70: 12238700 | E70: 1000 | F70: 1000 | G70: 1000 | H70: 1000 | I70: 1000 | J70: 1000 | K70: 1000
B71: 10 | C71: 5320 | D71: 13126800 | E71: 1000 | F71: 1000 | G71: 1000 | H71: 1000 | I71: 1000 | J71: 1000 | K71: 1000
B72: 11 | C72: 5090 | D72: 9631500 | E72: 1000 | F72: 1000 | G72: 1000 | H72: 1000 | I72: 1000 | J72: 1000 | K72: 1000
B73: 12 | C73: 4015 | D73: 24254500 | E73: 1000 | F73: 1000 | G73: 1000 | H73: 1000 | I73: 1000 | J73: 1000 | K73: 1000
A74: 2020 | B74: 1 | C74: 3915 | D74: 14790700 | E74: 1000 | F74: 1000 | G74: 1000 | H74: 1000 | I74: 1000 | J74: 1000 | K74: 1000
B75: 2 | C75: 3660 | D75: 17598700 | E75: 1000 | F75: 1000 | G75: 1000 | H75: 1000 | I75: 1000 | J75: 1000 | K75: 1000
B76: 3 | C76: 4145 | D76: 24730700 | E76: 1000 | F76: 1000 | G76: 1000 | H76: 1000 | I76: 1000 | J76: 1000 | K76: 1000
B77: 4 | C77: 3835 | D77: 10813200 | E77: 1000 | F77: 1000 | G77: 1000 | H77: 1000 | I77: 1000 | J77: 1000 | K77: 1000
B78: 5 | C78: 4200 | D78: 7472600 | E78: 1000 | F78: 1000 | G78: 1000 | H78: 1000 | I78: 1000 | J78: 1000 | K78: 1000
B79: 6 | C79: 4170 | D79: 11341500 | E79: 1000 | F79: 1000 | G79: 1000 | H79: 1000 | I79: 1000 | J79: 1000 | K79: 1000
B80: 7 | C80: 4095 | D80: 11987800 | E80: 1000 | F80: 1000 | G80: 1000 | H80: 1000 | I80: 1000 | J80: 1000 | K80: 1000
B81: 8 | C81: 4845 | D81: 11055400 | E81: 1000 | F81: 1000 | G81: 1000 | H81: 1000 | I81: 1000 | J81: 1000 | K81: 1000
B82: 9 | C82: 4700 | D82: 10373500 | E82: 1000 | F82: 1000 | G82: 1000 | H82: 1000 | I82: 1000 | J82: 1000 | K82: 1000
B83: 10 | C83: 4805 | D83: 7457400 | E83: 1000 | F83: 1000 | G83: 1000 | H83: 1000 | I83: 1000 | J83: 1000 | K83: 1000
B84: 11 | C84: 4660 | D84: 12481200 | E84: 1000 | F84: 1000 | G84: 1000 | H84: 1000 | I84: 1000 | J84: 1000 | K84: 1000
B85: 12 | C85: 4255 | D85: 9381700 | E85: 1000 | F85: 1000 | G85: 1000 | H85: 1000 | I85: 1000 | J85: 1000 | K85: 1000
A86: 2021 | B86: 1 | C86: 4710 | D86: 11228800 | E86: 1000 | F86: 1000 | G86: 1000 | H86: 1000 | I86: 1000 | J86: 1000 | K86: 1000
B87: 2 | C87: 3850 | D87: 11423800 | E87: 1000 | F87: 1000 | G87: 1000 | H87: 1000 | I87: 1000 | J87: 1000 | K87: 1000
B88: 3 | C88: 4200 | D88: 11847900 | E88: 1000 | F88: 1000 | G88: 1000 | H88: 1000 | I88: 1000 | J88: 1000 | K88: 1000
G89: 1000 | H89: 1000 | I89: 1000 | J89: 1000 | K89: 1000
G90: 1000 | H90: 1000 | I90: 1000 | J90: 1000 | K90: 1000
